Payment Date,Transaction Number,Net Amount,Supplier (Beneficiary) Name,Local Supplier Internal Reference,Directorate / Service Where Expenditure Incurred,Service Category Label,Service Category URI,SeRCOP Expenditure Category,SeRCOP Expenditure Code,Purpose of Spend,SeRCOP Detailed Expenditure Code,Capital/Revenue,Procurement Classification
21-JAN-2022,314,68.33,TICKETS,386198,"Health, Education, Care and Safeguarding",Children's & Education Services,103,Supplies and Services,504,Miscellaneous Expenses,5034,Revenue,ADVERTISING & MARKETING.EVENTS & PROMOTIONS
21-JAN-2022,7012819,77.91,ZAVETTI,402475,"Health, Education, Care and Safeguarding",Children's & Education Services,103,Supplies and Services,504,Miscellaneous Expenses,5034,Revenue,NON INFLUENCIBLE.NON INFLUENCIBLE
21-JAN-2022,7012820,116.66,MTF ENTERPRISES,402474,"Health, Education, Care and Safeguarding",Children's & Education Services,103,Supplies and Services,504,Equipment,5023,Revenue,NON INFLUENCIBLE.NON INFLUENCIBLE
21-JAN-2022,7012821,20.29,GS WORKWEAR,402473,"Environment, Housing & Leisure",Environmental & Regulatory Services,105,Supplies and Services,504,Equipment,5023,Revenue,CLOTHING.FOOTWEAR
21-JAN-2022,7012822,145.83,KITCHEN WARE EXPRESS,402472,Corporate Strategy,Children's & Education Services,103,Supplies and Services,504,Equipment,5023,Revenue,NON INFLUENCIBLE.NON INFLUENCIBLE
21-JAN-2022,7012823,34.92,RED FIRE,402471,"Health, Education, Care and Safeguarding",Children's & Education Services,103,Supplies and Services,504,Equipment,5023,Revenue,NON INFLUENCIBLE.NON INFLUENCIBLE
21-JAN-2022,7012824,507.5,MBL SOLUTIONS,402470,Corporate Strategy,Children's & Education Services,103,Supplies and Services,504,Catering,5024,Revenue,NON INFLUENCIBLE.NON INFLUENCIBLE
21-JAN-2022,7012824,507.5,MBL SOLUTIONS,402470,Corporate Strategy,Children's & Education Services,103,Third Party Payments,505,Private Contractors,5042,Revenue,NON INFLUENCIBLE.NON INFLUENCIBLE
21-JAN-2022,7012824,1691.67,MBL SOLUTIONS,402470,Corporate Strategy,Children's & Education Services,103,Supplies and Services,504,Expenses,5030,Revenue,NON INFLUENCIBLE.NON INFLUENCIBLE
21-JAN-2022,7012825,34.31,LOVE IT COVER IT,402469,"Health, Education, Care and Safeguarding",Children's & Education Services,103,Supplies and Services,504,Miscellaneous Expenses,5034,Revenue,NON INFLUENCIBLE.NON INFLUENCIBLE
21-JAN-2022,7012826,15,GIFTS VOUCHERS,402468,"Health, Education, Care and Safeguarding",Children's & Education Services,103,Third Party Payments,505,Other Establishments,5041,Revenue,NON INFLUENCIBLE.NON INFLUENCIBLE
21-JAN-2022,7012827,-0.01,FISHERMANS BAY,402467,Capital,Capital,Capital,Third Party Payments,505,Private Contractors,5042,Capital,CATERING.BANQUET & CATERING
21-JAN-2022,7012827,182.22,FISHERMANS BAY,402467,Capital,Capital,Capital,Third Party Payments,505,Private Contractors,5042,Capital,CATERING.BANQUET & CATERING
21-JAN-2022,7012827,195.56,FISHERMANS BAY,402467,Capital,Capital,Capital,Third Party Payments,505,Private Contractors,5042,Capital,CATERING.BANQUET & CATERING
21-JAN-2022,7012828,50,NEREO EMPLOYMENT,402466,Resources,Central Services,102,Employees,501,Indirect Employee Expenses,5002,Revenue,NON INFLUENCIBLE.NON INFLUENCIBLE
21-JAN-2022,7012829,141.75,DR MARTENS,402465,"Health, Education, Care and Safeguarding",Children's & Education Services,103,Supplies and Services,504,Miscellaneous Expenses,5034,Revenue,CLOTHING.FOOTWEAR
21-JAN-2022,7012830,7,APCOA PARKING,402464,"Environment, Housing & Leisure",Housing Services,108,Transport,503,Direct Transport Costs,5016,Revenue,TRAFFIC MANAGEMENT.CAR PARKS
21-JAN-2022,7012831,66,ALAN HOOPER THE SIGN,402463,"Environment, Housing & Leisure",Cultural & Related Services,104,Supplies and Services,504,Equipment,5023,Revenue,NON INFLUENCIBLE.NON INFLUENCIBLE
21-JAN-2022,7012832,22,NCS CITB,401170,"Health, Education, Care and Safeguarding",Children's & Education Services,103,Supplies and Services,504,Equipment,5023,Revenue,EDUCATIONAL SUPPLIES.CURRICULUM
21-JAN-2022,7012833,-0.01,EON CONTROL SOLUTIONS LIMITED,400441,"Health, Education, Care and Safeguarding",Children's & Education Services,103,Supplies and Services,504,Miscellaneous Expenses,5034,Revenue,REPAIRS & MAINTENANCE.REPAIRS & MAINTENANCE
21-JAN-2022,7012833,-0.01,EON CONTROL SOLUTIONS LIMITED,400441,"Health, Education, Care and Safeguarding",Children's & Education Services,103,Premises-Related Expenditure,502,Energy Costs,5006,Revenue,REPAIRS & MAINTENANCE.REPAIRS & MAINTENANCE
21-JAN-2022,7012833,-0.01,EON CONTROL SOLUTIONS LIMITED,400441,"Health, Education, Care and Safeguarding",Children's & Education Services,103,Supplies and Services,504,Equipment,5023,Revenue,REPAIRS & MAINTENANCE.REPAIRS & MAINTENANCE
21-JAN-2022,7012833,23.87,EON CONTROL SOLUTIONS LIMITED,400441,"Health, Education, Care and Safeguarding",Children's & Education Services,103,Premises-Related Expenditure,502,Energy Costs,5006,Revenue,REPAIRS & MAINTENANCE.REPAIRS & MAINTENANCE
21-JAN-2022,7012833,48.47,EON CONTROL SOLUTIONS LIMITED,400441,"Health, Education, Care and Safeguarding",Children's & Education Services,103,Supplies and Services,504,Miscellaneous Expenses,5034,Revenue,REPAIRS & MAINTENANCE.REPAIRS & MAINTENANCE
21-JAN-2022,7012833,70.19,EON CONTROL SOLUTIONS LIMITED,400441,"Health, Education, Care and Safeguarding",Children's & Education Services,103,Premises-Related Expenditure,502,Energy Costs,5006,Revenue,REPAIRS & MAINTENANCE.REPAIRS & MAINTENANCE
21-JAN-2022,7012833,240.47,EON CONTROL SOLUTIONS LIMITED,400441,"Health, Education, Care and Safeguarding",Children's & Education Services,103,Supplies and Services,504,Equipment,5023,Revenue,REPAIRS & MAINTENANCE.REPAIRS & MAINTENANCE
21-JAN-2022,7012834,19,BOOK WHEN,401025,Corporate Strategy,Children's & Education Services,103,Supplies and Services,504,Equipment,5023,Revenue,ICT.SOFTWARE
21-JAN-2022,7012835,17.25,ROYAL MAIL - PARCEL FORCE,202105,"Health, Education, Care and Safeguarding",Children's & Education Services,103,Supplies and Services,504,Miscellaneous Expenses,5034,Revenue,MAIL SERVICES.POSTAGE
21-JAN-2022,7012835,17.25,ROYAL MAIL - PARCEL FORCE,202105,"Health, Education, Care and Safeguarding",Children's & Education Services,103,Supplies and Services,504,Miscellaneous Expenses,5034,Revenue,MAIL SERVICES.POSTAGE
21-JAN-2022,7012836,0.01,MENKIND,400921,"Health, Education, Care and Safeguarding",Children's & Education Services,103,Supplies and Services,504,Miscellaneous Expenses,5034,Revenue,PUBLIC HEALTH.CONSUMABLES
21-JAN-2022,7012836,28.32,MENKIND,400921,"Health, Education, Care and Safeguarding",Children's & Education Services,103,Supplies and Services,504,Miscellaneous Expenses,5034,Revenue,PUBLIC HEALTH.CONSUMABLES
21-JAN-2022,7012837,40,THE SIR WILLIAM FOX HO,400739,"Environment, Housing & Leisure",Housing Services,108,Third Party Payments,505,Private Contractors,5042,Revenue,NON INFLUENCIBLE.INDIVIDUAL
21-JAN-2022,7012837,80,THE SIR WILLIAM FOX HO,400739,"Environment, Housing & Leisure",Housing Services,108,Third Party Payments,505,Private Contractors,5042,Revenue,NON INFLUENCIBLE.INDIVIDUAL
21-JAN-2022,7012837,80,THE SIR WILLIAM FOX HO,400739,"Environment, Housing & Leisure",Housing Services,108,Third Party Payments,505,Private Contractors,5042,Revenue,NON INFLUENCIBLE.INDIVIDUAL
21-JAN-2022,7012837,80,THE SIR WILLIAM FOX HO,400739,"Environment, Housing & Leisure",Housing Services,108,Third Party Payments,505,Private Contractors,5042,Revenue,NON INFLUENCIBLE.INDIVIDUAL
21-JAN-2022,7012837,120,THE SIR WILLIAM FOX HO,400739,"Environment, Housing & Leisure",Housing Services,108,Third Party Payments,505,Private Contractors,5042,Revenue,NON INFLUENCIBLE.INDIVIDUAL
21-JAN-2022,7012838,-99,BUNDLEDOCS,394983,"Health, Education, Care and Safeguarding",Children's & Education Services,103,Supplies and Services,504,Miscellaneous Expenses,5034,Revenue,ICT.SOFTWARE
21-JAN-2022,7012838,82.5,BUNDLEDOCS,394983,"Health, Education, Care and Safeguarding",Children's & Education Services,103,Supplies and Services,504,Miscellaneous Expenses,5034,Revenue,ICT.SOFTWARE
21-JAN-2022,7012838,99,BUNDLEDOCS,394983,"Health, Education, Care and Safeguarding",Children's & Education Services,103,Supplies and Services,504,Miscellaneous Expenses,5034,Revenue,ICT.SOFTWARE
21-JAN-2022,7012839,6.08,BLUE LINE TAXIS,002700,"Health, Education, Care and Safeguarding",Children's & Education Services,103,Third Party Payments,505,Other Establishments,5041,Revenue,PUBLIC TRANSPORT.TAXI SERVICES
21-JAN-2022,7012839,6.17,BLUE LINE TAXIS,002700,"Health, Education, Care and Safeguarding",Children's & Education Services,103,Third Party Payments,505,Other Establishments,5041,Revenue,PUBLIC TRANSPORT.TAXI SERVICES
21-JAN-2022,7012840,30,THE VOUCHER MARKET,400324,"Health, Education, Care and Safeguarding",Children's & Education Services,103,Third Party Payments,505,Other Establishments,5041,Revenue,PRINTING SERVICES.PRINTING
21-JAN-2022,7012841,31.11,THEMEL ROSEGUES,400318,"Environment, Housing & Leisure",Housing Services,108,Third Party Payments,505,Private Contractors,5042,Revenue,HUMAN RESOURCES.ACCOMMODATION
21-JAN-2022,7012841,124.44,THEMEL ROSEGUES,400318,"Environment, Housing & Leisure",Housing Services,108,Third Party Payments,505,Private Contractors,5042,Revenue,HUMAN RESOURCES.ACCOMMODATION
21-JAN-2022,7012841,124.44,THEMEL ROSEGUES,400318,"Environment, Housing & Leisure",Housing Services,108,Third Party Payments,505,Private Contractors,5042,Revenue,HUMAN RESOURCES.ACCOMMODATION
21-JAN-2022,7012841,217.78,THEMEL ROSEGUES,400318,"Environment, Housing & Leisure",Housing Services,108,Third Party Payments,505,Private Contractors,5042,Revenue,HUMAN RESOURCES.ACCOMMODATION
21-JAN-2022,7012841,217.78,THEMEL ROSEGUES,400318,"Environment, Housing & Leisure",Housing Services,108,Third Party Payments,505,Private Contractors,5042,Revenue,HUMAN RESOURCES.ACCOMMODATION
21-JAN-2022,7012841,404.44,THEMEL ROSEGUES,400318,"Environment, Housing & Leisure",Housing Services,108,Third Party Payments,505,Private Contractors,5042,Revenue,HUMAN RESOURCES.ACCOMMODATION
21-JAN-2022,7012842,57.8,FORMATION NE LTD,399560,Commissioning & Asset Management,Children's & Education Services,103,Supplies and Services,504,Equipment,5023,Revenue,REPAIRS & MAINTENANCE.REPAIRS & MAINTENANCE
21-JAN-2022,7012842,145.5,FORMATION NE LTD,399560,Commissioning & Asset Management,Unallocated,N/A,Supplies and Services,504,Equipment,5023,Revenue,REPAIRS & MAINTENANCE.REPAIRS & MAINTENANCE
21-JAN-2022,7012842,672.2,FORMATION NE LTD,399560,Commissioning & Asset Management,Children's & Education Services,103,Supplies and Services,504,Equipment,5023,Revenue,REPAIRS & MAINTENANCE.REPAIRS & MAINTENANCE
21-JAN-2022,7012843,-22.4,JURYS INN NEWCASTLE,366318,"Environment, Housing & Leisure",Housing Services,108,Third Party Payments,505,Private Contractors,5042,Revenue,
21-JAN-2022,7012843,285.51,JURYS INN NEWCASTLE,366318,Capital,Capital,Capital,Third Party Payments,505,Private Contractors,5042,Capital,
21-JAN-2022,7012844,-55.2,TOTAL PRODUCE GATESHEAD,399244,Commissioning & Asset Management,Children's & Education Services,103,Supplies and Services,504,Equipment,5023,Revenue,CATERING.FOOD & BEVERAGES
21-JAN-2022,7012844,-35.98,TOTAL PRODUCE GATESHEAD,399244,Commissioning & Asset Management,Children's & Education Services,103,Supplies and Services,504,Equipment,5023,Revenue,CATERING.FOOD & BEVERAGES
21-JAN-2022,7012844,-21,TOTAL PRODUCE GATESHEAD,399244,Commissioning & Asset Management,Children's & Education Services,103,Supplies and Services,504,Equipment,5023,Revenue,CATERING.FOOD & BEVERAGES
21-JAN-2022,7012844,-21,TOTAL PRODUCE GATESHEAD,399244,Commissioning & Asset Management,Children's & Education Services,103,Supplies and Services,504,Equipment,5023,Revenue,CATERING.FOOD & BEVERAGES
21-JAN-2022,7012844,-20.38,TOTAL PRODUCE GATESHEAD,399244,Commissioning & Asset Management,Children's & Education Services,103,Supplies and Services,504,Equipment,5023,Revenue,CATERING.FOOD & BEVERAGES
21-JAN-2022,7012844,-19.98,TOTAL PRODUCE GATESHEAD,399244,Commissioning & Asset Management,Children's & Education Services,103,Supplies and Services,504,Equipment,5023,Revenue,CATERING.FOOD & BEVERAGES
21-JAN-2022,7012844,-13.2,TOTAL PRODUCE GATESHEAD,399244,Commissioning & Asset Management,Children's & Education Services,103,Supplies and Services,504,Equipment,5023,Revenue,CATERING.FOOD & BEVERAGES
21-JAN-2022,7012844,-13.2,TOTAL PRODUCE GATESHEAD,399244,Commissioning & Asset Management,Children's & Education Services,103,Supplies and Services,504,Equipment,5023,Revenue,CATERING.FOOD & BEVERAGES
21-JAN-2022,7012844,-11,TOTAL PRODUCE GATESHEAD,399244,Commissioning & Asset Management,Children's & Education Services,103,Supplies and Services,504,Equipment,5023,Revenue,CATERING.FOOD & BEVERAGES
21-JAN-2022,7012844,-10.98,TOTAL PRODUCE GATESHEAD,399244,Commissioning & Asset Management,Children's & Education Services,103,Supplies and Services,504,Equipment,5023,Revenue,CATERING.FOOD & BEVERAGES
21-JAN-2022,7012844,-10.5,TOTAL PRODUCE GATESHEAD,399244,Commissioning & Asset Management,Children's & Education Services,103,Supplies and Services,504,Equipment,5023,Revenue,CATERING.FOOD & BEVERAGES
21-JAN-2022,7012844,-9.9,TOTAL PRODUCE GATESHEAD,399244,Commissioning & Asset Management,Children's & Education Services,103,Supplies and Services,504,Equipment,5023,Revenue,CATERING.FOOD & BEVERAGES
21-JAN-2022,7012844,-8.73,TOTAL PRODUCE GATESHEAD,399244,Commissioning & Asset Management,Children's & Education Services,103,Supplies and Services,504,Equipment,5023,Revenue,CATERING.FOOD & BEVERAGES
21-JAN-2022,7012844,-8.72,TOTAL PRODUCE GATESHEAD,399244,Commissioning & Asset Management,Children's & Education Services,103,Supplies and Services,504,Equipment,5023,Revenue,CATERING.FOOD & BEVERAGES
21-JAN-2022,7012844,-8.45,TOTAL PRODUCE GATESHEAD,399244,Commissioning & Asset Management,Children's & Education Services,103,Supplies and Services,504,Equipment,5023,Revenue,CATERING.FOOD & BEVERAGES
21-JAN-2022,7012844,-7.32,TOTAL PRODUCE GATESHEAD,399244,Commissioning & Asset Management,Children's & Education Services,103,Supplies and Services,504,Equipment,5023,Revenue,CATERING.FOOD & BEVERAGES
21-JAN-2022,7012844,-7.3,TOTAL PRODUCE GATESHEAD,399244,"Environment, Housing & Leisure",Adult Social Care,101,Supplies and Services,504,Equipment,5023,Revenue,CATERING.FOOD & BEVERAGES
21-JAN-2022,7012844,-7.3,TOTAL PRODUCE GATESHEAD,399244,Commissioning & Asset Management,Children's & Education Services,103,Supplies and Services,504,Equipment,5023,Revenue,CATERING.FOOD & BEVERAGES
21-JAN-2022,7012844,-6.1,TOTAL PRODUCE GATESHEAD,399244,Commissioning & Asset Management,Children's & Education Services,103,Supplies and Services,504,Equipment,5023,Revenue,CATERING.FOOD & BEVERAGES
21-JAN-2022,7012844,-5.25,TOTAL PRODUCE GATESHEAD,399244,Commissioning & Asset Management,Children's & Education Services,103,Supplies and Services,504,Equipment,5023,Revenue,CATERING.FOOD & BEVERAGES
21-JAN-2022,7012844,-4.95,TOTAL PRODUCE GATESHEAD,399244,Commissioning & Asset Management,Children's & Education Services,103,Supplies and Services,504,Equipment,5023,Revenue,CATERING.FOOD & BEVERAGES
21-JAN-2022,7012844,-4.64,TOTAL PRODUCE GATESHEAD,399244,Commissioning & Asset Management,Children's & Education Services,103,Supplies and Services,504,Equipment,5023,Revenue,CATERING.FOOD & BEVERAGES
21-JAN-2022,7012844,-4.62,TOTAL PRODUCE GATESHEAD,399244,"Environment, Housing & Leisure",Adult Social Care,101,Supplies and Services,504,Equipment,5023,Revenue,CATERING.FOOD & BEVERAGES
21-JAN-2022,7012844,-4.5,TOTAL PRODUCE GATESHEAD,399244,Commissioning & Asset Management,Children's & Education Services,103,Supplies and Services,504,Equipment,5023,Revenue,CATERING.FOOD & BEVERAGES
21-JAN-2022,7012844,-4.5,TOTAL PRODUCE GATESHEAD,399244,Commissioning & Asset Management,Children's & Education Services,103,Supplies and Services,504,Equipment,5023,Revenue,CATERING.FOOD & BEVERAGES
21-JAN-2022,7012844,-4.4,TOTAL PRODUCE GATESHEAD,399244,Commissioning & Asset Management,Children's & Education Services,103,Supplies and Services,504,Equipment,5023,Revenue,CATERING.FOOD & BEVERAGES
21-JAN-2022,7012844,-4.4,TOTAL PRODUCE GATESHEAD,399244,Commissioning & Asset Management,Children's & Education Services,103,Supplies and Services,504,Equipment,5023,Revenue,CATERING.FOOD & BEVERAGES
21-JAN-2022,7012844,-4.36,TOTAL PRODUCE GATESHEAD,399244,Commissioning & Asset Management,Children's & Education Services,103,Supplies and Services,504,Equipment,5023,Revenue,CATERING.FOOD & BEVERAGES
21-JAN-2022,7012844,-4.2,TOTAL PRODUCE GATESHEAD,399244,Commissioning & Asset Management,Children's & Education Services,103,Supplies and Services,504,Equipment,5023,Revenue,CATERING.FOOD & BEVERAGES
21-JAN-2022,7012844,-3.79,TOTAL PRODUCE GATESHEAD,399244,Commissioning & Asset Management,Children's & Education Services,103,Supplies and Services,504,Equipment,5023,Revenue,CATERING.FOOD & BEVERAGES
21-JAN-2022,7012844,-3.79,TOTAL PRODUCE GATESHEAD,399244,Commissioning & Asset Management,Children's & Education Services,103,Supplies and Services,504,Equipment,5023,Revenue,CATERING.FOOD & BEVERAGES
21-JAN-2022,7012844,-3.66,TOTAL PRODUCE GATESHEAD,399244,Commissioning & Asset Management,Children's & Education Services,103,Supplies and Services,504,Equipment,5023,Revenue,CATERING.FOOD & BEVERAGES
21-JAN-2022,7012844,-3.6,TOTAL PRODUCE GATESHEAD,399244,Commissioning & Asset Management,Children's & Education Services,103,Supplies and Services,504,Equipment,5023,Revenue,CATERING.FOOD & BEVERAGES
21-JAN-2022,7012844,-3.08,TOTAL PRODUCE GATESHEAD,399244,"Environment, Housing & Leisure",Adult Social Care,101,Supplies and Services,504,Equipment,5023,Revenue,CATERING.FOOD & BEVERAGES
21-JAN-2022,7012844,-3,TOTAL PRODUCE GATESHEAD,399244,Commissioning & Asset Management,Children's & Education Services,103,Supplies and Services,504,Equipment,5023,Revenue,CATERING.FOOD & BEVERAGES
21-JAN-2022,7012844,-2.82,TOTAL PRODUCE GATESHEAD,399244,Commissioning & Asset Management,Children's & Education Services,103,Supplies and Services,504,Equipment,5023,Revenue,CATERING.FOOD & BEVERAGES
21-JAN-2022,7012844,-2.82,TOTAL PRODUCE GATESHEAD,399244,Commissioning & Asset Management,Children's & Education Services,103,Supplies and Services,504,Equipment,5023,Revenue,CATERING.FOOD & BEVERAGES
21-JAN-2022,7012844,-2.44,TOTAL PRODUCE GATESHEAD,399244,Commissioning & Asset Management,Children's & Education Services,103,Supplies and Services,504,Equipment,5023,Revenue,CATERING.FOOD & BEVERAGES
21-JAN-2022,7012844,-2.44,TOTAL PRODUCE GATESHEAD,399244,Commissioning & Asset Management,Children's & Education Services,103,Supplies and Services,504,Equipment,5023,Revenue,CATERING.FOOD & BEVERAGES
21-JAN-2022,7012844,-2.37,TOTAL PRODUCE GATESHEAD,399244,Commissioning & Asset Management,Children's & Education Services,103,Supplies and Services,504,Equipment,5023,Revenue,CATERING.FOOD & BEVERAGES
21-JAN-2022,7012844,-2.25,TOTAL PRODUCE GATESHEAD,399244,Commissioning & Asset Management,Children's & Education Services,103,Supplies and Services,504,Equipment,5023,Revenue,CATERING.FOOD & BEVERAGES
21-JAN-2022,7012844,-2.2,TOTAL PRODUCE GATESHEAD,399244,Commissioning & Asset Management,Children's & Education Services,103,Supplies and Services,504,Equipment,5023,Revenue,CATERING.FOOD & BEVERAGES
21-JAN-2022,7012844,-2.2,TOTAL PRODUCE GATESHEAD,399244,Commissioning & Asset Management,Children's & Education Services,103,Supplies and Services,504,Equipment,5023,Revenue,CATERING.FOOD & BEVERAGES
21-JAN-2022,7012844,-2.18,TOTAL PRODUCE GATESHEAD,399244,Commissioning & Asset Management,Children's & Education Services,103,Supplies and Services,504,Equipment,5023,Revenue,CATERING.FOOD & BEVERAGES
21-JAN-2022,7012844,-2.12,TOTAL PRODUCE GATESHEAD,399244,Commissioning & Asset Management,Children's & Education Services,103,Supplies and Services,504,Equipment,5023,Revenue,CATERING.FOOD & BEVERAGES
21-JAN-2022,7012844,-1.94,TOTAL PRODUCE GATESHEAD,399244,Commissioning & Asset Management,Children's & Education Services,103,Supplies and Services,504,Equipment,5023,Revenue,CATERING.FOOD & BEVERAGES
21-JAN-2022,7012844,-1.94,TOTAL PRODUCE GATESHEAD,399244,Commissioning & Asset Management,Children's & Education Services,103,Supplies and Services,504,Equipment,5023,Revenue,CATERING.FOOD & BEVERAGES
21-JAN-2022,7012844,-1.94,TOTAL PRODUCE GATESHEAD,399244,Commissioning & Asset Management,Children's & Education Services,103,Supplies and Services,504,Equipment,5023,Revenue,CATERING.FOOD & BEVERAGES
21-JAN-2022,7012844,-1.9,TOTAL PRODUCE GATESHEAD,399244,Commissioning & Asset Management,Children's & Education Services,103,Supplies and Services,504,Equipment,5023,Revenue,CATERING.FOOD & BEVERAGES
21-JAN-2022,7012844,-1.59,TOTAL PRODUCE GATESHEAD,399244,Commissioning & Asset Management,Children's & Education Services,103,Supplies and Services,504,Equipment,5023,Revenue,CATERING.FOOD & BEVERAGES
21-JAN-2022,7012844,-1.59,TOTAL PRODUCE GATESHEAD,399244,Commissioning & Asset Management,Children's & Education Services,103,Supplies and Services,504,Equipment,5023,Revenue,CATERING.FOOD & BEVERAGES
21-JAN-2022,7012844,-1.54,TOTAL PRODUCE GATESHEAD,399244,"Environment, Housing & Leisure",Adult Social Care,101,Supplies and Services,504,Equipment,5023,Revenue,CATERING.FOOD & BEVERAGES
21-JAN-2022,7012844,-1.37,TOTAL PRODUCE GATESHEAD,399244,Commissioning & Asset Management,Children's & Education Services,103,Supplies and Services,504,Equipment,5023,Revenue,CATERING.FOOD & BEVERAGES
21-JAN-2022,7012844,-1.28,TOTAL PRODUCE GATESHEAD,399244,Commissioning & Asset Management,Children's & Education Services,103,Supplies and Services,504,Equipment,5023,Revenue,CATERING.FOOD & BEVERAGES
21-JAN-2022,7012844,-1.28,TOTAL PRODUCE GATESHEAD,399244,Commissioning & Asset Management,Children's & Education Services,103,Supplies and Services,504,Equipment,5023,Revenue,CATERING.FOOD & BEVERAGES
21-JAN-2022,7012844,-1.28,TOTAL PRODUCE GATESHEAD,399244,Commissioning & Asset Management,Children's & Education Services,103,Supplies and Services,504,Equipment,5023,Revenue,CATERING.FOOD & BEVERAGES
21-JAN-2022,7012844,-1.28,TOTAL PRODUCE GATESHEAD,399244,Commissioning & Asset Management,Children's & Education Services,103,Supplies and Services,504,Equipment,5023,Revenue,CATERING.FOOD & BEVERAGES
21-JAN-2022,7012844,-1.28,TOTAL PRODUCE GATESHEAD,399244,Commissioning & Asset Management,Children's & Education Services,103,Supplies and Services,504,Equipment,5023,Revenue,CATERING.FOOD & BEVERAGES
21-JAN-2022,7012844,-1.22,TOTAL PRODUCE GATESHEAD,399244,Commissioning & Asset Management,Children's & Education Services,103,Supplies and Services,504,Equipment,5023,Revenue,CATERING.FOOD & BEVERAGES
21-JAN-2022,7012844,-1.22,TOTAL PRODUCE GATESHEAD,399244,Commissioning & Asset Management,Children's & Education Services,103,Supplies and Services,504,Equipment,5023,Revenue,CATERING.FOOD & BEVERAGES
21-JAN-2022,7012844,-1.09,TOTAL PRODUCE GATESHEAD,399244,Commissioning & Asset Management,Children's & Education Services,103,Supplies and Services,504,Equipment,5023,Revenue,CATERING.FOOD & BEVERAGES
21-JAN-2022,7012844,-1.09,TOTAL PRODUCE GATESHEAD,399244,Commissioning & Asset Management,Children's & Education Services,103,Supplies and Services,504,Equipment,5023,Revenue,CATERING.FOOD & BEVERAGES
21-JAN-2022,7012844,-1.09,TOTAL PRODUCE GATESHEAD,399244,Commissioning & Asset Management,Children's & Education Services,103,Supplies and Services,504,Equipment,5023,Revenue,CATERING.FOOD & BEVERAGES
21-JAN-2022,7012844,-1.09,TOTAL PRODUCE GATESHEAD,399244,Commissioning & Asset Management,Children's & Education Services,103,Supplies and Services,504,Equipment,5023,Revenue,CATERING.FOOD & BEVERAGES
21-JAN-2022,7012844,-1.09,TOTAL PRODUCE GATESHEAD,399244,Commissioning & Asset Management,Children's & Education Services,103,Supplies and Services,504,Equipment,5023,Revenue,CATERING.FOOD & BEVERAGES
21-JAN-2022,7012844,-1.09,TOTAL PRODUCE GATESHEAD,399244,Commissioning & Asset Management,Children's & Education Services,103,Supplies and Services,504,Equipment,5023,Revenue,CATERING.FOOD & BEVERAGES
21-JAN-2022,7012844,-0.97,TOTAL PRODUCE GATESHEAD,399244,Commissioning & Asset Management,Children's & Education Services,103,Supplies and Services,504,Equipment,5023,Revenue,CATERING.FOOD & BEVERAGES
21-JAN-2022,7012844,-0.97,TOTAL PRODUCE GATESHEAD,399244,Commissioning & Asset Management,Children's & Education Services,103,Supplies and Services,504,Equipment,5023,Revenue,CATERING.FOOD & BEVERAGES
21-JAN-2022,7012844,-0.97,TOTAL PRODUCE GATESHEAD,399244,Commissioning & Asset Management,Children's & Education Services,103,Supplies and Services,504,Equipment,5023,Revenue,CATERING.FOOD & BEVERAGES
21-JAN-2022,7012844,-0.95,TOTAL PRODUCE GATESHEAD,399244,Commissioning & Asset Management,Children's & Education Services,103,Supplies and Services,504,Equipment,5023,Revenue,CATERING.FOOD & BEVERAGES
21-JAN-2022,7012844,-0.67,TOTAL PRODUCE GATESHEAD,399244,Commissioning & Asset Management,Children's & Education Services,103,Supplies and Services,504,Equipment,5023,Revenue,CATERING.FOOD & BEVERAGES
21-JAN-2022,7012844,0.38,TOTAL PRODUCE GATESHEAD,399244,Commissioning & Asset Management,Children's & Education Services,103,Supplies and Services,504,Equipment,5023,Revenue,CATERING.FOOD & BEVERAGES
21-JAN-2022,7012844,0.4,TOTAL PRODUCE GATESHEAD,399244,Commissioning & Asset Management,Children's & Education Services,103,Supplies and Services,504,Equipment,5023,Revenue,CATERING.FOOD & BEVERAGES
21-JAN-2022,7012844,0.4,TOTAL PRODUCE GATESHEAD,399244,Commissioning & Asset Management,Children's & Education Services,103,Supplies and Services,504,Equipment,5023,Revenue,CATERING.FOOD & BEVERAGES
21-JAN-2022,7012844,0.4,TOTAL PRODUCE GATESHEAD,399244,Commissioning & Asset Management,Children's & Education Services,103,Supplies and Services,504,Equipment,5023,Revenue,CATERING.FOOD & BEVERAGES
21-JAN-2022,7012844,0.4,TOTAL PRODUCE GATESHEAD,399244,Commissioning & Asset Management,Children's & Education Services,103,Supplies and Services,504,Equipment,5023,Revenue,CATERING.FOOD & BEVERAGES
21-JAN-2022,7012844,0.4,TOTAL PRODUCE GATESHEAD,399244,Commissioning & Asset Management,Children's & Education Services,103,Supplies and Services,504,Equipment,5023,Revenue,CATERING.FOOD & BEVERAGES
21-JAN-2022,7012844,0.4,TOTAL PRODUCE GATESHEAD,399244,Commissioning & Asset Management,Children's & Education Services,103,Supplies and Services,504,Equipment,5023,Revenue,CATERING.FOOD & BEVERAGES
21-JAN-2022,7012844,0.4,TOTAL PRODUCE GATESHEAD,399244,Commissioning & Asset Management,Children's & Education Services,103,Supplies and Services,504,Equipment,5023,Revenue,CATERING.FOOD & BEVERAGES
21-JAN-2022,7012844,0.4,TOTAL PRODUCE GATESHEAD,399244,Commissioning & Asset Management,Children's & Education Services,103,Supplies and Services,504,Equipment,5023,Revenue,CATERING.FOOD & BEVERAGES
21-JAN-2022,7012844,0.4,TOTAL PRODUCE GATESHEAD,399244,Commissioning & Asset Management,Children's & Education Services,103,Supplies and Services,504,Equipment,5023,Revenue,CATERING.FOOD & BEVERAGES
21-JAN-2022,7012844,0.4,TOTAL PRODUCE GATESHEAD,399244,Commissioning & Asset Management,Children's & Education Services,103,Supplies and Services,504,Equipment,5023,Revenue,CATERING.FOOD & BEVERAGES
21-JAN-2022,7012844,0.42,TOTAL PRODUCE GATESHEAD,399244,"Environment, Housing & Leisure",Adult Social Care,101,Supplies and Services,504,Equipment,5023,Revenue,CATERING.FOOD & BEVERAGES
21-JAN-2022,7012844,0.42,TOTAL PRODUCE GATESHEAD,399244,"Environment, Housing & Leisure",Adult Social Care,101,Supplies and Services,504,Equipment,5023,Revenue,CATERING.FOOD & BEVERAGES
21-JAN-2022,7012844,0.42,TOTAL PRODUCE GATESHEAD,399244,Commissioning & Asset Management,Children's & Education Services,103,Supplies and Services,504,Equipment,5023,Revenue,CATERING.FOOD & BEVERAGES
21-JAN-2022,7012844,0.42,TOTAL PRODUCE GATESHEAD,399244,Commissioning & Asset Management,Children's & Education Services,103,Supplies and Services,504,Equipment,5023,Revenue,CATERING.FOOD & BEVERAGES
21-JAN-2022,7012844,0.42,TOTAL PRODUCE GATESHEAD,399244,Commissioning & Asset Management,Children's & Education Services,103,Supplies and Services,504,Equipment,5023,Revenue,CATERING.FOOD & BEVERAGES
21-JAN-2022,7012844,0.44,TOTAL PRODUCE GATESHEAD,399244,Commissioning & Asset Management,Children's & Education Services,103,Supplies and Services,504,Equipment,5023,Revenue,CATERING.FOOD & BEVERAGES
21-JAN-2022,7012844,0.44,TOTAL PRODUCE GATESHEAD,399244,Commissioning & Asset Management,Children's & Education Services,103,Supplies and Services,504,Equipment,5023,Revenue,CATERING.FOOD & BEVERAGES
21-JAN-2022,7012844,0.44,TOTAL PRODUCE GATESHEAD,399244,Commissioning & Asset Management,Children's & Education Services,103,Supplies and Services,504,Equipment,5023,Revenue,CATERING.FOOD & BEVERAGES
21-JAN-2022,7012844,0.44,TOTAL PRODUCE GATESHEAD,399244,Commissioning & Asset Management,Children's & Education Services,103,Supplies and Services,504,Equipment,5023,Revenue,CATERING.FOOD & BEVERAGES
21-JAN-2022,7012844,0.44,TOTAL PRODUCE GATESHEAD,399244,Commissioning & Asset Management,Children's & Education Services,103,Supplies and Services,504,Equipment,5023,Revenue,CATERING.FOOD & BEVERAGES
21-JAN-2022,7012844,0.44,TOTAL PRODUCE GATESHEAD,399244,Commissioning & Asset Management,Children's & Education Services,103,Supplies and Services,504,Equipment,5023,Revenue,CATERING.FOOD & BEVERAGES
21-JAN-2022,7012844,0.44,TOTAL PRODUCE GATESHEAD,399244,Commissioning & Asset Management,Children's & Education Services,103,Supplies and Services,504,Equipment,5023,Revenue,CATERING.FOOD & BEVERAGES
21-JAN-2022,7012844,0.44,TOTAL PRODUCE GATESHEAD,399244,Commissioning & Asset Management,Children's & Education Services,103,Supplies and Services,504,Equipment,5023,Revenue,CATERING.FOOD & BEVERAGES
21-JAN-2022,7012844,0.44,TOTAL PRODUCE GATESHEAD,399244,Commissioning & Asset Management,Children's & Education Services,103,Supplies and Services,504,Equipment,5023,Revenue,CATERING.FOOD & BEVERAGES
21-JAN-2022,7012844,0.44,TOTAL PRODUCE GATESHEAD,399244,Commissioning & Asset Management,Children's & Education Services,103,Supplies and Services,504,Equipment,5023,Revenue,CATERING.FOOD & BEVERAGES
21-JAN-2022,7012844,0.44,TOTAL PRODUCE GATESHEAD,399244,Commissioning & Asset Management,Children's & Education Services,103,Supplies and Services,504,Equipment,5023,Revenue,CATERING.FOOD & BEVERAGES
21-JAN-2022,7012844,0.44,TOTAL PRODUCE GATESHEAD,399244,Commissioning & Asset Management,Children's & Education Services,103,Supplies and Services,504,Equipment,5023,Revenue,CATERING.FOOD & BEVERAGES
21-JAN-2022,7012844,0.46,TOTAL PRODUCE GATESHEAD,399244,"Environment, Housing & Leisure",Adult Social Care,101,Supplies and Services,504,Equipment,5023,Revenue,CATERING.FOOD & BEVERAGES
21-JAN-2022,7012844,0.46,TOTAL PRODUCE GATESHEAD,399244,Commissioning & Asset Management,Children's & Education Services,103,Supplies and Services,504,Equipment,5023,Revenue,CATERING.FOOD & BEVERAGES
21-JAN-2022,7012844,0.5,TOTAL PRODUCE GATESHEAD,399244,Commissioning & Asset Management,Children's & Education Services,103,Supplies and Services,504,Equipment,5023,Revenue,CATERING.FOOD & BEVERAGES
21-JAN-2022,7012844,0.52,TOTAL PRODUCE GATESHEAD,399244,Commissioning & Asset Management,Children's & Education Services,103,Supplies and Services,504,Equipment,5023,Revenue,CATERING.FOOD & BEVERAGES
21-JAN-2022,7012844,0.52,TOTAL PRODUCE GATESHEAD,399244,Commissioning & Asset Management,Children's & Education Services,103,Supplies and Services,504,Equipment,5023,Revenue,CATERING.FOOD & BEVERAGES
21-JAN-2022,7012844,0.52,TOTAL PRODUCE GATESHEAD,399244,Commissioning & Asset Management,Children's & Education Services,103,Supplies and Services,504,Equipment,5023,Revenue,CATERING.FOOD & BEVERAGES
21-JAN-2022,7012844,0.52,TOTAL PRODUCE GATESHEAD,399244,Commissioning & Asset Management,Children's & Education Services,103,Supplies and Services,504,Equipment,5023,Revenue,CATERING.FOOD & BEVERAGES
21-JAN-2022,7012844,0.52,TOTAL PRODUCE GATESHEAD,399244,Commissioning & Asset Management,Children's & Education Services,103,Supplies and Services,504,Equipment,5023,Revenue,CATERING.FOOD & BEVERAGES
21-JAN-2022,7012844,0.52,TOTAL PRODUCE GATESHEAD,399244,Commissioning & Asset Management,Children's & Education Services,103,Supplies and Services,504,Equipment,5023,Revenue,CATERING.FOOD & BEVERAGES
21-JAN-2022,7012844,0.52,TOTAL PRODUCE GATESHEAD,399244,Commissioning & Asset Management,Children's & Education Services,103,Supplies and Services,504,Equipment,5023,Revenue,CATERING.FOOD & BEVERAGES
21-JAN-2022,7012844,0.52,TOTAL PRODUCE GATESHEAD,399244,Commissioning & Asset Management,Children's & Education Services,103,Supplies and Services,504,Equipment,5023,Revenue,CATERING.FOOD & BEVERAGES
21-JAN-2022,7012844,0.52,TOTAL PRODUCE GATESHEAD,399244,Commissioning & Asset Management,Children's & Education Services,103,Supplies and Services,504,Equipment,5023,Revenue,CATERING.FOOD & BEVERAGES
21-JAN-2022,7012844,0.52,TOTAL PRODUCE GATESHEAD,399244,Commissioning & Asset Management,Children's & Education Services,103,Supplies and Services,504,Equipment,5023,Revenue,CATERING.FOOD & BEVERAGES
21-JAN-2022,7012844,0.52,TOTAL PRODUCE GATESHEAD,399244,Commissioning & Asset Management,Children's & Education Services,103,Supplies and Services,504,Equipment,5023,Revenue,CATERING.FOOD & BEVERAGES
21-JAN-2022,7012844,0.52,TOTAL PRODUCE GATESHEAD,399244,Commissioning & Asset Management,Children's & Education Services,103,Supplies and Services,504,Equipment,5023,Revenue,CATERING.FOOD & BEVERAGES
21-JAN-2022,7012844,0.52,TOTAL PRODUCE GATESHEAD,399244,Commissioning & Asset Management,Children's & Education Services,103,Supplies and Services,504,Equipment,5023,Revenue,CATERING.FOOD & BEVERAGES
21-JAN-2022,7012844,0.52,TOTAL PRODUCE GATESHEAD,399244,Commissioning & Asset Management,Children's & Education Services,103,Supplies and Services,504,Equipment,5023,Revenue,CATERING.FOOD & BEVERAGES
21-JAN-2022,7012844,0.52,TOTAL PRODUCE GATESHEAD,399244,Commissioning & Asset Management,Children's & Education Services,103,Supplies and Services,504,Equipment,5023,Revenue,CATERING.FOOD & BEVERAGES
21-JAN-2022,7012844,0.52,TOTAL PRODUCE GATESHEAD,399244,Commissioning & Asset Management,Children's & Education Services,103,Supplies and Services,504,Equipment,5023,Revenue,CATERING.FOOD & BEVERAGES
21-JAN-2022,7012844,0.52,TOTAL PRODUCE GATESHEAD,399244,Commissioning & Asset Management,Children's & Education Services,103,Supplies and Services,504,Equipment,5023,Revenue,CATERING.FOOD & BEVERAGES
21-JAN-2022,7012844,0.52,TOTAL PRODUCE GATESHEAD,399244,Commissioning & Asset Management,Children's & Education Services,103,Supplies and Services,504,Equipment,5023,Revenue,CATERING.FOOD & BEVERAGES
21-JAN-2022,7012844,0.52,TOTAL PRODUCE GATESHEAD,399244,Commissioning & Asset Management,Children's & Education Services,103,Supplies and Services,504,Equipment,5023,Revenue,CATERING.FOOD & BEVERAGES
21-JAN-2022,7012844,0.52,TOTAL PRODUCE GATESHEAD,399244,Commissioning & Asset Management,Children's & Education Services,103,Supplies and Services,504,Equipment,5023,Revenue,CATERING.FOOD & BEVERAGES
21-JAN-2022,7012844,0.52,TOTAL PRODUCE GATESHEAD,399244,Commissioning & Asset Management,Children's & Education Services,103,Supplies and Services,504,Equipment,5023,Revenue,CATERING.FOOD & BEVERAGES
21-JAN-2022,7012844,0.53,TOTAL PRODUCE GATESHEAD,399244,Commissioning & Asset Management,Children's & Education Services,103,Supplies and Services,504,Equipment,5023,Revenue,CATERING.FOOD & BEVERAGES
21-JAN-2022,7012844,0.53,TOTAL PRODUCE GATESHEAD,399244,Commissioning & Asset Management,Children's & Education Services,103,Supplies and Services,504,Equipment,5023,Revenue,CATERING.FOOD & BEVERAGES
21-JAN-2022,7012844,0.53,TOTAL PRODUCE GATESHEAD,399244,Commissioning & Asset Management,Children's & Education Services,103,Supplies and Services,504,Equipment,5023,Revenue,CATERING.FOOD & BEVERAGES
21-JAN-2022,7012844,0.53,TOTAL PRODUCE GATESHEAD,399244,Commissioning & Asset Management,Children's & Education Services,103,Supplies and Services,504,Equipment,5023,Revenue,CATERING.FOOD & BEVERAGES
21-JAN-2022,7012844,0.53,TOTAL PRODUCE GATESHEAD,399244,Commissioning & Asset Management,Children's & Education Services,103,Supplies and Services,504,Equipment,5023,Revenue,CATERING.FOOD & BEVERAGES
21-JAN-2022,7012844,0.53,TOTAL PRODUCE GATESHEAD,399244,Commissioning & Asset Management,Children's & Education Services,103,Supplies and Services,504,Equipment,5023,Revenue,CATERING.FOOD & BEVERAGES
21-JAN-2022,7012844,0.53,TOTAL PRODUCE GATESHEAD,399244,Commissioning & Asset Management,Children's & Education Services,103,Supplies and Services,504,Equipment,5023,Revenue,CATERING.FOOD & BEVERAGES
21-JAN-2022,7012844,0.53,TOTAL PRODUCE GATESHEAD,399244,Commissioning & Asset Management,Children's & Education Services,103,Supplies and Services,504,Equipment,5023,Revenue,CATERING.FOOD & BEVERAGES
21-JAN-2022,7012844,0.53,TOTAL PRODUCE GATESHEAD,399244,Commissioning & Asset Management,Children's & Education Services,103,Supplies and Services,504,Equipment,5023,Revenue,CATERING.FOOD & BEVERAGES
21-JAN-2022,7012844,0.53,TOTAL PRODUCE GATESHEAD,399244,Commissioning & Asset Management,Children's & Education Services,103,Supplies and Services,504,Equipment,5023,Revenue,CATERING.FOOD & BEVERAGES
21-JAN-2022,7012844,0.53,TOTAL PRODUCE GATESHEAD,399244,Commissioning & Asset Management,Children's & Education Services,103,Supplies and Services,504,Equipment,5023,Revenue,CATERING.FOOD & BEVERAGES
21-JAN-2022,7012844,0.53,TOTAL PRODUCE GATESHEAD,399244,Commissioning & Asset Management,Children's & Education Services,103,Supplies and Services,504,Equipment,5023,Revenue,CATERING.FOOD & BEVERAGES
21-JAN-2022,7012844,0.53,TOTAL PRODUCE GATESHEAD,399244,Commissioning & Asset Management,Children's & Education Services,103,Supplies and Services,504,Equipment,5023,Revenue,CATERING.FOOD & BEVERAGES
21-JAN-2022,7012844,0.53,TOTAL PRODUCE GATESHEAD,399244,Commissioning & Asset Management,Children's & Education Services,103,Supplies and Services,504,Equipment,5023,Revenue,CATERING.FOOD & BEVERAGES
21-JAN-2022,7012844,0.56,TOTAL PRODUCE GATESHEAD,399244,"Environment, Housing & Leisure",Adult Social Care,101,Supplies and Services,504,Equipment,5023,Revenue,CATERING.FOOD & BEVERAGES
21-JAN-2022,7012844,0.56,TOTAL PRODUCE GATESHEAD,399244,Commissioning & Asset Management,Children's & Education Services,103,Supplies and Services,504,Equipment,5023,Revenue,CATERING.FOOD & BEVERAGES
21-JAN-2022,7012844,0.56,TOTAL PRODUCE GATESHEAD,399244,"Environment, Housing & Leisure",Cultural & Related Services,104,Supplies and Services,504,Equipment,5023,Revenue,CATERING.FOOD & BEVERAGES
21-JAN-2022,7012844,0.57,TOTAL PRODUCE GATESHEAD,399244,Commissioning & Asset Management,Children's & Education Services,103,Supplies and Services,504,Equipment,5023,Revenue,CATERING.FOOD & BEVERAGES
21-JAN-2022,7012844,0.57,TOTAL PRODUCE GATESHEAD,399244,Commissioning & Asset Management,Children's & Education Services,103,Supplies and Services,504,Equipment,5023,Revenue,CATERING.FOOD & BEVERAGES
21-JAN-2022,7012844,0.57,TOTAL PRODUCE GATESHEAD,399244,Commissioning & Asset Management,Children's & Education Services,103,Supplies and Services,504,Equipment,5023,Revenue,CATERING.FOOD & BEVERAGES
21-JAN-2022,7012844,0.57,TOTAL PRODUCE GATESHEAD,399244,Commissioning & Asset Management,Children's & Education Services,103,Supplies and Services,504,Equipment,5023,Revenue,CATERING.FOOD & BEVERAGES
21-JAN-2022,7012844,0.67,TOTAL PRODUCE GATESHEAD,399244,Commissioning & Asset Management,Children's & Education Services,103,Supplies and Services,504,Equipment,5023,Revenue,CATERING.FOOD & BEVERAGES
21-JAN-2022,7012844,0.67,TOTAL PRODUCE GATESHEAD,399244,Commissioning & Asset Management,Children's & Education Services,103,Supplies and Services,504,Equipment,5023,Revenue,CATERING.FOOD & BEVERAGES
21-JAN-2022,7012844,0.67,TOTAL PRODUCE GATESHEAD,399244,Commissioning & Asset Management,Children's & Education Services,103,Supplies and Services,504,Equipment,5023,Revenue,CATERING.FOOD & BEVERAGES
21-JAN-2022,7012844,0.67,TOTAL PRODUCE GATESHEAD,399244,Commissioning & Asset Management,Children's & Education Services,103,Supplies and Services,504,Equipment,5023,Revenue,CATERING.FOOD & BEVERAGES
21-JAN-2022,7012844,0.67,TOTAL PRODUCE GATESHEAD,399244,Commissioning & Asset Management,Children's & Education Services,103,Supplies and Services,504,Equipment,5023,Revenue,CATERING.FOOD & BEVERAGES
21-JAN-2022,7012844,0.69,TOTAL PRODUCE GATESHEAD,399244,Commissioning & Asset Management,Children's & Education Services,103,Supplies and Services,504,Equipment,5023,Revenue,CATERING.FOOD & BEVERAGES
21-JAN-2022,7012844,0.69,TOTAL PRODUCE GATESHEAD,399244,Commissioning & Asset Management,Children's & Education Services,103,Supplies and Services,504,Equipment,5023,Revenue,CATERING.FOOD & BEVERAGES
21-JAN-2022,7012844,0.69,TOTAL PRODUCE GATESHEAD,399244,Commissioning & Asset Management,Children's & Education Services,103,Supplies and Services,504,Equipment,5023,Revenue,CATERING.FOOD & BEVERAGES
21-JAN-2022,7012844,0.69,TOTAL PRODUCE GATESHEAD,399244,Commissioning & Asset Management,Children's & Education Services,103,Supplies and Services,504,Equipment,5023,Revenue,CATERING.FOOD & BEVERAGES
21-JAN-2022,7012844,0.69,TOTAL PRODUCE GATESHEAD,399244,Commissioning & Asset Management,Children's & Education Services,103,Supplies and Services,504,Equipment,5023,Revenue,CATERING.FOOD & BEVERAGES
21-JAN-2022,7012844,0.69,TOTAL PRODUCE GATESHEAD,399244,Commissioning & Asset Management,Children's & Education Services,103,Supplies and Services,504,Equipment,5023,Revenue,CATERING.FOOD & BEVERAGES
21-JAN-2022,7012844,0.69,TOTAL PRODUCE GATESHEAD,399244,Commissioning & Asset Management,Children's & Education Services,103,Supplies and Services,504,Equipment,5023,Revenue,CATERING.FOOD & BEVERAGES
21-JAN-2022,7012844,0.69,TOTAL PRODUCE GATESHEAD,399244,Commissioning & Asset Management,Children's & Education Services,103,Supplies and Services,504,Equipment,5023,Revenue,CATERING.FOOD & BEVERAGES
21-JAN-2022,7012844,0.69,TOTAL PRODUCE GATESHEAD,399244,Commissioning & Asset Management,Children's & Education Services,103,Supplies and Services,504,Equipment,5023,Revenue,CATERING.FOOD & BEVERAGES
21-JAN-2022,7012844,0.69,TOTAL PRODUCE GATESHEAD,399244,Commissioning & Asset Management,Children's & Education Services,103,Supplies and Services,504,Equipment,5023,Revenue,CATERING.FOOD & BEVERAGES
21-JAN-2022,7012844,0.69,TOTAL PRODUCE GATESHEAD,399244,Commissioning & Asset Management,Children's & Education Services,103,Supplies and Services,504,Equipment,5023,Revenue,CATERING.FOOD & BEVERAGES
21-JAN-2022,7012844,0.69,TOTAL PRODUCE GATESHEAD,399244,Commissioning & Asset Management,Children's & Education Services,103,Supplies and Services,504,Equipment,5023,Revenue,CATERING.FOOD & BEVERAGES
21-JAN-2022,7012844,0.69,TOTAL PRODUCE GATESHEAD,399244,Commissioning & Asset Management,Children's & Education Services,103,Supplies and Services,504,Equipment,5023,Revenue,CATERING.FOOD & BEVERAGES
21-JAN-2022,7012844,0.69,TOTAL PRODUCE GATESHEAD,399244,Commissioning & Asset Management,Children's & Education Services,103,Supplies and Services,504,Equipment,5023,Revenue,CATERING.FOOD & BEVERAGES
21-JAN-2022,7012844,0.69,TOTAL PRODUCE GATESHEAD,399244,Commissioning & Asset Management,Children's & Education Services,103,Supplies and Services,504,Equipment,5023,Revenue,CATERING.FOOD & BEVERAGES
21-JAN-2022,7012844,0.69,TOTAL PRODUCE GATESHEAD,399244,Commissioning & Asset Management,Children's & Education Services,103,Supplies and Services,504,Equipment,5023,Revenue,CATERING.FOOD & BEVERAGES
21-JAN-2022,7012844,0.69,TOTAL PRODUCE GATESHEAD,399244,Commissioning & Asset Management,Children's & Education Services,103,Supplies and Services,504,Equipment,5023,Revenue,CATERING.FOOD & BEVERAGES
21-JAN-2022,7012844,0.69,TOTAL PRODUCE GATESHEAD,399244,Commissioning & Asset Management,Children's & Education Services,103,Supplies and Services,504,Equipment,5023,Revenue,CATERING.FOOD & BEVERAGES
21-JAN-2022,7012844,0.69,TOTAL PRODUCE GATESHEAD,399244,Commissioning & Asset Management,Children's & Education Services,103,Supplies and Services,504,Equipment,5023,Revenue,CATERING.FOOD & BEVERAGES
21-JAN-2022,7012844,0.69,TOTAL PRODUCE GATESHEAD,399244,Commissioning & Asset Management,Children's & Education Services,103,Supplies and Services,504,Equipment,5023,Revenue,CATERING.FOOD & BEVERAGES
21-JAN-2022,7012844,0.69,TOTAL PRODUCE GATESHEAD,399244,Commissioning & Asset Management,Children's & Education Services,103,Supplies and Services,504,Equipment,5023,Revenue,CATERING.FOOD & BEVERAGES
21-JAN-2022,7012844,0.69,TOTAL PRODUCE GATESHEAD,399244,Commissioning & Asset Management,Children's & Education Services,103,Supplies and Services,504,Equipment,5023,Revenue,CATERING.FOOD & BEVERAGES
21-JAN-2022,7012844,0.69,TOTAL PRODUCE GATESHEAD,399244,Commissioning & Asset Management,Children's & Education Services,103,Supplies and Services,504,Equipment,5023,Revenue,CATERING.FOOD & BEVERAGES
21-JAN-2022,7012844,0.69,TOTAL PRODUCE GATESHEAD,399244,Commissioning & Asset Management,Children's & Education Services,103,Supplies and Services,504,Equipment,5023,Revenue,CATERING.FOOD & BEVERAGES
21-JAN-2022,7012844,0.69,TOTAL PRODUCE GATESHEAD,399244,Commissioning & Asset Management,Children's & Education Services,103,Supplies and Services,504,Equipment,5023,Revenue,CATERING.FOOD & BEVERAGES
21-JAN-2022,7012844,0.69,TOTAL PRODUCE GATESHEAD,399244,Commissioning & Asset Management,Children's & Education Services,103,Supplies and Services,504,Equipment,5023,Revenue,CATERING.FOOD & BEVERAGES
21-JAN-2022,7012844,0.69,TOTAL PRODUCE GATESHEAD,399244,Commissioning & Asset Management,Children's & Education Services,103,Supplies and Services,504,Equipment,5023,Revenue,CATERING.FOOD & BEVERAGES
21-JAN-2022,7012844,0.69,TOTAL PRODUCE GATESHEAD,399244,Commissioning & Asset Management,Children's & Education Services,103,Supplies and Services,504,Equipment,5023,Revenue,CATERING.FOOD & BEVERAGES
21-JAN-2022,7012844,0.69,TOTAL PRODUCE GATESHEAD,399244,Commissioning & Asset Management,Children's & Education Services,103,Supplies and Services,504,Equipment,5023,Revenue,CATERING.FOOD & BEVERAGES
21-JAN-2022,7012844,0.69,TOTAL PRODUCE GATESHEAD,399244,Commissioning & Asset Management,Children's & Education Services,103,Supplies and Services,504,Equipment,5023,Revenue,CATERING.FOOD & BEVERAGES
21-JAN-2022,7012844,0.73,TOTAL PRODUCE GATESHEAD,399244,Commissioning & Asset Management,Children's & Education Services,103,Supplies and Services,504,Equipment,5023,Revenue,CATERING.FOOD & BEVERAGES
21-JAN-2022,7012844,0.73,TOTAL PRODUCE GATESHEAD,399244,Commissioning & Asset Management,Children's & Education Services,103,Supplies and Services,504,Equipment,5023,Revenue,CATERING.FOOD & BEVERAGES
21-JAN-2022,7012844,0.73,TOTAL PRODUCE GATESHEAD,399244,Commissioning & Asset Management,Children's & Education Services,103,Supplies and Services,504,Equipment,5023,Revenue,CATERING.FOOD & BEVERAGES
21-JAN-2022,7012844,0.73,TOTAL PRODUCE GATESHEAD,399244,"Environment, Housing & Leisure",Cultural & Related Services,104,Supplies and Services,504,Equipment,5023,Revenue,CATERING.FOOD & BEVERAGES
21-JAN-2022,7012844,0.73,TOTAL PRODUCE GATESHEAD,399244,"Environment, Housing & Leisure",Cultural & Related Services,104,Supplies and Services,504,Equipment,5023,Revenue,CATERING.FOOD & BEVERAGES
21-JAN-2022,7012844,0.8,TOTAL PRODUCE GATESHEAD,399244,Commissioning & Asset Management,Children's & Education Services,103,Supplies and Services,504,Equipment,5023,Revenue,CATERING.FOOD & BEVERAGES
21-JAN-2022,7012844,0.8,TOTAL PRODUCE GATESHEAD,399244,Commissioning & Asset Management,Children's & Education Services,103,Supplies and Services,504,Equipment,5023,Revenue,CATERING.FOOD & BEVERAGES
21-JAN-2022,7012844,0.81,TOTAL PRODUCE GATESHEAD,399244,Commissioning & Asset Management,Children's & Education Services,103,Supplies and Services,504,Equipment,5023,Revenue,CATERING.FOOD & BEVERAGES
21-JAN-2022,7012844,0.81,TOTAL PRODUCE GATESHEAD,399244,Commissioning & Asset Management,Children's & Education Services,103,Supplies and Services,504,Equipment,5023,Revenue,CATERING.FOOD & BEVERAGES
21-JAN-2022,7012844,0.81,TOTAL PRODUCE GATESHEAD,399244,Commissioning & Asset Management,Children's & Education Services,103,Supplies and Services,504,Equipment,5023,Revenue,CATERING.FOOD & BEVERAGES
21-JAN-2022,7012844,0.81,TOTAL PRODUCE GATESHEAD,399244,Commissioning & Asset Management,Children's & Education Services,103,Supplies and Services,504,Equipment,5023,Revenue,CATERING.FOOD & BEVERAGES
21-JAN-2022,7012844,0.81,TOTAL PRODUCE GATESHEAD,399244,Commissioning & Asset Management,Children's & Education Services,103,Supplies and Services,504,Equipment,5023,Revenue,CATERING.FOOD & BEVERAGES
21-JAN-2022,7012844,0.81,TOTAL PRODUCE GATESHEAD,399244,Commissioning & Asset Management,Children's & Education Services,103,Supplies and Services,504,Equipment,5023,Revenue,CATERING.FOOD & BEVERAGES
21-JAN-2022,7012844,0.81,TOTAL PRODUCE GATESHEAD,399244,Commissioning & Asset Management,Children's & Education Services,103,Supplies and Services,504,Equipment,5023,Revenue,CATERING.FOOD & BEVERAGES
21-JAN-2022,7012844,0.81,TOTAL PRODUCE GATESHEAD,399244,Commissioning & Asset Management,Children's & Education Services,103,Supplies and Services,504,Equipment,5023,Revenue,CATERING.FOOD & BEVERAGES
21-JAN-2022,7012844,0.81,TOTAL PRODUCE GATESHEAD,399244,Commissioning & Asset Management,Children's & Education Services,103,Supplies and Services,504,Equipment,5023,Revenue,CATERING.FOOD & BEVERAGES
21-JAN-2022,7012844,0.81,TOTAL PRODUCE GATESHEAD,399244,Commissioning & Asset Management,Children's & Education Services,103,Supplies and Services,504,Equipment,5023,Revenue,CATERING.FOOD & BEVERAGES
21-JAN-2022,7012844,0.81,TOTAL PRODUCE GATESHEAD,399244,Commissioning & Asset Management,Children's & Education Services,103,Supplies and Services,504,Equipment,5023,Revenue,CATERING.FOOD & BEVERAGES
21-JAN-2022,7012844,0.81,TOTAL PRODUCE GATESHEAD,399244,Commissioning & Asset Management,Children's & Education Services,103,Supplies and Services,504,Equipment,5023,Revenue,CATERING.FOOD & BEVERAGES
21-JAN-2022,7012844,0.81,TOTAL PRODUCE GATESHEAD,399244,Commissioning & Asset Management,Children's & Education Services,103,Supplies and Services,504,Equipment,5023,Revenue,CATERING.FOOD & BEVERAGES
21-JAN-2022,7012844,0.81,TOTAL PRODUCE GATESHEAD,399244,Commissioning & Asset Management,Children's & Education Services,103,Supplies and Services,504,Equipment,5023,Revenue,CATERING.FOOD & BEVERAGES
21-JAN-2022,7012844,0.81,TOTAL PRODUCE GATESHEAD,399244,Commissioning & Asset Management,Children's & Education Services,103,Supplies and Services,504,Equipment,5023,Revenue,CATERING.FOOD & BEVERAGES
21-JAN-2022,7012844,0.81,TOTAL PRODUCE GATESHEAD,399244,Commissioning & Asset Management,Children's & Education Services,103,Supplies and Services,504,Equipment,5023,Revenue,CATERING.FOOD & BEVERAGES
21-JAN-2022,7012844,0.81,TOTAL PRODUCE GATESHEAD,399244,Commissioning & Asset Management,Children's & Education Services,103,Supplies and Services,504,Equipment,5023,Revenue,CATERING.FOOD & BEVERAGES
21-JAN-2022,7012844,0.81,TOTAL PRODUCE GATESHEAD,399244,Commissioning & Asset Management,Children's & Education Services,103,Supplies and Services,504,Equipment,5023,Revenue,CATERING.FOOD & BEVERAGES
21-JAN-2022,7012844,0.81,TOTAL PRODUCE GATESHEAD,399244,Commissioning & Asset Management,Children's & Education Services,103,Supplies and Services,504,Equipment,5023,Revenue,CATERING.FOOD & BEVERAGES
21-JAN-2022,7012844,0.81,TOTAL PRODUCE GATESHEAD,399244,Commissioning & Asset Management,Children's & Education Services,103,Supplies and Services,504,Equipment,5023,Revenue,CATERING.FOOD & BEVERAGES
21-JAN-2022,7012844,0.81,TOTAL PRODUCE GATESHEAD,399244,Commissioning & Asset Management,Children's & Education Services,103,Supplies and Services,504,Equipment,5023,Revenue,CATERING.FOOD & BEVERAGES
21-JAN-2022,7012844,0.81,TOTAL PRODUCE GATESHEAD,399244,Commissioning & Asset Management,Children's & Education Services,103,Supplies and Services,504,Equipment,5023,Revenue,CATERING.FOOD & BEVERAGES
21-JAN-2022,7012844,0.81,TOTAL PRODUCE GATESHEAD,399244,Commissioning & Asset Management,Children's & Education Services,103,Supplies and Services,504,Equipment,5023,Revenue,CATERING.FOOD & BEVERAGES
21-JAN-2022,7012844,0.81,TOTAL PRODUCE GATESHEAD,399244,Commissioning & Asset Management,Children's & Education Services,103,Supplies and Services,504,Equipment,5023,Revenue,CATERING.FOOD & BEVERAGES
21-JAN-2022,7012844,0.81,TOTAL PRODUCE GATESHEAD,399244,Commissioning & Asset Management,Children's & Education Services,103,Supplies and Services,504,Equipment,5023,Revenue,CATERING.FOOD & BEVERAGES
21-JAN-2022,7012844,0.81,TOTAL PRODUCE GATESHEAD,399244,Commissioning & Asset Management,Children's & Education Services,103,Supplies and Services,504,Equipment,5023,Revenue,CATERING.FOOD & BEVERAGES
21-JAN-2022,7012844,0.81,TOTAL PRODUCE GATESHEAD,399244,Commissioning & Asset Management,Children's & Education Services,103,Supplies and Services,504,Equipment,5023,Revenue,CATERING.FOOD & BEVERAGES
21-JAN-2022,7012844,0.81,TOTAL PRODUCE GATESHEAD,399244,Commissioning & Asset Management,Children's & Education Services,103,Supplies and Services,504,Equipment,5023,Revenue,CATERING.FOOD & BEVERAGES
21-JAN-2022,7012844,0.81,TOTAL PRODUCE GATESHEAD,399244,Commissioning & Asset Management,Children's & Education Services,103,Supplies and Services,504,Equipment,5023,Revenue,CATERING.FOOD & BEVERAGES
21-JAN-2022,7012844,0.81,TOTAL PRODUCE GATESHEAD,399244,Commissioning & Asset Management,Children's & Education Services,103,Supplies and Services,504,Equipment,5023,Revenue,CATERING.FOOD & BEVERAGES
21-JAN-2022,7012844,0.81,TOTAL PRODUCE GATESHEAD,399244,Commissioning & Asset Management,Children's & Education Services,103,Supplies and Services,504,Equipment,5023,Revenue,CATERING.FOOD & BEVERAGES
21-JAN-2022,7012844,0.81,TOTAL PRODUCE GATESHEAD,399244,Commissioning & Asset Management,Children's & Education Services,103,Supplies and Services,504,Equipment,5023,Revenue,CATERING.FOOD & BEVERAGES
21-JAN-2022,7012844,0.81,TOTAL PRODUCE GATESHEAD,399244,Commissioning & Asset Management,Children's & Education Services,103,Supplies and Services,504,Equipment,5023,Revenue,CATERING.FOOD & BEVERAGES
21-JAN-2022,7012844,0.81,TOTAL PRODUCE GATESHEAD,399244,Commissioning & Asset Management,Children's & Education Services,103,Supplies and Services,504,Equipment,5023,Revenue,CATERING.FOOD & BEVERAGES
21-JAN-2022,7012844,0.81,TOTAL PRODUCE GATESHEAD,399244,Commissioning & Asset Management,Children's & Education Services,103,Supplies and Services,504,Equipment,5023,Revenue,CATERING.FOOD & BEVERAGES
21-JAN-2022,7012844,0.81,TOTAL PRODUCE GATESHEAD,399244,Commissioning & Asset Management,Children's & Education Services,103,Supplies and Services,504,Equipment,5023,Revenue,CATERING.FOOD & BEVERAGES
21-JAN-2022,7012844,0.81,TOTAL PRODUCE GATESHEAD,399244,Commissioning & Asset Management,Children's & Education Services,103,Supplies and Services,504,Equipment,5023,Revenue,CATERING.FOOD & BEVERAGES
21-JAN-2022,7012844,0.81,TOTAL PRODUCE GATESHEAD,399244,Commissioning & Asset Management,Children's & Education Services,103,Supplies and Services,504,Equipment,5023,Revenue,CATERING.FOOD & BEVERAGES
21-JAN-2022,7012844,0.81,TOTAL PRODUCE GATESHEAD,399244,Commissioning & Asset Management,Children's & Education Services,103,Supplies and Services,504,Equipment,5023,Revenue,CATERING.FOOD & BEVERAGES
21-JAN-2022,7012844,0.81,TOTAL PRODUCE GATESHEAD,399244,Commissioning & Asset Management,Children's & Education Services,103,Supplies and Services,504,Equipment,5023,Revenue,CATERING.FOOD & BEVERAGES
21-JAN-2022,7012844,0.81,TOTAL PRODUCE GATESHEAD,399244,Commissioning & Asset Management,Children's & Education Services,103,Supplies and Services,504,Equipment,5023,Revenue,CATERING.FOOD & BEVERAGES
21-JAN-2022,7012844,0.81,TOTAL PRODUCE GATESHEAD,399244,Commissioning & Asset Management,Children's & Education Services,103,Supplies and Services,504,Equipment,5023,Revenue,CATERING.FOOD & BEVERAGES
21-JAN-2022,7012844,0.81,TOTAL PRODUCE GATESHEAD,399244,Commissioning & Asset Management,Children's & Education Services,103,Supplies and Services,504,Equipment,5023,Revenue,CATERING.FOOD & BEVERAGES
21-JAN-2022,7012844,0.81,TOTAL PRODUCE GATESHEAD,399244,Commissioning & Asset Management,Children's & Education Services,103,Supplies and Services,504,Equipment,5023,Revenue,CATERING.FOOD & BEVERAGES
21-JAN-2022,7012844,0.81,TOTAL PRODUCE GATESHEAD,399244,Commissioning & Asset Management,Children's & Education Services,103,Supplies and Services,504,Equipment,5023,Revenue,CATERING.FOOD & BEVERAGES
21-JAN-2022,7012844,0.81,TOTAL PRODUCE GATESHEAD,399244,Commissioning & Asset Management,Children's & Education Services,103,Supplies and Services,504,Equipment,5023,Revenue,CATERING.FOOD & BEVERAGES
21-JAN-2022,7012844,0.81,TOTAL PRODUCE GATESHEAD,399244,Commissioning & Asset Management,Children's & Education Services,103,Supplies and Services,504,Equipment,5023,Revenue,CATERING.FOOD & BEVERAGES
21-JAN-2022,7012844,0.81,TOTAL PRODUCE GATESHEAD,399244,Commissioning & Asset Management,Children's & Education Services,103,Supplies and Services,504,Equipment,5023,Revenue,CATERING.FOOD & BEVERAGES
21-JAN-2022,7012844,0.81,TOTAL PRODUCE GATESHEAD,399244,Commissioning & Asset Management,Children's & Education Services,103,Supplies and Services,504,Equipment,5023,Revenue,CATERING.FOOD & BEVERAGES
21-JAN-2022,7012844,0.81,TOTAL PRODUCE GATESHEAD,399244,Commissioning & Asset Management,Children's & Education Services,103,Supplies and Services,504,Equipment,5023,Revenue,CATERING.FOOD & BEVERAGES
21-JAN-2022,7012844,0.81,TOTAL PRODUCE GATESHEAD,399244,Commissioning & Asset Management,Children's & Education Services,103,Supplies and Services,504,Equipment,5023,Revenue,CATERING.FOOD & BEVERAGES
21-JAN-2022,7012844,0.81,TOTAL PRODUCE GATESHEAD,399244,Commissioning & Asset Management,Children's & Education Services,103,Supplies and Services,504,Equipment,5023,Revenue,CATERING.FOOD & BEVERAGES
21-JAN-2022,7012844,0.81,TOTAL PRODUCE GATESHEAD,399244,Commissioning & Asset Management,Children's & Education Services,103,Supplies and Services,504,Equipment,5023,Revenue,CATERING.FOOD & BEVERAGES
21-JAN-2022,7012844,0.84,TOTAL PRODUCE GATESHEAD,399244,Commissioning & Asset Management,Children's & Education Services,103,Supplies and Services,504,Equipment,5023,Revenue,CATERING.FOOD & BEVERAGES
21-JAN-2022,7012844,0.85,TOTAL PRODUCE GATESHEAD,399244,"Environment, Housing & Leisure",Adult Social Care,101,Supplies and Services,504,Equipment,5023,Revenue,CATERING.FOOD & BEVERAGES
21-JAN-2022,7012844,0.86,TOTAL PRODUCE GATESHEAD,399244,Commissioning & Asset Management,Children's & Education Services,103,Supplies and Services,504,Equipment,5023,Revenue,CATERING.FOOD & BEVERAGES
21-JAN-2022,7012844,0.86,TOTAL PRODUCE GATESHEAD,399244,Commissioning & Asset Management,Children's & Education Services,103,Supplies and Services,504,Equipment,5023,Revenue,CATERING.FOOD & BEVERAGES
21-JAN-2022,7012844,0.86,TOTAL PRODUCE GATESHEAD,399244,Commissioning & Asset Management,Children's & Education Services,103,Supplies and Services,504,Equipment,5023,Revenue,CATERING.FOOD & BEVERAGES
21-JAN-2022,7012844,0.86,TOTAL PRODUCE GATESHEAD,399244,Commissioning & Asset Management,Children's & Education Services,103,Supplies and Services,504,Equipment,5023,Revenue,CATERING.FOOD & BEVERAGES
21-JAN-2022,7012844,0.86,TOTAL PRODUCE GATESHEAD,399244,Commissioning & Asset Management,Children's & Education Services,103,Supplies and Services,504,Equipment,5023,Revenue,CATERING.FOOD & BEVERAGES
21-JAN-2022,7012844,0.86,TOTAL PRODUCE GATESHEAD,399244,Commissioning & Asset Management,Children's & Education Services,103,Supplies and Services,504,Equipment,5023,Revenue,CATERING.FOOD & BEVERAGES
21-JAN-2022,7012844,0.86,TOTAL PRODUCE GATESHEAD,399244,Commissioning & Asset Management,Children's & Education Services,103,Supplies and Services,504,Equipment,5023,Revenue,CATERING.FOOD & BEVERAGES
21-JAN-2022,7012844,0.86,TOTAL PRODUCE GATESHEAD,399244,Commissioning & Asset Management,Children's & Education Services,103,Supplies and Services,504,Equipment,5023,Revenue,CATERING.FOOD & BEVERAGES
21-JAN-2022,7012844,0.86,TOTAL PRODUCE GATESHEAD,399244,Commissioning & Asset Management,Children's & Education Services,103,Supplies and Services,504,Equipment,5023,Revenue,CATERING.FOOD & BEVERAGES
21-JAN-2022,7012844,0.86,TOTAL PRODUCE GATESHEAD,399244,Commissioning & Asset Management,Children's & Education Services,103,Supplies and Services,504,Equipment,5023,Revenue,CATERING.FOOD & BEVERAGES
21-JAN-2022,7012844,0.86,TOTAL PRODUCE GATESHEAD,399244,Commissioning & Asset Management,Children's & Education Services,103,Supplies and Services,504,Equipment,5023,Revenue,CATERING.FOOD & BEVERAGES
21-JAN-2022,7012844,0.86,TOTAL PRODUCE GATESHEAD,399244,Commissioning & Asset Management,Children's & Education Services,103,Supplies and Services,504,Equipment,5023,Revenue,CATERING.FOOD & BEVERAGES
21-JAN-2022,7012844,0.86,TOTAL PRODUCE GATESHEAD,399244,Commissioning & Asset Management,Children's & Education Services,103,Supplies and Services,504,Equipment,5023,Revenue,CATERING.FOOD & BEVERAGES
21-JAN-2022,7012844,0.86,TOTAL PRODUCE GATESHEAD,399244,Commissioning & Asset Management,Children's & Education Services,103,Supplies and Services,504,Equipment,5023,Revenue,CATERING.FOOD & BEVERAGES
21-JAN-2022,7012844,0.86,TOTAL PRODUCE GATESHEAD,399244,Commissioning & Asset Management,Children's & Education Services,103,Supplies and Services,504,Equipment,5023,Revenue,CATERING.FOOD & BEVERAGES
21-JAN-2022,7012844,0.86,TOTAL PRODUCE GATESHEAD,399244,Commissioning & Asset Management,Children's & Education Services,103,Supplies and Services,504,Equipment,5023,Revenue,CATERING.FOOD & BEVERAGES
21-JAN-2022,7012844,0.86,TOTAL PRODUCE GATESHEAD,399244,Commissioning & Asset Management,Children's & Education Services,103,Supplies and Services,504,Equipment,5023,Revenue,CATERING.FOOD & BEVERAGES
21-JAN-2022,7012844,0.86,TOTAL PRODUCE GATESHEAD,399244,Commissioning & Asset Management,Children's & Education Services,103,Supplies and Services,504,Equipment,5023,Revenue,CATERING.FOOD & BEVERAGES
21-JAN-2022,7012844,0.86,TOTAL PRODUCE GATESHEAD,399244,Commissioning & Asset Management,Children's & Education Services,103,Supplies and Services,504,Equipment,5023,Revenue,CATERING.FOOD & BEVERAGES
21-JAN-2022,7012844,0.86,TOTAL PRODUCE GATESHEAD,399244,Commissioning & Asset Management,Children's & Education Services,103,Supplies and Services,504,Equipment,5023,Revenue,CATERING.FOOD & BEVERAGES
21-JAN-2022,7012844,0.86,TOTAL PRODUCE GATESHEAD,399244,Commissioning & Asset Management,Children's & Education Services,103,Supplies and Services,504,Equipment,5023,Revenue,CATERING.FOOD & BEVERAGES
21-JAN-2022,7012844,0.86,TOTAL PRODUCE GATESHEAD,399244,Commissioning & Asset Management,Children's & Education Services,103,Supplies and Services,504,Equipment,5023,Revenue,CATERING.FOOD & BEVERAGES
21-JAN-2022,7012844,0.86,TOTAL PRODUCE GATESHEAD,399244,Commissioning & Asset Management,Children's & Education Services,103,Supplies and Services,504,Equipment,5023,Revenue,CATERING.FOOD & BEVERAGES
21-JAN-2022,7012844,0.86,TOTAL PRODUCE GATESHEAD,399244,Commissioning & Asset Management,Children's & Education Services,103,Supplies and Services,504,Equipment,5023,Revenue,CATERING.FOOD & BEVERAGES
21-JAN-2022,7012844,0.86,TOTAL PRODUCE GATESHEAD,399244,Commissioning & Asset Management,Children's & Education Services,103,Supplies and Services,504,Equipment,5023,Revenue,CATERING.FOOD & BEVERAGES
21-JAN-2022,7012844,0.86,TOTAL PRODUCE GATESHEAD,399244,Commissioning & Asset Management,Children's & Education Services,103,Supplies and Services,504,Equipment,5023,Revenue,CATERING.FOOD & BEVERAGES
21-JAN-2022,7012844,0.86,TOTAL PRODUCE GATESHEAD,399244,Commissioning & Asset Management,Children's & Education Services,103,Supplies and Services,504,Equipment,5023,Revenue,CATERING.FOOD & BEVERAGES
21-JAN-2022,7012844,0.86,TOTAL PRODUCE GATESHEAD,399244,Commissioning & Asset Management,Children's & Education Services,103,Supplies and Services,504,Equipment,5023,Revenue,CATERING.FOOD & BEVERAGES
21-JAN-2022,7012844,0.86,TOTAL PRODUCE GATESHEAD,399244,Commissioning & Asset Management,Children's & Education Services,103,Supplies and Services,504,Equipment,5023,Revenue,CATERING.FOOD & BEVERAGES
21-JAN-2022,7012844,0.86,TOTAL PRODUCE GATESHEAD,399244,Commissioning & Asset Management,Children's & Education Services,103,Supplies and Services,504,Equipment,5023,Revenue,CATERING.FOOD & BEVERAGES
21-JAN-2022,7012844,0.86,TOTAL PRODUCE GATESHEAD,399244,Commissioning & Asset Management,Children's & Education Services,103,Supplies and Services,504,Equipment,5023,Revenue,CATERING.FOOD & BEVERAGES
21-JAN-2022,7012844,0.86,TOTAL PRODUCE GATESHEAD,399244,Commissioning & Asset Management,Children's & Education Services,103,Supplies and Services,504,Equipment,5023,Revenue,CATERING.FOOD & BEVERAGES
21-JAN-2022,7012844,0.86,TOTAL PRODUCE GATESHEAD,399244,Commissioning & Asset Management,Children's & Education Services,103,Supplies and Services,504,Equipment,5023,Revenue,CATERING.FOOD & BEVERAGES
21-JAN-2022,7012844,0.86,TOTAL PRODUCE GATESHEAD,399244,Commissioning & Asset Management,Children's & Education Services,103,Supplies and Services,504,Equipment,5023,Revenue,CATERING.FOOD & BEVERAGES
21-JAN-2022,7012844,0.86,TOTAL PRODUCE GATESHEAD,399244,Commissioning & Asset Management,Children's & Education Services,103,Supplies and Services,504,Equipment,5023,Revenue,CATERING.FOOD & BEVERAGES
21-JAN-2022,7012844,0.86,TOTAL PRODUCE GATESHEAD,399244,Commissioning & Asset Management,Children's & Education Services,103,Supplies and Services,504,Equipment,5023,Revenue,CATERING.FOOD & BEVERAGES
21-JAN-2022,7012844,0.86,TOTAL PRODUCE GATESHEAD,399244,Commissioning & Asset Management,Children's & Education Services,103,Supplies and Services,504,Equipment,5023,Revenue,CATERING.FOOD & BEVERAGES
21-JAN-2022,7012844,0.86,TOTAL PRODUCE GATESHEAD,399244,Commissioning & Asset Management,Children's & Education Services,103,Supplies and Services,504,Equipment,5023,Revenue,CATERING.FOOD & BEVERAGES
21-JAN-2022,7012844,0.86,TOTAL PRODUCE GATESHEAD,399244,Commissioning & Asset Management,Children's & Education Services,103,Supplies and Services,504,Equipment,5023,Revenue,CATERING.FOOD & BEVERAGES
21-JAN-2022,7012844,0.86,TOTAL PRODUCE GATESHEAD,399244,Commissioning & Asset Management,Children's & Education Services,103,Supplies and Services,504,Equipment,5023,Revenue,CATERING.FOOD & BEVERAGES
21-JAN-2022,7012844,0.86,TOTAL PRODUCE GATESHEAD,399244,Commissioning & Asset Management,Children's & Education Services,103,Supplies and Services,504,Equipment,5023,Revenue,CATERING.FOOD & BEVERAGES
21-JAN-2022,7012844,0.86,TOTAL PRODUCE GATESHEAD,399244,Commissioning & Asset Management,Children's & Education Services,103,Supplies and Services,504,Equipment,5023,Revenue,CATERING.FOOD & BEVERAGES
21-JAN-2022,7012844,0.86,TOTAL PRODUCE GATESHEAD,399244,Commissioning & Asset Management,Children's & Education Services,103,Supplies and Services,504,Equipment,5023,Revenue,CATERING.FOOD & BEVERAGES
21-JAN-2022,7012844,0.86,TOTAL PRODUCE GATESHEAD,399244,Commissioning & Asset Management,Children's & Education Services,103,Supplies and Services,504,Equipment,5023,Revenue,CATERING.FOOD & BEVERAGES
21-JAN-2022,7012844,0.86,TOTAL PRODUCE GATESHEAD,399244,Commissioning & Asset Management,Children's & Education Services,103,Supplies and Services,504,Equipment,5023,Revenue,CATERING.FOOD & BEVERAGES
21-JAN-2022,7012844,0.86,TOTAL PRODUCE GATESHEAD,399244,Commissioning & Asset Management,Children's & Education Services,103,Supplies and Services,504,Equipment,5023,Revenue,CATERING.FOOD & BEVERAGES
21-JAN-2022,7012844,0.86,TOTAL PRODUCE GATESHEAD,399244,Commissioning & Asset Management,Children's & Education Services,103,Supplies and Services,504,Equipment,5023,Revenue,CATERING.FOOD & BEVERAGES
21-JAN-2022,7012844,0.86,TOTAL PRODUCE GATESHEAD,399244,Commissioning & Asset Management,Children's & Education Services,103,Supplies and Services,504,Equipment,5023,Revenue,CATERING.FOOD & BEVERAGES
21-JAN-2022,7012844,0.86,TOTAL PRODUCE GATESHEAD,399244,Commissioning & Asset Management,Children's & Education Services,103,Supplies and Services,504,Equipment,5023,Revenue,CATERING.FOOD & BEVERAGES
21-JAN-2022,7012844,0.86,TOTAL PRODUCE GATESHEAD,399244,Commissioning & Asset Management,Children's & Education Services,103,Supplies and Services,504,Equipment,5023,Revenue,CATERING.FOOD & BEVERAGES
21-JAN-2022,7012844,0.86,TOTAL PRODUCE GATESHEAD,399244,Commissioning & Asset Management,Children's & Education Services,103,Supplies and Services,504,Equipment,5023,Revenue,CATERING.FOOD & BEVERAGES
21-JAN-2022,7012844,0.86,TOTAL PRODUCE GATESHEAD,399244,Commissioning & Asset Management,Children's & Education Services,103,Supplies and Services,504,Equipment,5023,Revenue,CATERING.FOOD & BEVERAGES
21-JAN-2022,7012844,0.86,TOTAL PRODUCE GATESHEAD,399244,Commissioning & Asset Management,Children's & Education Services,103,Supplies and Services,504,Equipment,5023,Revenue,CATERING.FOOD & BEVERAGES
21-JAN-2022,7012844,0.86,TOTAL PRODUCE GATESHEAD,399244,Commissioning & Asset Management,Children's & Education Services,103,Supplies and Services,504,Equipment,5023,Revenue,CATERING.FOOD & BEVERAGES
21-JAN-2022,7012844,0.86,TOTAL PRODUCE GATESHEAD,399244,Commissioning & Asset Management,Children's & Education Services,103,Supplies and Services,504,Equipment,5023,Revenue,CATERING.FOOD & BEVERAGES
21-JAN-2022,7012844,0.86,TOTAL PRODUCE GATESHEAD,399244,Commissioning & Asset Management,Children's & Education Services,103,Supplies and Services,504,Equipment,5023,Revenue,CATERING.FOOD & BEVERAGES
21-JAN-2022,7012844,0.86,TOTAL PRODUCE GATESHEAD,399244,Commissioning & Asset Management,Children's & Education Services,103,Supplies and Services,504,Equipment,5023,Revenue,CATERING.FOOD & BEVERAGES
21-JAN-2022,7012844,0.86,TOTAL PRODUCE GATESHEAD,399244,Commissioning & Asset Management,Children's & Education Services,103,Supplies and Services,504,Equipment,5023,Revenue,CATERING.FOOD & BEVERAGES
21-JAN-2022,7012844,0.86,TOTAL PRODUCE GATESHEAD,399244,Commissioning & Asset Management,Children's & Education Services,103,Supplies and Services,504,Equipment,5023,Revenue,CATERING.FOOD & BEVERAGES
21-JAN-2022,7012844,0.86,TOTAL PRODUCE GATESHEAD,399244,Commissioning & Asset Management,Children's & Education Services,103,Supplies and Services,504,Equipment,5023,Revenue,CATERING.FOOD & BEVERAGES
21-JAN-2022,7012844,0.86,TOTAL PRODUCE GATESHEAD,399244,Commissioning & Asset Management,Children's & Education Services,103,Supplies and Services,504,Equipment,5023,Revenue,CATERING.FOOD & BEVERAGES
21-JAN-2022,7012844,0.86,TOTAL PRODUCE GATESHEAD,399244,Commissioning & Asset Management,Children's & Education Services,103,Supplies and Services,504,Equipment,5023,Revenue,CATERING.FOOD & BEVERAGES
21-JAN-2022,7012844,0.86,TOTAL PRODUCE GATESHEAD,399244,Commissioning & Asset Management,Children's & Education Services,103,Supplies and Services,504,Equipment,5023,Revenue,CATERING.FOOD & BEVERAGES
21-JAN-2022,7012844,0.86,TOTAL PRODUCE GATESHEAD,399244,Commissioning & Asset Management,Children's & Education Services,103,Supplies and Services,504,Equipment,5023,Revenue,CATERING.FOOD & BEVERAGES
21-JAN-2022,7012844,0.86,TOTAL PRODUCE GATESHEAD,399244,Commissioning & Asset Management,Children's & Education Services,103,Supplies and Services,504,Equipment,5023,Revenue,CATERING.FOOD & BEVERAGES
21-JAN-2022,7012844,0.86,TOTAL PRODUCE GATESHEAD,399244,Commissioning & Asset Management,Children's & Education Services,103,Supplies and Services,504,Equipment,5023,Revenue,CATERING.FOOD & BEVERAGES
21-JAN-2022,7012844,0.86,TOTAL PRODUCE GATESHEAD,399244,Commissioning & Asset Management,Children's & Education Services,103,Supplies and Services,504,Equipment,5023,Revenue,CATERING.FOOD & BEVERAGES
21-JAN-2022,7012844,0.86,TOTAL PRODUCE GATESHEAD,399244,Commissioning & Asset Management,Children's & Education Services,103,Supplies and Services,504,Equipment,5023,Revenue,CATERING.FOOD & BEVERAGES
21-JAN-2022,7012844,0.86,TOTAL PRODUCE GATESHEAD,399244,Commissioning & Asset Management,Children's & Education Services,103,Supplies and Services,504,Equipment,5023,Revenue,CATERING.FOOD & BEVERAGES
21-JAN-2022,7012844,0.86,TOTAL PRODUCE GATESHEAD,399244,Commissioning & Asset Management,Children's & Education Services,103,Supplies and Services,504,Equipment,5023,Revenue,CATERING.FOOD & BEVERAGES
21-JAN-2022,7012844,0.86,TOTAL PRODUCE GATESHEAD,399244,Commissioning & Asset Management,Children's & Education Services,103,Supplies and Services,504,Equipment,5023,Revenue,CATERING.FOOD & BEVERAGES
21-JAN-2022,7012844,0.86,TOTAL PRODUCE GATESHEAD,399244,Commissioning & Asset Management,Children's & Education Services,103,Supplies and Services,504,Equipment,5023,Revenue,CATERING.FOOD & BEVERAGES
21-JAN-2022,7012844,0.86,TOTAL PRODUCE GATESHEAD,399244,Commissioning & Asset Management,Children's & Education Services,103,Supplies and Services,504,Equipment,5023,Revenue,CATERING.FOOD & BEVERAGES
21-JAN-2022,7012844,0.86,TOTAL PRODUCE GATESHEAD,399244,Commissioning & Asset Management,Children's & Education Services,103,Supplies and Services,504,Equipment,5023,Revenue,CATERING.FOOD & BEVERAGES
21-JAN-2022,7012844,0.86,TOTAL PRODUCE GATESHEAD,399244,Commissioning & Asset Management,Children's & Education Services,103,Supplies and Services,504,Equipment,5023,Revenue,CATERING.FOOD & BEVERAGES
21-JAN-2022,7012844,0.86,TOTAL PRODUCE GATESHEAD,399244,Commissioning & Asset Management,Children's & Education Services,103,Supplies and Services,504,Equipment,5023,Revenue,CATERING.FOOD & BEVERAGES
21-JAN-2022,7012844,0.86,TOTAL PRODUCE GATESHEAD,399244,Commissioning & Asset Management,Children's & Education Services,103,Supplies and Services,504,Equipment,5023,Revenue,CATERING.FOOD & BEVERAGES
21-JAN-2022,7012844,0.86,TOTAL PRODUCE GATESHEAD,399244,Commissioning & Asset Management,Children's & Education Services,103,Supplies and Services,504,Equipment,5023,Revenue,CATERING.FOOD & BEVERAGES
21-JAN-2022,7012844,0.86,TOTAL PRODUCE GATESHEAD,399244,Commissioning & Asset Management,Children's & Education Services,103,Supplies and Services,504,Equipment,5023,Revenue,CATERING.FOOD & BEVERAGES
21-JAN-2022,7012844,0.86,TOTAL PRODUCE GATESHEAD,399244,Commissioning & Asset Management,Children's & Education Services,103,Supplies and Services,504,Equipment,5023,Revenue,CATERING.FOOD & BEVERAGES
21-JAN-2022,7012844,0.86,TOTAL PRODUCE GATESHEAD,399244,Commissioning & Asset Management,Children's & Education Services,103,Supplies and Services,504,Equipment,5023,Revenue,CATERING.FOOD & BEVERAGES
21-JAN-2022,7012844,0.86,TOTAL PRODUCE GATESHEAD,399244,Commissioning & Asset Management,Children's & Education Services,103,Supplies and Services,504,Equipment,5023,Revenue,CATERING.FOOD & BEVERAGES
21-JAN-2022,7012844,0.86,TOTAL PRODUCE GATESHEAD,399244,Commissioning & Asset Management,Children's & Education Services,103,Supplies and Services,504,Equipment,5023,Revenue,CATERING.FOOD & BEVERAGES
21-JAN-2022,7012844,0.86,TOTAL PRODUCE GATESHEAD,399244,Commissioning & Asset Management,Children's & Education Services,103,Supplies and Services,504,Equipment,5023,Revenue,CATERING.FOOD & BEVERAGES
21-JAN-2022,7012844,0.86,TOTAL PRODUCE GATESHEAD,399244,Commissioning & Asset Management,Children's & Education Services,103,Supplies and Services,504,Equipment,5023,Revenue,CATERING.FOOD & BEVERAGES
21-JAN-2022,7012844,0.86,TOTAL PRODUCE GATESHEAD,399244,Commissioning & Asset Management,Children's & Education Services,103,Supplies and Services,504,Equipment,5023,Revenue,CATERING.FOOD & BEVERAGES
21-JAN-2022,7012844,0.86,TOTAL PRODUCE GATESHEAD,399244,Commissioning & Asset Management,Children's & Education Services,103,Supplies and Services,504,Equipment,5023,Revenue,CATERING.FOOD & BEVERAGES
21-JAN-2022,7012844,0.86,TOTAL PRODUCE GATESHEAD,399244,Commissioning & Asset Management,Children's & Education Services,103,Supplies and Services,504,Equipment,5023,Revenue,CATERING.FOOD & BEVERAGES
21-JAN-2022,7012844,0.86,TOTAL PRODUCE GATESHEAD,399244,Commissioning & Asset Management,Children's & Education Services,103,Supplies and Services,504,Equipment,5023,Revenue,CATERING.FOOD & BEVERAGES
21-JAN-2022,7012844,0.86,TOTAL PRODUCE GATESHEAD,399244,Commissioning & Asset Management,Children's & Education Services,103,Supplies and Services,504,Equipment,5023,Revenue,CATERING.FOOD & BEVERAGES
21-JAN-2022,7012844,0.86,TOTAL PRODUCE GATESHEAD,399244,Commissioning & Asset Management,Children's & Education Services,103,Supplies and Services,504,Equipment,5023,Revenue,CATERING.FOOD & BEVERAGES
21-JAN-2022,7012844,0.86,TOTAL PRODUCE GATESHEAD,399244,Commissioning & Asset Management,Children's & Education Services,103,Supplies and Services,504,Equipment,5023,Revenue,CATERING.FOOD & BEVERAGES
21-JAN-2022,7012844,0.86,TOTAL PRODUCE GATESHEAD,399244,Commissioning & Asset Management,Children's & Education Services,103,Supplies and Services,504,Equipment,5023,Revenue,CATERING.FOOD & BEVERAGES
21-JAN-2022,7012844,0.86,TOTAL PRODUCE GATESHEAD,399244,Commissioning & Asset Management,Children's & Education Services,103,Supplies and Services,504,Equipment,5023,Revenue,CATERING.FOOD & BEVERAGES
21-JAN-2022,7012844,0.86,TOTAL PRODUCE GATESHEAD,399244,Commissioning & Asset Management,Children's & Education Services,103,Supplies and Services,504,Equipment,5023,Revenue,CATERING.FOOD & BEVERAGES
21-JAN-2022,7012844,0.86,TOTAL PRODUCE GATESHEAD,399244,Commissioning & Asset Management,Children's & Education Services,103,Supplies and Services,504,Equipment,5023,Revenue,CATERING.FOOD & BEVERAGES
21-JAN-2022,7012844,0.86,TOTAL PRODUCE GATESHEAD,399244,Commissioning & Asset Management,Children's & Education Services,103,Supplies and Services,504,Equipment,5023,Revenue,CATERING.FOOD & BEVERAGES
21-JAN-2022,7012844,0.86,TOTAL PRODUCE GATESHEAD,399244,Commissioning & Asset Management,Children's & Education Services,103,Supplies and Services,504,Equipment,5023,Revenue,CATERING.FOOD & BEVERAGES
21-JAN-2022,7012844,0.86,TOTAL PRODUCE GATESHEAD,399244,Commissioning & Asset Management,Children's & Education Services,103,Supplies and Services,504,Equipment,5023,Revenue,CATERING.FOOD & BEVERAGES
21-JAN-2022,7012844,0.86,TOTAL PRODUCE GATESHEAD,399244,Commissioning & Asset Management,Children's & Education Services,103,Supplies and Services,504,Equipment,5023,Revenue,CATERING.FOOD & BEVERAGES
21-JAN-2022,7012844,0.86,TOTAL PRODUCE GATESHEAD,399244,Commissioning & Asset Management,Children's & Education Services,103,Supplies and Services,504,Equipment,5023,Revenue,CATERING.FOOD & BEVERAGES
21-JAN-2022,7012844,0.86,TOTAL PRODUCE GATESHEAD,399244,Commissioning & Asset Management,Children's & Education Services,103,Supplies and Services,504,Equipment,5023,Revenue,CATERING.FOOD & BEVERAGES
21-JAN-2022,7012844,0.86,TOTAL PRODUCE GATESHEAD,399244,Commissioning & Asset Management,Children's & Education Services,103,Supplies and Services,504,Equipment,5023,Revenue,CATERING.FOOD & BEVERAGES
21-JAN-2022,7012844,0.86,TOTAL PRODUCE GATESHEAD,399244,Commissioning & Asset Management,Children's & Education Services,103,Supplies and Services,504,Equipment,5023,Revenue,CATERING.FOOD & BEVERAGES
21-JAN-2022,7012844,0.86,TOTAL PRODUCE GATESHEAD,399244,Commissioning & Asset Management,Children's & Education Services,103,Supplies and Services,504,Equipment,5023,Revenue,CATERING.FOOD & BEVERAGES
21-JAN-2022,7012844,0.86,TOTAL PRODUCE GATESHEAD,399244,Commissioning & Asset Management,Children's & Education Services,103,Supplies and Services,504,Equipment,5023,Revenue,CATERING.FOOD & BEVERAGES
21-JAN-2022,7012844,0.86,TOTAL PRODUCE GATESHEAD,399244,Commissioning & Asset Management,Children's & Education Services,103,Supplies and Services,504,Equipment,5023,Revenue,CATERING.FOOD & BEVERAGES
21-JAN-2022,7012844,0.86,TOTAL PRODUCE GATESHEAD,399244,Commissioning & Asset Management,Children's & Education Services,103,Supplies and Services,504,Equipment,5023,Revenue,CATERING.FOOD & BEVERAGES
21-JAN-2022,7012844,0.86,TOTAL PRODUCE GATESHEAD,399244,Commissioning & Asset Management,Children's & Education Services,103,Supplies and Services,504,Equipment,5023,Revenue,CATERING.FOOD & BEVERAGES
21-JAN-2022,7012844,0.86,TOTAL PRODUCE GATESHEAD,399244,Commissioning & Asset Management,Children's & Education Services,103,Supplies and Services,504,Equipment,5023,Revenue,CATERING.FOOD & BEVERAGES
21-JAN-2022,7012844,0.86,TOTAL PRODUCE GATESHEAD,399244,Commissioning & Asset Management,Children's & Education Services,103,Supplies and Services,504,Equipment,5023,Revenue,CATERING.FOOD & BEVERAGES
21-JAN-2022,7012844,0.86,TOTAL PRODUCE GATESHEAD,399244,Commissioning & Asset Management,Children's & Education Services,103,Supplies and Services,504,Equipment,5023,Revenue,CATERING.FOOD & BEVERAGES
21-JAN-2022,7012844,0.86,TOTAL PRODUCE GATESHEAD,399244,Commissioning & Asset Management,Children's & Education Services,103,Supplies and Services,504,Equipment,5023,Revenue,CATERING.FOOD & BEVERAGES
21-JAN-2022,7012844,0.86,TOTAL PRODUCE GATESHEAD,399244,Commissioning & Asset Management,Children's & Education Services,103,Supplies and Services,504,Equipment,5023,Revenue,CATERING.FOOD & BEVERAGES
21-JAN-2022,7012844,0.86,TOTAL PRODUCE GATESHEAD,399244,Commissioning & Asset Management,Children's & Education Services,103,Supplies and Services,504,Equipment,5023,Revenue,CATERING.FOOD & BEVERAGES
21-JAN-2022,7012844,0.86,TOTAL PRODUCE GATESHEAD,399244,Commissioning & Asset Management,Children's & Education Services,103,Supplies and Services,504,Equipment,5023,Revenue,CATERING.FOOD & BEVERAGES
21-JAN-2022,7012844,0.86,TOTAL PRODUCE GATESHEAD,399244,Commissioning & Asset Management,Children's & Education Services,103,Supplies and Services,504,Equipment,5023,Revenue,CATERING.FOOD & BEVERAGES
21-JAN-2022,7012844,0.86,TOTAL PRODUCE GATESHEAD,399244,Commissioning & Asset Management,Children's & Education Services,103,Supplies and Services,504,Equipment,5023,Revenue,CATERING.FOOD & BEVERAGES
21-JAN-2022,7012844,0.86,TOTAL PRODUCE GATESHEAD,399244,Commissioning & Asset Management,Children's & Education Services,103,Supplies and Services,504,Equipment,5023,Revenue,CATERING.FOOD & BEVERAGES
21-JAN-2022,7012844,0.86,TOTAL PRODUCE GATESHEAD,399244,Commissioning & Asset Management,Children's & Education Services,103,Supplies and Services,504,Equipment,5023,Revenue,CATERING.FOOD & BEVERAGES
21-JAN-2022,7012844,0.86,TOTAL PRODUCE GATESHEAD,399244,Commissioning & Asset Management,Children's & Education Services,103,Supplies and Services,504,Equipment,5023,Revenue,CATERING.FOOD & BEVERAGES
21-JAN-2022,7012844,0.86,TOTAL PRODUCE GATESHEAD,399244,Commissioning & Asset Management,Children's & Education Services,103,Supplies and Services,504,Equipment,5023,Revenue,CATERING.FOOD & BEVERAGES
21-JAN-2022,7012844,0.86,TOTAL PRODUCE GATESHEAD,399244,Commissioning & Asset Management,Children's & Education Services,103,Supplies and Services,504,Equipment,5023,Revenue,CATERING.FOOD & BEVERAGES
21-JAN-2022,7012844,0.86,TOTAL PRODUCE GATESHEAD,399244,Commissioning & Asset Management,Children's & Education Services,103,Supplies and Services,504,Equipment,5023,Revenue,CATERING.FOOD & BEVERAGES
21-JAN-2022,7012844,0.86,TOTAL PRODUCE GATESHEAD,399244,Commissioning & Asset Management,Children's & Education Services,103,Supplies and Services,504,Equipment,5023,Revenue,CATERING.FOOD & BEVERAGES
21-JAN-2022,7012844,0.86,TOTAL PRODUCE GATESHEAD,399244,Commissioning & Asset Management,Children's & Education Services,103,Supplies and Services,504,Equipment,5023,Revenue,CATERING.FOOD & BEVERAGES
21-JAN-2022,7012844,0.86,TOTAL PRODUCE GATESHEAD,399244,Commissioning & Asset Management,Children's & Education Services,103,Supplies and Services,504,Equipment,5023,Revenue,CATERING.FOOD & BEVERAGES
21-JAN-2022,7012844,0.88,TOTAL PRODUCE GATESHEAD,399244,Commissioning & Asset Management,Children's & Education Services,103,Supplies and Services,504,Equipment,5023,Revenue,CATERING.FOOD & BEVERAGES
21-JAN-2022,7012844,0.88,TOTAL PRODUCE GATESHEAD,399244,Commissioning & Asset Management,Children's & Education Services,103,Supplies and Services,504,Equipment,5023,Revenue,CATERING.FOOD & BEVERAGES
21-JAN-2022,7012844,0.88,TOTAL PRODUCE GATESHEAD,399244,Commissioning & Asset Management,Children's & Education Services,103,Supplies and Services,504,Equipment,5023,Revenue,CATERING.FOOD & BEVERAGES
21-JAN-2022,7012844,0.88,TOTAL PRODUCE GATESHEAD,399244,Commissioning & Asset Management,Children's & Education Services,103,Supplies and Services,504,Equipment,5023,Revenue,CATERING.FOOD & BEVERAGES
21-JAN-2022,7012844,0.88,TOTAL PRODUCE GATESHEAD,399244,Commissioning & Asset Management,Children's & Education Services,103,Supplies and Services,504,Equipment,5023,Revenue,CATERING.FOOD & BEVERAGES
21-JAN-2022,7012844,0.88,TOTAL PRODUCE GATESHEAD,399244,Commissioning & Asset Management,Children's & Education Services,103,Supplies and Services,504,Equipment,5023,Revenue,CATERING.FOOD & BEVERAGES
21-JAN-2022,7012844,0.91,TOTAL PRODUCE GATESHEAD,399244,"Environment, Housing & Leisure",Adult Social Care,101,Supplies and Services,504,Equipment,5023,Revenue,CATERING.FOOD & BEVERAGES
21-JAN-2022,7012844,0.91,TOTAL PRODUCE GATESHEAD,399244,Commissioning & Asset Management,Children's & Education Services,103,Supplies and Services,504,Equipment,5023,Revenue,CATERING.FOOD & BEVERAGES
21-JAN-2022,7012844,0.91,TOTAL PRODUCE GATESHEAD,399244,Commissioning & Asset Management,Children's & Education Services,103,Supplies and Services,504,Equipment,5023,Revenue,CATERING.FOOD & BEVERAGES
21-JAN-2022,7012844,0.91,TOTAL PRODUCE GATESHEAD,399244,Commissioning & Asset Management,Children's & Education Services,103,Supplies and Services,504,Equipment,5023,Revenue,CATERING.FOOD & BEVERAGES
21-JAN-2022,7012844,0.91,TOTAL PRODUCE GATESHEAD,399244,Commissioning & Asset Management,Children's & Education Services,103,Supplies and Services,504,Equipment,5023,Revenue,CATERING.FOOD & BEVERAGES
21-JAN-2022,7012844,0.91,TOTAL PRODUCE GATESHEAD,399244,"Environment, Housing & Leisure",Cultural & Related Services,104,Supplies and Services,504,Equipment,5023,Revenue,CATERING.FOOD & BEVERAGES
21-JAN-2022,7012844,0.91,TOTAL PRODUCE GATESHEAD,399244,"Environment, Housing & Leisure",Cultural & Related Services,104,Supplies and Services,504,Equipment,5023,Revenue,CATERING.FOOD & BEVERAGES
21-JAN-2022,7012844,0.92,TOTAL PRODUCE GATESHEAD,399244,Commissioning & Asset Management,Children's & Education Services,103,Supplies and Services,504,Equipment,5023,Revenue,CATERING.FOOD & BEVERAGES
21-JAN-2022,7012844,0.92,TOTAL PRODUCE GATESHEAD,399244,Commissioning & Asset Management,Children's & Education Services,103,Supplies and Services,504,Equipment,5023,Revenue,CATERING.FOOD & BEVERAGES
21-JAN-2022,7012844,0.92,TOTAL PRODUCE GATESHEAD,399244,Commissioning & Asset Management,Children's & Education Services,103,Supplies and Services,504,Equipment,5023,Revenue,CATERING.FOOD & BEVERAGES
21-JAN-2022,7012844,0.92,TOTAL PRODUCE GATESHEAD,399244,Commissioning & Asset Management,Children's & Education Services,103,Supplies and Services,504,Equipment,5023,Revenue,CATERING.FOOD & BEVERAGES
21-JAN-2022,7012844,0.93,TOTAL PRODUCE GATESHEAD,399244,Commissioning & Asset Management,Children's & Education Services,103,Supplies and Services,504,Equipment,5023,Revenue,CATERING.FOOD & BEVERAGES
21-JAN-2022,7012844,0.93,TOTAL PRODUCE GATESHEAD,399244,Commissioning & Asset Management,Children's & Education Services,103,Supplies and Services,504,Equipment,5023,Revenue,CATERING.FOOD & BEVERAGES
21-JAN-2022,7012844,0.93,TOTAL PRODUCE GATESHEAD,399244,Commissioning & Asset Management,Children's & Education Services,103,Supplies and Services,504,Equipment,5023,Revenue,CATERING.FOOD & BEVERAGES
21-JAN-2022,7012844,0.94,TOTAL PRODUCE GATESHEAD,399244,Commissioning & Asset Management,Children's & Education Services,103,Supplies and Services,504,Equipment,5023,Revenue,CATERING.FOOD & BEVERAGES
21-JAN-2022,7012844,0.95,TOTAL PRODUCE GATESHEAD,399244,Commissioning & Asset Management,Children's & Education Services,103,Supplies and Services,504,Equipment,5023,Revenue,CATERING.FOOD & BEVERAGES
21-JAN-2022,7012844,0.95,TOTAL PRODUCE GATESHEAD,399244,Commissioning & Asset Management,Children's & Education Services,103,Supplies and Services,504,Equipment,5023,Revenue,CATERING.FOOD & BEVERAGES
21-JAN-2022,7012844,0.95,TOTAL PRODUCE GATESHEAD,399244,Commissioning & Asset Management,Children's & Education Services,103,Supplies and Services,504,Equipment,5023,Revenue,CATERING.FOOD & BEVERAGES
21-JAN-2022,7012844,0.95,TOTAL PRODUCE GATESHEAD,399244,Commissioning & Asset Management,Children's & Education Services,103,Supplies and Services,504,Equipment,5023,Revenue,CATERING.FOOD & BEVERAGES
21-JAN-2022,7012844,0.95,TOTAL PRODUCE GATESHEAD,399244,Commissioning & Asset Management,Children's & Education Services,103,Supplies and Services,504,Equipment,5023,Revenue,CATERING.FOOD & BEVERAGES
21-JAN-2022,7012844,0.95,TOTAL PRODUCE GATESHEAD,399244,Commissioning & Asset Management,Children's & Education Services,103,Supplies and Services,504,Equipment,5023,Revenue,CATERING.FOOD & BEVERAGES
21-JAN-2022,7012844,0.95,TOTAL PRODUCE GATESHEAD,399244,Commissioning & Asset Management,Children's & Education Services,103,Supplies and Services,504,Equipment,5023,Revenue,CATERING.FOOD & BEVERAGES
21-JAN-2022,7012844,0.95,TOTAL PRODUCE GATESHEAD,399244,Commissioning & Asset Management,Children's & Education Services,103,Supplies and Services,504,Equipment,5023,Revenue,CATERING.FOOD & BEVERAGES
21-JAN-2022,7012844,0.95,TOTAL PRODUCE GATESHEAD,399244,Commissioning & Asset Management,Children's & Education Services,103,Supplies and Services,504,Equipment,5023,Revenue,CATERING.FOOD & BEVERAGES
21-JAN-2022,7012844,0.95,TOTAL PRODUCE GATESHEAD,399244,Commissioning & Asset Management,Children's & Education Services,103,Supplies and Services,504,Equipment,5023,Revenue,CATERING.FOOD & BEVERAGES
21-JAN-2022,7012844,0.95,TOTAL PRODUCE GATESHEAD,399244,Commissioning & Asset Management,Children's & Education Services,103,Supplies and Services,504,Equipment,5023,Revenue,CATERING.FOOD & BEVERAGES
21-JAN-2022,7012844,0.95,TOTAL PRODUCE GATESHEAD,399244,Commissioning & Asset Management,Children's & Education Services,103,Supplies and Services,504,Equipment,5023,Revenue,CATERING.FOOD & BEVERAGES
21-JAN-2022,7012844,0.95,TOTAL PRODUCE GATESHEAD,399244,Commissioning & Asset Management,Children's & Education Services,103,Supplies and Services,504,Equipment,5023,Revenue,CATERING.FOOD & BEVERAGES
21-JAN-2022,7012844,0.95,TOTAL PRODUCE GATESHEAD,399244,Commissioning & Asset Management,Children's & Education Services,103,Supplies and Services,504,Equipment,5023,Revenue,CATERING.FOOD & BEVERAGES
21-JAN-2022,7012844,0.95,TOTAL PRODUCE GATESHEAD,399244,Commissioning & Asset Management,Children's & Education Services,103,Supplies and Services,504,Equipment,5023,Revenue,CATERING.FOOD & BEVERAGES
21-JAN-2022,7012844,0.95,TOTAL PRODUCE GATESHEAD,399244,Commissioning & Asset Management,Children's & Education Services,103,Supplies and Services,504,Equipment,5023,Revenue,CATERING.FOOD & BEVERAGES
21-JAN-2022,7012844,0.95,TOTAL PRODUCE GATESHEAD,399244,Commissioning & Asset Management,Children's & Education Services,103,Supplies and Services,504,Equipment,5023,Revenue,CATERING.FOOD & BEVERAGES
21-JAN-2022,7012844,0.95,TOTAL PRODUCE GATESHEAD,399244,Commissioning & Asset Management,Children's & Education Services,103,Supplies and Services,504,Equipment,5023,Revenue,CATERING.FOOD & BEVERAGES
21-JAN-2022,7012844,0.95,TOTAL PRODUCE GATESHEAD,399244,Commissioning & Asset Management,Children's & Education Services,103,Supplies and Services,504,Equipment,5023,Revenue,CATERING.FOOD & BEVERAGES
21-JAN-2022,7012844,0.95,TOTAL PRODUCE GATESHEAD,399244,Commissioning & Asset Management,Children's & Education Services,103,Supplies and Services,504,Equipment,5023,Revenue,CATERING.FOOD & BEVERAGES
21-JAN-2022,7012844,0.95,TOTAL PRODUCE GATESHEAD,399244,Commissioning & Asset Management,Children's & Education Services,103,Supplies and Services,504,Equipment,5023,Revenue,CATERING.FOOD & BEVERAGES
21-JAN-2022,7012844,0.95,TOTAL PRODUCE GATESHEAD,399244,Commissioning & Asset Management,Children's & Education Services,103,Supplies and Services,504,Equipment,5023,Revenue,CATERING.FOOD & BEVERAGES
21-JAN-2022,7012844,0.95,TOTAL PRODUCE GATESHEAD,399244,Commissioning & Asset Management,Children's & Education Services,103,Supplies and Services,504,Equipment,5023,Revenue,CATERING.FOOD & BEVERAGES
21-JAN-2022,7012844,0.95,TOTAL PRODUCE GATESHEAD,399244,Commissioning & Asset Management,Children's & Education Services,103,Supplies and Services,504,Equipment,5023,Revenue,CATERING.FOOD & BEVERAGES
21-JAN-2022,7012844,0.95,TOTAL PRODUCE GATESHEAD,399244,Commissioning & Asset Management,Children's & Education Services,103,Supplies and Services,504,Equipment,5023,Revenue,CATERING.FOOD & BEVERAGES
21-JAN-2022,7012844,0.95,TOTAL PRODUCE GATESHEAD,399244,Commissioning & Asset Management,Children's & Education Services,103,Supplies and Services,504,Equipment,5023,Revenue,CATERING.FOOD & BEVERAGES
21-JAN-2022,7012844,0.95,TOTAL PRODUCE GATESHEAD,399244,Commissioning & Asset Management,Children's & Education Services,103,Supplies and Services,504,Equipment,5023,Revenue,CATERING.FOOD & BEVERAGES
21-JAN-2022,7012844,0.95,TOTAL PRODUCE GATESHEAD,399244,Commissioning & Asset Management,Children's & Education Services,103,Supplies and Services,504,Equipment,5023,Revenue,CATERING.FOOD & BEVERAGES
21-JAN-2022,7012844,0.95,TOTAL PRODUCE GATESHEAD,399244,Commissioning & Asset Management,Children's & Education Services,103,Supplies and Services,504,Equipment,5023,Revenue,CATERING.FOOD & BEVERAGES
21-JAN-2022,7012844,0.96,TOTAL PRODUCE GATESHEAD,399244,Commissioning & Asset Management,Children's & Education Services,103,Supplies and Services,504,Equipment,5023,Revenue,CATERING.FOOD & BEVERAGES
21-JAN-2022,7012844,0.96,TOTAL PRODUCE GATESHEAD,399244,Commissioning & Asset Management,Children's & Education Services,103,Supplies and Services,504,Equipment,5023,Revenue,CATERING.FOOD & BEVERAGES
21-JAN-2022,7012844,0.96,TOTAL PRODUCE GATESHEAD,399244,Commissioning & Asset Management,Children's & Education Services,103,Supplies and Services,504,Equipment,5023,Revenue,CATERING.FOOD & BEVERAGES
21-JAN-2022,7012844,0.97,TOTAL PRODUCE GATESHEAD,399244,Commissioning & Asset Management,Children's & Education Services,103,Supplies and Services,504,Equipment,5023,Revenue,CATERING.FOOD & BEVERAGES
21-JAN-2022,7012844,0.97,TOTAL PRODUCE GATESHEAD,399244,Commissioning & Asset Management,Children's & Education Services,103,Supplies and Services,504,Equipment,5023,Revenue,CATERING.FOOD & BEVERAGES
21-JAN-2022,7012844,0.97,TOTAL PRODUCE GATESHEAD,399244,Commissioning & Asset Management,Children's & Education Services,103,Supplies and Services,504,Equipment,5023,Revenue,CATERING.FOOD & BEVERAGES
21-JAN-2022,7012844,0.97,TOTAL PRODUCE GATESHEAD,399244,Commissioning & Asset Management,Children's & Education Services,103,Supplies and Services,504,Equipment,5023,Revenue,CATERING.FOOD & BEVERAGES
21-JAN-2022,7012844,0.97,TOTAL PRODUCE GATESHEAD,399244,Commissioning & Asset Management,Children's & Education Services,103,Supplies and Services,504,Equipment,5023,Revenue,CATERING.FOOD & BEVERAGES
21-JAN-2022,7012844,0.97,TOTAL PRODUCE GATESHEAD,399244,Commissioning & Asset Management,Children's & Education Services,103,Supplies and Services,504,Equipment,5023,Revenue,CATERING.FOOD & BEVERAGES
21-JAN-2022,7012844,0.97,TOTAL PRODUCE GATESHEAD,399244,Commissioning & Asset Management,Children's & Education Services,103,Supplies and Services,504,Equipment,5023,Revenue,CATERING.FOOD & BEVERAGES
21-JAN-2022,7012844,0.97,TOTAL PRODUCE GATESHEAD,399244,Commissioning & Asset Management,Children's & Education Services,103,Supplies and Services,504,Equipment,5023,Revenue,CATERING.FOOD & BEVERAGES
21-JAN-2022,7012844,0.97,TOTAL PRODUCE GATESHEAD,399244,Commissioning & Asset Management,Children's & Education Services,103,Supplies and Services,504,Equipment,5023,Revenue,CATERING.FOOD & BEVERAGES
21-JAN-2022,7012844,0.97,TOTAL PRODUCE GATESHEAD,399244,Commissioning & Asset Management,Children's & Education Services,103,Supplies and Services,504,Equipment,5023,Revenue,CATERING.FOOD & BEVERAGES
21-JAN-2022,7012844,0.97,TOTAL PRODUCE GATESHEAD,399244,Commissioning & Asset Management,Children's & Education Services,103,Supplies and Services,504,Equipment,5023,Revenue,CATERING.FOOD & BEVERAGES
21-JAN-2022,7012844,0.97,TOTAL PRODUCE GATESHEAD,399244,Commissioning & Asset Management,Children's & Education Services,103,Supplies and Services,504,Equipment,5023,Revenue,CATERING.FOOD & BEVERAGES
21-JAN-2022,7012844,0.97,TOTAL PRODUCE GATESHEAD,399244,Commissioning & Asset Management,Children's & Education Services,103,Supplies and Services,504,Equipment,5023,Revenue,CATERING.FOOD & BEVERAGES
21-JAN-2022,7012844,0.97,TOTAL PRODUCE GATESHEAD,399244,Commissioning & Asset Management,Children's & Education Services,103,Supplies and Services,504,Equipment,5023,Revenue,CATERING.FOOD & BEVERAGES
21-JAN-2022,7012844,0.97,TOTAL PRODUCE GATESHEAD,399244,Commissioning & Asset Management,Children's & Education Services,103,Supplies and Services,504,Equipment,5023,Revenue,CATERING.FOOD & BEVERAGES
21-JAN-2022,7012844,0.97,TOTAL PRODUCE GATESHEAD,399244,Commissioning & Asset Management,Children's & Education Services,103,Supplies and Services,504,Equipment,5023,Revenue,CATERING.FOOD & BEVERAGES
21-JAN-2022,7012844,0.97,TOTAL PRODUCE GATESHEAD,399244,Commissioning & Asset Management,Children's & Education Services,103,Supplies and Services,504,Equipment,5023,Revenue,CATERING.FOOD & BEVERAGES
21-JAN-2022,7012844,0.97,TOTAL PRODUCE GATESHEAD,399244,Commissioning & Asset Management,Children's & Education Services,103,Supplies and Services,504,Equipment,5023,Revenue,CATERING.FOOD & BEVERAGES
21-JAN-2022,7012844,0.97,TOTAL PRODUCE GATESHEAD,399244,Commissioning & Asset Management,Children's & Education Services,103,Supplies and Services,504,Equipment,5023,Revenue,CATERING.FOOD & BEVERAGES
21-JAN-2022,7012844,0.97,TOTAL PRODUCE GATESHEAD,399244,Commissioning & Asset Management,Children's & Education Services,103,Supplies and Services,504,Equipment,5023,Revenue,CATERING.FOOD & BEVERAGES
21-JAN-2022,7012844,0.97,TOTAL PRODUCE GATESHEAD,399244,Commissioning & Asset Management,Children's & Education Services,103,Supplies and Services,504,Equipment,5023,Revenue,CATERING.FOOD & BEVERAGES
21-JAN-2022,7012844,0.97,TOTAL PRODUCE GATESHEAD,399244,Commissioning & Asset Management,Children's & Education Services,103,Supplies and Services,504,Equipment,5023,Revenue,CATERING.FOOD & BEVERAGES
21-JAN-2022,7012844,0.97,TOTAL PRODUCE GATESHEAD,399244,Commissioning & Asset Management,Children's & Education Services,103,Supplies and Services,504,Equipment,5023,Revenue,CATERING.FOOD & BEVERAGES
21-JAN-2022,7012844,0.97,TOTAL PRODUCE GATESHEAD,399244,Commissioning & Asset Management,Children's & Education Services,103,Supplies and Services,504,Equipment,5023,Revenue,CATERING.FOOD & BEVERAGES
21-JAN-2022,7012844,0.97,TOTAL PRODUCE GATESHEAD,399244,Commissioning & Asset Management,Children's & Education Services,103,Supplies and Services,504,Equipment,5023,Revenue,CATERING.FOOD & BEVERAGES
21-JAN-2022,7012844,0.97,TOTAL PRODUCE GATESHEAD,399244,Commissioning & Asset Management,Children's & Education Services,103,Supplies and Services,504,Equipment,5023,Revenue,CATERING.FOOD & BEVERAGES
21-JAN-2022,7012844,0.97,TOTAL PRODUCE GATESHEAD,399244,Commissioning & Asset Management,Children's & Education Services,103,Supplies and Services,504,Equipment,5023,Revenue,CATERING.FOOD & BEVERAGES
21-JAN-2022,7012844,0.97,TOTAL PRODUCE GATESHEAD,399244,Commissioning & Asset Management,Children's & Education Services,103,Supplies and Services,504,Equipment,5023,Revenue,CATERING.FOOD & BEVERAGES
21-JAN-2022,7012844,0.97,TOTAL PRODUCE GATESHEAD,399244,Commissioning & Asset Management,Children's & Education Services,103,Supplies and Services,504,Equipment,5023,Revenue,CATERING.FOOD & BEVERAGES
21-JAN-2022,7012844,0.97,TOTAL PRODUCE GATESHEAD,399244,Commissioning & Asset Management,Children's & Education Services,103,Supplies and Services,504,Equipment,5023,Revenue,CATERING.FOOD & BEVERAGES
21-JAN-2022,7012844,0.97,TOTAL PRODUCE GATESHEAD,399244,Commissioning & Asset Management,Children's & Education Services,103,Supplies and Services,504,Equipment,5023,Revenue,CATERING.FOOD & BEVERAGES
21-JAN-2022,7012844,0.98,TOTAL PRODUCE GATESHEAD,399244,Commissioning & Asset Management,Children's & Education Services,103,Supplies and Services,504,Equipment,5023,Revenue,CATERING.FOOD & BEVERAGES
21-JAN-2022,7012844,0.98,TOTAL PRODUCE GATESHEAD,399244,Commissioning & Asset Management,Children's & Education Services,103,Supplies and Services,504,Equipment,5023,Revenue,CATERING.FOOD & BEVERAGES
21-JAN-2022,7012844,0.98,TOTAL PRODUCE GATESHEAD,399244,Commissioning & Asset Management,Children's & Education Services,103,Supplies and Services,504,Equipment,5023,Revenue,CATERING.FOOD & BEVERAGES
21-JAN-2022,7012844,0.98,TOTAL PRODUCE GATESHEAD,399244,Commissioning & Asset Management,Children's & Education Services,103,Supplies and Services,504,Equipment,5023,Revenue,CATERING.FOOD & BEVERAGES
21-JAN-2022,7012844,1,TOTAL PRODUCE GATESHEAD,399244,"Environment, Housing & Leisure",Adult Social Care,101,Supplies and Services,504,Equipment,5023,Revenue,CATERING.FOOD & BEVERAGES
21-JAN-2022,7012844,1,TOTAL PRODUCE GATESHEAD,399244,"Environment, Housing & Leisure",Adult Social Care,101,Supplies and Services,504,Equipment,5023,Revenue,CATERING.FOOD & BEVERAGES
21-JAN-2022,7012844,1,TOTAL PRODUCE GATESHEAD,399244,Commissioning & Asset Management,Children's & Education Services,103,Supplies and Services,504,Equipment,5023,Revenue,CATERING.FOOD & BEVERAGES
21-JAN-2022,7012844,1,TOTAL PRODUCE GATESHEAD,399244,Commissioning & Asset Management,Children's & Education Services,103,Supplies and Services,504,Equipment,5023,Revenue,CATERING.FOOD & BEVERAGES
21-JAN-2022,7012844,1,TOTAL PRODUCE GATESHEAD,399244,Commissioning & Asset Management,Children's & Education Services,103,Supplies and Services,504,Equipment,5023,Revenue,CATERING.FOOD & BEVERAGES
21-JAN-2022,7012844,1,TOTAL PRODUCE GATESHEAD,399244,Commissioning & Asset Management,Children's & Education Services,103,Supplies and Services,504,Equipment,5023,Revenue,CATERING.FOOD & BEVERAGES
21-JAN-2022,7012844,1,TOTAL PRODUCE GATESHEAD,399244,Commissioning & Asset Management,Children's & Education Services,103,Supplies and Services,504,Equipment,5023,Revenue,CATERING.FOOD & BEVERAGES
21-JAN-2022,7012844,1,TOTAL PRODUCE GATESHEAD,399244,Commissioning & Asset Management,Children's & Education Services,103,Supplies and Services,504,Equipment,5023,Revenue,CATERING.FOOD & BEVERAGES
21-JAN-2022,7012844,1,TOTAL PRODUCE GATESHEAD,399244,Commissioning & Asset Management,Children's & Education Services,103,Supplies and Services,504,Equipment,5023,Revenue,CATERING.FOOD & BEVERAGES
21-JAN-2022,7012844,1,TOTAL PRODUCE GATESHEAD,399244,Commissioning & Asset Management,Children's & Education Services,103,Supplies and Services,504,Equipment,5023,Revenue,CATERING.FOOD & BEVERAGES
21-JAN-2022,7012844,1,TOTAL PRODUCE GATESHEAD,399244,Commissioning & Asset Management,Children's & Education Services,103,Supplies and Services,504,Equipment,5023,Revenue,CATERING.FOOD & BEVERAGES
21-JAN-2022,7012844,1,TOTAL PRODUCE GATESHEAD,399244,Commissioning & Asset Management,Children's & Education Services,103,Supplies and Services,504,Equipment,5023,Revenue,CATERING.FOOD & BEVERAGES
21-JAN-2022,7012844,1.01,TOTAL PRODUCE GATESHEAD,399244,Commissioning & Asset Management,Children's & Education Services,103,Supplies and Services,504,Equipment,5023,Revenue,CATERING.FOOD & BEVERAGES
21-JAN-2022,7012844,1.01,TOTAL PRODUCE GATESHEAD,399244,Commissioning & Asset Management,Children's & Education Services,103,Supplies and Services,504,Equipment,5023,Revenue,CATERING.FOOD & BEVERAGES
21-JAN-2022,7012844,1.01,TOTAL PRODUCE GATESHEAD,399244,Commissioning & Asset Management,Children's & Education Services,103,Supplies and Services,504,Equipment,5023,Revenue,CATERING.FOOD & BEVERAGES
21-JAN-2022,7012844,1.04,TOTAL PRODUCE GATESHEAD,399244,Commissioning & Asset Management,Children's & Education Services,103,Supplies and Services,504,Equipment,5023,Revenue,CATERING.FOOD & BEVERAGES
21-JAN-2022,7012844,1.04,TOTAL PRODUCE GATESHEAD,399244,Commissioning & Asset Management,Children's & Education Services,103,Supplies and Services,504,Equipment,5023,Revenue,CATERING.FOOD & BEVERAGES
21-JAN-2022,7012844,1.04,TOTAL PRODUCE GATESHEAD,399244,Commissioning & Asset Management,Children's & Education Services,103,Supplies and Services,504,Equipment,5023,Revenue,CATERING.FOOD & BEVERAGES
21-JAN-2022,7012844,1.04,TOTAL PRODUCE GATESHEAD,399244,Commissioning & Asset Management,Children's & Education Services,103,Supplies and Services,504,Equipment,5023,Revenue,CATERING.FOOD & BEVERAGES
21-JAN-2022,7012844,1.04,TOTAL PRODUCE GATESHEAD,399244,Commissioning & Asset Management,Children's & Education Services,103,Supplies and Services,504,Equipment,5023,Revenue,CATERING.FOOD & BEVERAGES
21-JAN-2022,7012844,1.04,TOTAL PRODUCE GATESHEAD,399244,Commissioning & Asset Management,Children's & Education Services,103,Supplies and Services,504,Equipment,5023,Revenue,CATERING.FOOD & BEVERAGES
21-JAN-2022,7012844,1.04,TOTAL PRODUCE GATESHEAD,399244,Commissioning & Asset Management,Children's & Education Services,103,Supplies and Services,504,Equipment,5023,Revenue,CATERING.FOOD & BEVERAGES
21-JAN-2022,7012844,1.04,TOTAL PRODUCE GATESHEAD,399244,Commissioning & Asset Management,Children's & Education Services,103,Supplies and Services,504,Equipment,5023,Revenue,CATERING.FOOD & BEVERAGES
21-JAN-2022,7012844,1.04,TOTAL PRODUCE GATESHEAD,399244,Commissioning & Asset Management,Children's & Education Services,103,Supplies and Services,504,Equipment,5023,Revenue,CATERING.FOOD & BEVERAGES
21-JAN-2022,7012844,1.04,TOTAL PRODUCE GATESHEAD,399244,Commissioning & Asset Management,Children's & Education Services,103,Supplies and Services,504,Equipment,5023,Revenue,CATERING.FOOD & BEVERAGES
21-JAN-2022,7012844,1.04,TOTAL PRODUCE GATESHEAD,399244,Commissioning & Asset Management,Children's & Education Services,103,Supplies and Services,504,Equipment,5023,Revenue,CATERING.FOOD & BEVERAGES
21-JAN-2022,7012844,1.04,TOTAL PRODUCE GATESHEAD,399244,Commissioning & Asset Management,Children's & Education Services,103,Supplies and Services,504,Equipment,5023,Revenue,CATERING.FOOD & BEVERAGES
21-JAN-2022,7012844,1.04,TOTAL PRODUCE GATESHEAD,399244,Commissioning & Asset Management,Children's & Education Services,103,Supplies and Services,504,Equipment,5023,Revenue,CATERING.FOOD & BEVERAGES
21-JAN-2022,7012844,1.04,TOTAL PRODUCE GATESHEAD,399244,Commissioning & Asset Management,Children's & Education Services,103,Supplies and Services,504,Equipment,5023,Revenue,CATERING.FOOD & BEVERAGES
21-JAN-2022,7012844,1.04,TOTAL PRODUCE GATESHEAD,399244,Commissioning & Asset Management,Children's & Education Services,103,Supplies and Services,504,Equipment,5023,Revenue,CATERING.FOOD & BEVERAGES
21-JAN-2022,7012844,1.04,TOTAL PRODUCE GATESHEAD,399244,Commissioning & Asset Management,Children's & Education Services,103,Supplies and Services,504,Equipment,5023,Revenue,CATERING.FOOD & BEVERAGES
21-JAN-2022,7012844,1.05,TOTAL PRODUCE GATESHEAD,399244,Commissioning & Asset Management,Children's & Education Services,103,Supplies and Services,504,Equipment,5023,Revenue,CATERING.FOOD & BEVERAGES
21-JAN-2022,7012844,1.05,TOTAL PRODUCE GATESHEAD,399244,Commissioning & Asset Management,Children's & Education Services,103,Supplies and Services,504,Equipment,5023,Revenue,CATERING.FOOD & BEVERAGES
21-JAN-2022,7012844,1.06,TOTAL PRODUCE GATESHEAD,399244,Commissioning & Asset Management,Children's & Education Services,103,Supplies and Services,504,Equipment,5023,Revenue,CATERING.FOOD & BEVERAGES
21-JAN-2022,7012844,1.06,TOTAL PRODUCE GATESHEAD,399244,Commissioning & Asset Management,Children's & Education Services,103,Supplies and Services,504,Equipment,5023,Revenue,CATERING.FOOD & BEVERAGES
21-JAN-2022,7012844,1.06,TOTAL PRODUCE GATESHEAD,399244,Commissioning & Asset Management,Children's & Education Services,103,Supplies and Services,504,Equipment,5023,Revenue,CATERING.FOOD & BEVERAGES
21-JAN-2022,7012844,1.06,TOTAL PRODUCE GATESHEAD,399244,Commissioning & Asset Management,Children's & Education Services,103,Supplies and Services,504,Equipment,5023,Revenue,CATERING.FOOD & BEVERAGES
21-JAN-2022,7012844,1.06,TOTAL PRODUCE GATESHEAD,399244,Commissioning & Asset Management,Children's & Education Services,103,Supplies and Services,504,Equipment,5023,Revenue,CATERING.FOOD & BEVERAGES
21-JAN-2022,7012844,1.06,TOTAL PRODUCE GATESHEAD,399244,Commissioning & Asset Management,Children's & Education Services,103,Supplies and Services,504,Equipment,5023,Revenue,CATERING.FOOD & BEVERAGES
21-JAN-2022,7012844,1.06,TOTAL PRODUCE GATESHEAD,399244,Commissioning & Asset Management,Children's & Education Services,103,Supplies and Services,504,Equipment,5023,Revenue,CATERING.FOOD & BEVERAGES
21-JAN-2022,7012844,1.06,TOTAL PRODUCE GATESHEAD,399244,Commissioning & Asset Management,Children's & Education Services,103,Supplies and Services,504,Equipment,5023,Revenue,CATERING.FOOD & BEVERAGES
21-JAN-2022,7012844,1.06,TOTAL PRODUCE GATESHEAD,399244,Commissioning & Asset Management,Children's & Education Services,103,Supplies and Services,504,Equipment,5023,Revenue,CATERING.FOOD & BEVERAGES
21-JAN-2022,7012844,1.06,TOTAL PRODUCE GATESHEAD,399244,Commissioning & Asset Management,Children's & Education Services,103,Supplies and Services,504,Equipment,5023,Revenue,CATERING.FOOD & BEVERAGES
21-JAN-2022,7012844,1.06,TOTAL PRODUCE GATESHEAD,399244,Commissioning & Asset Management,Children's & Education Services,103,Supplies and Services,504,Equipment,5023,Revenue,CATERING.FOOD & BEVERAGES
21-JAN-2022,7012844,1.06,TOTAL PRODUCE GATESHEAD,399244,Commissioning & Asset Management,Children's & Education Services,103,Supplies and Services,504,Equipment,5023,Revenue,CATERING.FOOD & BEVERAGES
21-JAN-2022,7012844,1.06,TOTAL PRODUCE GATESHEAD,399244,Commissioning & Asset Management,Children's & Education Services,103,Supplies and Services,504,Equipment,5023,Revenue,CATERING.FOOD & BEVERAGES
21-JAN-2022,7012844,1.06,TOTAL PRODUCE GATESHEAD,399244,Commissioning & Asset Management,Children's & Education Services,103,Supplies and Services,504,Equipment,5023,Revenue,CATERING.FOOD & BEVERAGES
21-JAN-2022,7012844,1.06,TOTAL PRODUCE GATESHEAD,399244,Commissioning & Asset Management,Children's & Education Services,103,Supplies and Services,504,Equipment,5023,Revenue,CATERING.FOOD & BEVERAGES
21-JAN-2022,7012844,1.06,TOTAL PRODUCE GATESHEAD,399244,Commissioning & Asset Management,Children's & Education Services,103,Supplies and Services,504,Equipment,5023,Revenue,CATERING.FOOD & BEVERAGES
21-JAN-2022,7012844,1.06,TOTAL PRODUCE GATESHEAD,399244,Commissioning & Asset Management,Children's & Education Services,103,Supplies and Services,504,Equipment,5023,Revenue,CATERING.FOOD & BEVERAGES
21-JAN-2022,7012844,1.06,TOTAL PRODUCE GATESHEAD,399244,Commissioning & Asset Management,Children's & Education Services,103,Supplies and Services,504,Equipment,5023,Revenue,CATERING.FOOD & BEVERAGES
21-JAN-2022,7012844,1.06,TOTAL PRODUCE GATESHEAD,399244,Commissioning & Asset Management,Children's & Education Services,103,Supplies and Services,504,Equipment,5023,Revenue,CATERING.FOOD & BEVERAGES
21-JAN-2022,7012844,1.06,TOTAL PRODUCE GATESHEAD,399244,Commissioning & Asset Management,Children's & Education Services,103,Supplies and Services,504,Equipment,5023,Revenue,CATERING.FOOD & BEVERAGES
21-JAN-2022,7012844,1.06,TOTAL PRODUCE GATESHEAD,399244,Commissioning & Asset Management,Children's & Education Services,103,Supplies and Services,504,Equipment,5023,Revenue,CATERING.FOOD & BEVERAGES
21-JAN-2022,7012844,1.06,TOTAL PRODUCE GATESHEAD,399244,Commissioning & Asset Management,Children's & Education Services,103,Supplies and Services,504,Equipment,5023,Revenue,CATERING.FOOD & BEVERAGES
21-JAN-2022,7012844,1.06,TOTAL PRODUCE GATESHEAD,399244,Commissioning & Asset Management,Children's & Education Services,103,Supplies and Services,504,Equipment,5023,Revenue,CATERING.FOOD & BEVERAGES
21-JAN-2022,7012844,1.06,TOTAL PRODUCE GATESHEAD,399244,Commissioning & Asset Management,Children's & Education Services,103,Supplies and Services,504,Equipment,5023,Revenue,CATERING.FOOD & BEVERAGES
21-JAN-2022,7012844,1.06,TOTAL PRODUCE GATESHEAD,399244,Commissioning & Asset Management,Children's & Education Services,103,Supplies and Services,504,Equipment,5023,Revenue,CATERING.FOOD & BEVERAGES
21-JAN-2022,7012844,1.06,TOTAL PRODUCE GATESHEAD,399244,Commissioning & Asset Management,Children's & Education Services,103,Supplies and Services,504,Equipment,5023,Revenue,CATERING.FOOD & BEVERAGES
21-JAN-2022,7012844,1.06,TOTAL PRODUCE GATESHEAD,399244,Commissioning & Asset Management,Children's & Education Services,103,Supplies and Services,504,Equipment,5023,Revenue,CATERING.FOOD & BEVERAGES
21-JAN-2022,7012844,1.06,TOTAL PRODUCE GATESHEAD,399244,Commissioning & Asset Management,Children's & Education Services,103,Supplies and Services,504,Equipment,5023,Revenue,CATERING.FOOD & BEVERAGES
21-JAN-2022,7012844,1.06,TOTAL PRODUCE GATESHEAD,399244,Commissioning & Asset Management,Children's & Education Services,103,Supplies and Services,504,Equipment,5023,Revenue,CATERING.FOOD & BEVERAGES
21-JAN-2022,7012844,1.06,TOTAL PRODUCE GATESHEAD,399244,Commissioning & Asset Management,Children's & Education Services,103,Supplies and Services,504,Equipment,5023,Revenue,CATERING.FOOD & BEVERAGES
21-JAN-2022,7012844,1.06,TOTAL PRODUCE GATESHEAD,399244,Commissioning & Asset Management,Children's & Education Services,103,Supplies and Services,504,Equipment,5023,Revenue,CATERING.FOOD & BEVERAGES
21-JAN-2022,7012844,1.06,TOTAL PRODUCE GATESHEAD,399244,Commissioning & Asset Management,Children's & Education Services,103,Supplies and Services,504,Equipment,5023,Revenue,CATERING.FOOD & BEVERAGES
21-JAN-2022,7012844,1.06,TOTAL PRODUCE GATESHEAD,399244,Commissioning & Asset Management,Children's & Education Services,103,Supplies and Services,504,Equipment,5023,Revenue,CATERING.FOOD & BEVERAGES
21-JAN-2022,7012844,1.06,TOTAL PRODUCE GATESHEAD,399244,Commissioning & Asset Management,Children's & Education Services,103,Supplies and Services,504,Equipment,5023,Revenue,CATERING.FOOD & BEVERAGES
21-JAN-2022,7012844,1.06,TOTAL PRODUCE GATESHEAD,399244,Commissioning & Asset Management,Children's & Education Services,103,Supplies and Services,504,Equipment,5023,Revenue,CATERING.FOOD & BEVERAGES
21-JAN-2022,7012844,1.06,TOTAL PRODUCE GATESHEAD,399244,Commissioning & Asset Management,Children's & Education Services,103,Supplies and Services,504,Equipment,5023,Revenue,CATERING.FOOD & BEVERAGES
21-JAN-2022,7012844,1.06,TOTAL PRODUCE GATESHEAD,399244,Commissioning & Asset Management,Children's & Education Services,103,Supplies and Services,504,Equipment,5023,Revenue,CATERING.FOOD & BEVERAGES
21-JAN-2022,7012844,1.06,TOTAL PRODUCE GATESHEAD,399244,Commissioning & Asset Management,Children's & Education Services,103,Supplies and Services,504,Equipment,5023,Revenue,CATERING.FOOD & BEVERAGES
21-JAN-2022,7012844,1.06,TOTAL PRODUCE GATESHEAD,399244,Commissioning & Asset Management,Children's & Education Services,103,Supplies and Services,504,Equipment,5023,Revenue,CATERING.FOOD & BEVERAGES
21-JAN-2022,7012844,1.06,TOTAL PRODUCE GATESHEAD,399244,Commissioning & Asset Management,Children's & Education Services,103,Supplies and Services,504,Equipment,5023,Revenue,CATERING.FOOD & BEVERAGES
21-JAN-2022,7012844,1.06,TOTAL PRODUCE GATESHEAD,399244,Commissioning & Asset Management,Children's & Education Services,103,Supplies and Services,504,Equipment,5023,Revenue,CATERING.FOOD & BEVERAGES
21-JAN-2022,7012844,1.06,TOTAL PRODUCE GATESHEAD,399244,Commissioning & Asset Management,Children's & Education Services,103,Supplies and Services,504,Equipment,5023,Revenue,CATERING.FOOD & BEVERAGES
21-JAN-2022,7012844,1.06,TOTAL PRODUCE GATESHEAD,399244,Commissioning & Asset Management,Children's & Education Services,103,Supplies and Services,504,Equipment,5023,Revenue,CATERING.FOOD & BEVERAGES
21-JAN-2022,7012844,1.06,TOTAL PRODUCE GATESHEAD,399244,Commissioning & Asset Management,Children's & Education Services,103,Supplies and Services,504,Equipment,5023,Revenue,CATERING.FOOD & BEVERAGES
21-JAN-2022,7012844,1.06,TOTAL PRODUCE GATESHEAD,399244,Commissioning & Asset Management,Children's & Education Services,103,Supplies and Services,504,Equipment,5023,Revenue,CATERING.FOOD & BEVERAGES
21-JAN-2022,7012844,1.06,TOTAL PRODUCE GATESHEAD,399244,Commissioning & Asset Management,Children's & Education Services,103,Supplies and Services,504,Equipment,5023,Revenue,CATERING.FOOD & BEVERAGES
21-JAN-2022,7012844,1.06,TOTAL PRODUCE GATESHEAD,399244,Commissioning & Asset Management,Children's & Education Services,103,Supplies and Services,504,Equipment,5023,Revenue,CATERING.FOOD & BEVERAGES
21-JAN-2022,7012844,1.06,TOTAL PRODUCE GATESHEAD,399244,Commissioning & Asset Management,Children's & Education Services,103,Supplies and Services,504,Equipment,5023,Revenue,CATERING.FOOD & BEVERAGES
21-JAN-2022,7012844,1.06,TOTAL PRODUCE GATESHEAD,399244,Commissioning & Asset Management,Children's & Education Services,103,Supplies and Services,504,Equipment,5023,Revenue,CATERING.FOOD & BEVERAGES
21-JAN-2022,7012844,1.06,TOTAL PRODUCE GATESHEAD,399244,Commissioning & Asset Management,Children's & Education Services,103,Supplies and Services,504,Equipment,5023,Revenue,CATERING.FOOD & BEVERAGES
21-JAN-2022,7012844,1.06,TOTAL PRODUCE GATESHEAD,399244,Commissioning & Asset Management,Children's & Education Services,103,Supplies and Services,504,Equipment,5023,Revenue,CATERING.FOOD & BEVERAGES
21-JAN-2022,7012844,1.06,TOTAL PRODUCE GATESHEAD,399244,Commissioning & Asset Management,Children's & Education Services,103,Supplies and Services,504,Equipment,5023,Revenue,CATERING.FOOD & BEVERAGES
21-JAN-2022,7012844,1.06,TOTAL PRODUCE GATESHEAD,399244,Commissioning & Asset Management,Children's & Education Services,103,Supplies and Services,504,Equipment,5023,Revenue,CATERING.FOOD & BEVERAGES
21-JAN-2022,7012844,1.06,TOTAL PRODUCE GATESHEAD,399244,Commissioning & Asset Management,Children's & Education Services,103,Supplies and Services,504,Equipment,5023,Revenue,CATERING.FOOD & BEVERAGES
21-JAN-2022,7012844,1.06,TOTAL PRODUCE GATESHEAD,399244,Commissioning & Asset Management,Children's & Education Services,103,Supplies and Services,504,Equipment,5023,Revenue,CATERING.FOOD & BEVERAGES
21-JAN-2022,7012844,1.06,TOTAL PRODUCE GATESHEAD,399244,Commissioning & Asset Management,Children's & Education Services,103,Supplies and Services,504,Equipment,5023,Revenue,CATERING.FOOD & BEVERAGES
21-JAN-2022,7012844,1.06,TOTAL PRODUCE GATESHEAD,399244,Commissioning & Asset Management,Children's & Education Services,103,Supplies and Services,504,Equipment,5023,Revenue,CATERING.FOOD & BEVERAGES
21-JAN-2022,7012844,1.06,TOTAL PRODUCE GATESHEAD,399244,Commissioning & Asset Management,Children's & Education Services,103,Supplies and Services,504,Equipment,5023,Revenue,CATERING.FOOD & BEVERAGES
21-JAN-2022,7012844,1.06,TOTAL PRODUCE GATESHEAD,399244,Commissioning & Asset Management,Children's & Education Services,103,Supplies and Services,504,Equipment,5023,Revenue,CATERING.FOOD & BEVERAGES
21-JAN-2022,7012844,1.06,TOTAL PRODUCE GATESHEAD,399244,Commissioning & Asset Management,Children's & Education Services,103,Supplies and Services,504,Equipment,5023,Revenue,CATERING.FOOD & BEVERAGES
21-JAN-2022,7012844,1.06,TOTAL PRODUCE GATESHEAD,399244,Commissioning & Asset Management,Children's & Education Services,103,Supplies and Services,504,Equipment,5023,Revenue,CATERING.FOOD & BEVERAGES
21-JAN-2022,7012844,1.06,TOTAL PRODUCE GATESHEAD,399244,Commissioning & Asset Management,Children's & Education Services,103,Supplies and Services,504,Equipment,5023,Revenue,CATERING.FOOD & BEVERAGES
21-JAN-2022,7012844,1.06,TOTAL PRODUCE GATESHEAD,399244,Commissioning & Asset Management,Children's & Education Services,103,Supplies and Services,504,Equipment,5023,Revenue,CATERING.FOOD & BEVERAGES
21-JAN-2022,7012844,1.06,TOTAL PRODUCE GATESHEAD,399244,Commissioning & Asset Management,Children's & Education Services,103,Supplies and Services,504,Equipment,5023,Revenue,CATERING.FOOD & BEVERAGES
21-JAN-2022,7012844,1.06,TOTAL PRODUCE GATESHEAD,399244,Commissioning & Asset Management,Children's & Education Services,103,Supplies and Services,504,Equipment,5023,Revenue,CATERING.FOOD & BEVERAGES
21-JAN-2022,7012844,1.06,TOTAL PRODUCE GATESHEAD,399244,Commissioning & Asset Management,Children's & Education Services,103,Supplies and Services,504,Equipment,5023,Revenue,CATERING.FOOD & BEVERAGES
21-JAN-2022,7012844,1.06,TOTAL PRODUCE GATESHEAD,399244,Commissioning & Asset Management,Children's & Education Services,103,Supplies and Services,504,Equipment,5023,Revenue,CATERING.FOOD & BEVERAGES
21-JAN-2022,7012844,1.06,TOTAL PRODUCE GATESHEAD,399244,Commissioning & Asset Management,Children's & Education Services,103,Supplies and Services,504,Equipment,5023,Revenue,CATERING.FOOD & BEVERAGES
21-JAN-2022,7012844,1.06,TOTAL PRODUCE GATESHEAD,399244,Commissioning & Asset Management,Children's & Education Services,103,Supplies and Services,504,Equipment,5023,Revenue,CATERING.FOOD & BEVERAGES
21-JAN-2022,7012844,1.06,TOTAL PRODUCE GATESHEAD,399244,Commissioning & Asset Management,Children's & Education Services,103,Supplies and Services,504,Equipment,5023,Revenue,CATERING.FOOD & BEVERAGES
21-JAN-2022,7012844,1.06,TOTAL PRODUCE GATESHEAD,399244,Commissioning & Asset Management,Children's & Education Services,103,Supplies and Services,504,Equipment,5023,Revenue,CATERING.FOOD & BEVERAGES
21-JAN-2022,7012844,1.06,TOTAL PRODUCE GATESHEAD,399244,Commissioning & Asset Management,Children's & Education Services,103,Supplies and Services,504,Equipment,5023,Revenue,CATERING.FOOD & BEVERAGES
21-JAN-2022,7012844,1.06,TOTAL PRODUCE GATESHEAD,399244,Commissioning & Asset Management,Children's & Education Services,103,Supplies and Services,504,Equipment,5023,Revenue,CATERING.FOOD & BEVERAGES
21-JAN-2022,7012844,1.09,TOTAL PRODUCE GATESHEAD,399244,Commissioning & Asset Management,Children's & Education Services,103,Supplies and Services,504,Equipment,5023,Revenue,CATERING.FOOD & BEVERAGES
21-JAN-2022,7012844,1.09,TOTAL PRODUCE GATESHEAD,399244,Commissioning & Asset Management,Children's & Education Services,103,Supplies and Services,504,Equipment,5023,Revenue,CATERING.FOOD & BEVERAGES
21-JAN-2022,7012844,1.09,TOTAL PRODUCE GATESHEAD,399244,Commissioning & Asset Management,Children's & Education Services,103,Supplies and Services,504,Equipment,5023,Revenue,CATERING.FOOD & BEVERAGES
21-JAN-2022,7012844,1.09,TOTAL PRODUCE GATESHEAD,399244,Commissioning & Asset Management,Children's & Education Services,103,Supplies and Services,504,Equipment,5023,Revenue,CATERING.FOOD & BEVERAGES
21-JAN-2022,7012844,1.09,TOTAL PRODUCE GATESHEAD,399244,Commissioning & Asset Management,Children's & Education Services,103,Supplies and Services,504,Equipment,5023,Revenue,CATERING.FOOD & BEVERAGES
21-JAN-2022,7012844,1.09,TOTAL PRODUCE GATESHEAD,399244,Commissioning & Asset Management,Children's & Education Services,103,Supplies and Services,504,Equipment,5023,Revenue,CATERING.FOOD & BEVERAGES
21-JAN-2022,7012844,1.09,TOTAL PRODUCE GATESHEAD,399244,Commissioning & Asset Management,Children's & Education Services,103,Supplies and Services,504,Equipment,5023,Revenue,CATERING.FOOD & BEVERAGES
21-JAN-2022,7012844,1.09,TOTAL PRODUCE GATESHEAD,399244,Commissioning & Asset Management,Children's & Education Services,103,Supplies and Services,504,Equipment,5023,Revenue,CATERING.FOOD & BEVERAGES
21-JAN-2022,7012844,1.09,TOTAL PRODUCE GATESHEAD,399244,Commissioning & Asset Management,Children's & Education Services,103,Supplies and Services,504,Equipment,5023,Revenue,CATERING.FOOD & BEVERAGES
21-JAN-2022,7012844,1.09,TOTAL PRODUCE GATESHEAD,399244,Commissioning & Asset Management,Children's & Education Services,103,Supplies and Services,504,Equipment,5023,Revenue,CATERING.FOOD & BEVERAGES
21-JAN-2022,7012844,1.09,TOTAL PRODUCE GATESHEAD,399244,Commissioning & Asset Management,Children's & Education Services,103,Supplies and Services,504,Equipment,5023,Revenue,CATERING.FOOD & BEVERAGES
21-JAN-2022,7012844,1.09,TOTAL PRODUCE GATESHEAD,399244,Commissioning & Asset Management,Children's & Education Services,103,Supplies and Services,504,Equipment,5023,Revenue,CATERING.FOOD & BEVERAGES
21-JAN-2022,7012844,1.1,TOTAL PRODUCE GATESHEAD,399244,Commissioning & Asset Management,Children's & Education Services,103,Supplies and Services,504,Equipment,5023,Revenue,CATERING.FOOD & BEVERAGES
21-JAN-2022,7012844,1.1,TOTAL PRODUCE GATESHEAD,399244,Commissioning & Asset Management,Children's & Education Services,103,Supplies and Services,504,Equipment,5023,Revenue,CATERING.FOOD & BEVERAGES
21-JAN-2022,7012844,1.1,TOTAL PRODUCE GATESHEAD,399244,Commissioning & Asset Management,Children's & Education Services,103,Supplies and Services,504,Equipment,5023,Revenue,CATERING.FOOD & BEVERAGES
21-JAN-2022,7012844,1.1,TOTAL PRODUCE GATESHEAD,399244,Commissioning & Asset Management,Children's & Education Services,103,Supplies and Services,504,Equipment,5023,Revenue,CATERING.FOOD & BEVERAGES
21-JAN-2022,7012844,1.1,TOTAL PRODUCE GATESHEAD,399244,Commissioning & Asset Management,Children's & Education Services,103,Supplies and Services,504,Equipment,5023,Revenue,CATERING.FOOD & BEVERAGES
21-JAN-2022,7012844,1.1,TOTAL PRODUCE GATESHEAD,399244,Commissioning & Asset Management,Children's & Education Services,103,Supplies and Services,504,Equipment,5023,Revenue,CATERING.FOOD & BEVERAGES
21-JAN-2022,7012844,1.1,TOTAL PRODUCE GATESHEAD,399244,Commissioning & Asset Management,Children's & Education Services,103,Supplies and Services,504,Equipment,5023,Revenue,CATERING.FOOD & BEVERAGES
21-JAN-2022,7012844,1.1,TOTAL PRODUCE GATESHEAD,399244,Commissioning & Asset Management,Children's & Education Services,103,Supplies and Services,504,Equipment,5023,Revenue,CATERING.FOOD & BEVERAGES
21-JAN-2022,7012844,1.1,TOTAL PRODUCE GATESHEAD,399244,Commissioning & Asset Management,Children's & Education Services,103,Supplies and Services,504,Equipment,5023,Revenue,CATERING.FOOD & BEVERAGES
21-JAN-2022,7012844,1.12,TOTAL PRODUCE GATESHEAD,399244,"Environment, Housing & Leisure",Adult Social Care,101,Supplies and Services,504,Equipment,5023,Revenue,CATERING.FOOD & BEVERAGES
21-JAN-2022,7012844,1.12,TOTAL PRODUCE GATESHEAD,399244,Commissioning & Asset Management,Children's & Education Services,103,Supplies and Services,504,Equipment,5023,Revenue,CATERING.FOOD & BEVERAGES
21-JAN-2022,7012844,1.12,TOTAL PRODUCE GATESHEAD,399244,Commissioning & Asset Management,Children's & Education Services,103,Supplies and Services,504,Equipment,5023,Revenue,CATERING.FOOD & BEVERAGES
21-JAN-2022,7012844,1.12,TOTAL PRODUCE GATESHEAD,399244,Commissioning & Asset Management,Children's & Education Services,103,Supplies and Services,504,Equipment,5023,Revenue,CATERING.FOOD & BEVERAGES
21-JAN-2022,7012844,1.12,TOTAL PRODUCE GATESHEAD,399244,Commissioning & Asset Management,Children's & Education Services,103,Supplies and Services,504,Equipment,5023,Revenue,CATERING.FOOD & BEVERAGES
21-JAN-2022,7012844,1.12,TOTAL PRODUCE GATESHEAD,399244,Commissioning & Asset Management,Children's & Education Services,103,Supplies and Services,504,Equipment,5023,Revenue,CATERING.FOOD & BEVERAGES
21-JAN-2022,7012844,1.12,TOTAL PRODUCE GATESHEAD,399244,"Environment, Housing & Leisure",Cultural & Related Services,104,Supplies and Services,504,Equipment,5023,Revenue,CATERING.FOOD & BEVERAGES
21-JAN-2022,7012844,1.14,TOTAL PRODUCE GATESHEAD,399244,Commissioning & Asset Management,Children's & Education Services,103,Supplies and Services,504,Equipment,5023,Revenue,CATERING.FOOD & BEVERAGES
21-JAN-2022,7012844,1.14,TOTAL PRODUCE GATESHEAD,399244,Commissioning & Asset Management,Children's & Education Services,103,Supplies and Services,504,Equipment,5023,Revenue,CATERING.FOOD & BEVERAGES
21-JAN-2022,7012844,1.14,TOTAL PRODUCE GATESHEAD,399244,Commissioning & Asset Management,Children's & Education Services,103,Supplies and Services,504,Equipment,5023,Revenue,CATERING.FOOD & BEVERAGES
21-JAN-2022,7012844,1.14,TOTAL PRODUCE GATESHEAD,399244,Commissioning & Asset Management,Children's & Education Services,103,Supplies and Services,504,Equipment,5023,Revenue,CATERING.FOOD & BEVERAGES
21-JAN-2022,7012844,1.15,TOTAL PRODUCE GATESHEAD,399244,Commissioning & Asset Management,Children's & Education Services,103,Supplies and Services,504,Equipment,5023,Revenue,CATERING.FOOD & BEVERAGES
21-JAN-2022,7012844,1.15,TOTAL PRODUCE GATESHEAD,399244,Commissioning & Asset Management,Children's & Education Services,103,Supplies and Services,504,Equipment,5023,Revenue,CATERING.FOOD & BEVERAGES
21-JAN-2022,7012844,1.15,TOTAL PRODUCE GATESHEAD,399244,Commissioning & Asset Management,Children's & Education Services,103,Supplies and Services,504,Equipment,5023,Revenue,CATERING.FOOD & BEVERAGES
21-JAN-2022,7012844,1.15,TOTAL PRODUCE GATESHEAD,399244,Commissioning & Asset Management,Children's & Education Services,103,Supplies and Services,504,Equipment,5023,Revenue,CATERING.FOOD & BEVERAGES
21-JAN-2022,7012844,1.15,TOTAL PRODUCE GATESHEAD,399244,Commissioning & Asset Management,Children's & Education Services,103,Supplies and Services,504,Equipment,5023,Revenue,CATERING.FOOD & BEVERAGES
21-JAN-2022,7012844,1.15,TOTAL PRODUCE GATESHEAD,399244,Commissioning & Asset Management,Children's & Education Services,103,Supplies and Services,504,Equipment,5023,Revenue,CATERING.FOOD & BEVERAGES
21-JAN-2022,7012844,1.15,TOTAL PRODUCE GATESHEAD,399244,Commissioning & Asset Management,Children's & Education Services,103,Supplies and Services,504,Equipment,5023,Revenue,CATERING.FOOD & BEVERAGES
21-JAN-2022,7012844,1.15,TOTAL PRODUCE GATESHEAD,399244,Commissioning & Asset Management,Children's & Education Services,103,Supplies and Services,504,Equipment,5023,Revenue,CATERING.FOOD & BEVERAGES
21-JAN-2022,7012844,1.15,TOTAL PRODUCE GATESHEAD,399244,Commissioning & Asset Management,Children's & Education Services,103,Supplies and Services,504,Equipment,5023,Revenue,CATERING.FOOD & BEVERAGES
21-JAN-2022,7012844,1.15,TOTAL PRODUCE GATESHEAD,399244,Commissioning & Asset Management,Children's & Education Services,103,Supplies and Services,504,Equipment,5023,Revenue,CATERING.FOOD & BEVERAGES
21-JAN-2022,7012844,1.15,TOTAL PRODUCE GATESHEAD,399244,Commissioning & Asset Management,Children's & Education Services,103,Supplies and Services,504,Equipment,5023,Revenue,CATERING.FOOD & BEVERAGES
21-JAN-2022,7012844,1.15,TOTAL PRODUCE GATESHEAD,399244,Commissioning & Asset Management,Children's & Education Services,103,Supplies and Services,504,Equipment,5023,Revenue,CATERING.FOOD & BEVERAGES
21-JAN-2022,7012844,1.15,TOTAL PRODUCE GATESHEAD,399244,Commissioning & Asset Management,Children's & Education Services,103,Supplies and Services,504,Equipment,5023,Revenue,CATERING.FOOD & BEVERAGES
21-JAN-2022,7012844,1.15,TOTAL PRODUCE GATESHEAD,399244,Commissioning & Asset Management,Children's & Education Services,103,Supplies and Services,504,Equipment,5023,Revenue,CATERING.FOOD & BEVERAGES
21-JAN-2022,7012844,1.15,TOTAL PRODUCE GATESHEAD,399244,Commissioning & Asset Management,Children's & Education Services,103,Supplies and Services,504,Equipment,5023,Revenue,CATERING.FOOD & BEVERAGES
21-JAN-2022,7012844,1.15,TOTAL PRODUCE GATESHEAD,399244,Commissioning & Asset Management,Children's & Education Services,103,Supplies and Services,504,Equipment,5023,Revenue,CATERING.FOOD & BEVERAGES
21-JAN-2022,7012844,1.15,TOTAL PRODUCE GATESHEAD,399244,Commissioning & Asset Management,Children's & Education Services,103,Supplies and Services,504,Equipment,5023,Revenue,CATERING.FOOD & BEVERAGES
21-JAN-2022,7012844,1.15,TOTAL PRODUCE GATESHEAD,399244,Commissioning & Asset Management,Children's & Education Services,103,Supplies and Services,504,Equipment,5023,Revenue,CATERING.FOOD & BEVERAGES
21-JAN-2022,7012844,1.15,TOTAL PRODUCE GATESHEAD,399244,Commissioning & Asset Management,Children's & Education Services,103,Supplies and Services,504,Equipment,5023,Revenue,CATERING.FOOD & BEVERAGES
21-JAN-2022,7012844,1.15,TOTAL PRODUCE GATESHEAD,399244,Commissioning & Asset Management,Children's & Education Services,103,Supplies and Services,504,Equipment,5023,Revenue,CATERING.FOOD & BEVERAGES
21-JAN-2022,7012844,1.15,TOTAL PRODUCE GATESHEAD,399244,Commissioning & Asset Management,Children's & Education Services,103,Supplies and Services,504,Equipment,5023,Revenue,CATERING.FOOD & BEVERAGES
21-JAN-2022,7012844,1.15,TOTAL PRODUCE GATESHEAD,399244,Commissioning & Asset Management,Children's & Education Services,103,Supplies and Services,504,Equipment,5023,Revenue,CATERING.FOOD & BEVERAGES
21-JAN-2022,7012844,1.15,TOTAL PRODUCE GATESHEAD,399244,Commissioning & Asset Management,Children's & Education Services,103,Supplies and Services,504,Equipment,5023,Revenue,CATERING.FOOD & BEVERAGES
21-JAN-2022,7012844,1.15,TOTAL PRODUCE GATESHEAD,399244,Commissioning & Asset Management,Children's & Education Services,103,Supplies and Services,504,Equipment,5023,Revenue,CATERING.FOOD & BEVERAGES
21-JAN-2022,7012844,1.15,TOTAL PRODUCE GATESHEAD,399244,Commissioning & Asset Management,Children's & Education Services,103,Supplies and Services,504,Equipment,5023,Revenue,CATERING.FOOD & BEVERAGES
21-JAN-2022,7012844,1.15,TOTAL PRODUCE GATESHEAD,399244,Commissioning & Asset Management,Children's & Education Services,103,Supplies and Services,504,Equipment,5023,Revenue,CATERING.FOOD & BEVERAGES
21-JAN-2022,7012844,1.15,TOTAL PRODUCE GATESHEAD,399244,Commissioning & Asset Management,Children's & Education Services,103,Supplies and Services,504,Equipment,5023,Revenue,CATERING.FOOD & BEVERAGES
21-JAN-2022,7012844,1.15,TOTAL PRODUCE GATESHEAD,399244,Commissioning & Asset Management,Children's & Education Services,103,Supplies and Services,504,Equipment,5023,Revenue,CATERING.FOOD & BEVERAGES
21-JAN-2022,7012844,1.15,TOTAL PRODUCE GATESHEAD,399244,Commissioning & Asset Management,Children's & Education Services,103,Supplies and Services,504,Equipment,5023,Revenue,CATERING.FOOD & BEVERAGES
21-JAN-2022,7012844,1.16,TOTAL PRODUCE GATESHEAD,399244,"Environment, Housing & Leisure",Adult Social Care,101,Supplies and Services,504,Equipment,5023,Revenue,CATERING.FOOD & BEVERAGES
21-JAN-2022,7012844,1.16,TOTAL PRODUCE GATESHEAD,399244,Commissioning & Asset Management,Children's & Education Services,103,Supplies and Services,504,Equipment,5023,Revenue,CATERING.FOOD & BEVERAGES
21-JAN-2022,7012844,1.16,TOTAL PRODUCE GATESHEAD,399244,Commissioning & Asset Management,Children's & Education Services,103,Supplies and Services,504,Equipment,5023,Revenue,CATERING.FOOD & BEVERAGES
21-JAN-2022,7012844,1.2,TOTAL PRODUCE GATESHEAD,399244,Commissioning & Asset Management,Children's & Education Services,103,Supplies and Services,504,Equipment,5023,Revenue,CATERING.FOOD & BEVERAGES
21-JAN-2022,7012844,1.21,TOTAL PRODUCE GATESHEAD,399244,"Environment, Housing & Leisure",Adult Social Care,101,Supplies and Services,504,Equipment,5023,Revenue,CATERING.FOOD & BEVERAGES
21-JAN-2022,7012844,1.21,TOTAL PRODUCE GATESHEAD,399244,"Environment, Housing & Leisure",Adult Social Care,101,Supplies and Services,504,Equipment,5023,Revenue,CATERING.FOOD & BEVERAGES
21-JAN-2022,7012844,1.21,TOTAL PRODUCE GATESHEAD,399244,Commissioning & Asset Management,Children's & Education Services,103,Supplies and Services,504,Equipment,5023,Revenue,CATERING.FOOD & BEVERAGES
21-JAN-2022,7012844,1.21,TOTAL PRODUCE GATESHEAD,399244,Commissioning & Asset Management,Children's & Education Services,103,Supplies and Services,504,Equipment,5023,Revenue,CATERING.FOOD & BEVERAGES
21-JAN-2022,7012844,1.21,TOTAL PRODUCE GATESHEAD,399244,Commissioning & Asset Management,Children's & Education Services,103,Supplies and Services,504,Equipment,5023,Revenue,CATERING.FOOD & BEVERAGES
21-JAN-2022,7012844,1.21,TOTAL PRODUCE GATESHEAD,399244,Commissioning & Asset Management,Children's & Education Services,103,Supplies and Services,504,Equipment,5023,Revenue,CATERING.FOOD & BEVERAGES
21-JAN-2022,7012844,1.21,TOTAL PRODUCE GATESHEAD,399244,"Environment, Housing & Leisure",Cultural & Related Services,104,Supplies and Services,504,Equipment,5023,Revenue,CATERING.FOOD & BEVERAGES
21-JAN-2022,7012844,1.21,TOTAL PRODUCE GATESHEAD,399244,"Environment, Housing & Leisure",Cultural & Related Services,104,Supplies and Services,504,Equipment,5023,Revenue,CATERING.FOOD & BEVERAGES
21-JAN-2022,7012844,1.22,TOTAL PRODUCE GATESHEAD,399244,Commissioning & Asset Management,Children's & Education Services,103,Supplies and Services,504,Equipment,5023,Revenue,CATERING.FOOD & BEVERAGES
21-JAN-2022,7012844,1.22,TOTAL PRODUCE GATESHEAD,399244,Commissioning & Asset Management,Children's & Education Services,103,Supplies and Services,504,Equipment,5023,Revenue,CATERING.FOOD & BEVERAGES
21-JAN-2022,7012844,1.22,TOTAL PRODUCE GATESHEAD,399244,Commissioning & Asset Management,Children's & Education Services,103,Supplies and Services,504,Equipment,5023,Revenue,CATERING.FOOD & BEVERAGES
21-JAN-2022,7012844,1.22,TOTAL PRODUCE GATESHEAD,399244,Commissioning & Asset Management,Children's & Education Services,103,Supplies and Services,504,Equipment,5023,Revenue,CATERING.FOOD & BEVERAGES
21-JAN-2022,7012844,1.22,TOTAL PRODUCE GATESHEAD,399244,Commissioning & Asset Management,Children's & Education Services,103,Supplies and Services,504,Equipment,5023,Revenue,CATERING.FOOD & BEVERAGES
21-JAN-2022,7012844,1.22,TOTAL PRODUCE GATESHEAD,399244,Commissioning & Asset Management,Children's & Education Services,103,Supplies and Services,504,Equipment,5023,Revenue,CATERING.FOOD & BEVERAGES
21-JAN-2022,7012844,1.22,TOTAL PRODUCE GATESHEAD,399244,Commissioning & Asset Management,Children's & Education Services,103,Supplies and Services,504,Equipment,5023,Revenue,CATERING.FOOD & BEVERAGES
21-JAN-2022,7012844,1.22,TOTAL PRODUCE GATESHEAD,399244,Commissioning & Asset Management,Children's & Education Services,103,Supplies and Services,504,Equipment,5023,Revenue,CATERING.FOOD & BEVERAGES
21-JAN-2022,7012844,1.22,TOTAL PRODUCE GATESHEAD,399244,Commissioning & Asset Management,Children's & Education Services,103,Supplies and Services,504,Equipment,5023,Revenue,CATERING.FOOD & BEVERAGES
21-JAN-2022,7012844,1.22,TOTAL PRODUCE GATESHEAD,399244,Commissioning & Asset Management,Children's & Education Services,103,Supplies and Services,504,Equipment,5023,Revenue,CATERING.FOOD & BEVERAGES
21-JAN-2022,7012844,1.22,TOTAL PRODUCE GATESHEAD,399244,Commissioning & Asset Management,Children's & Education Services,103,Supplies and Services,504,Equipment,5023,Revenue,CATERING.FOOD & BEVERAGES
21-JAN-2022,7012844,1.25,TOTAL PRODUCE GATESHEAD,399244,Commissioning & Asset Management,Children's & Education Services,103,Supplies and Services,504,Equipment,5023,Revenue,CATERING.FOOD & BEVERAGES
21-JAN-2022,7012844,1.26,TOTAL PRODUCE GATESHEAD,399244,Commissioning & Asset Management,Children's & Education Services,103,Supplies and Services,504,Equipment,5023,Revenue,CATERING.FOOD & BEVERAGES
21-JAN-2022,7012844,1.26,TOTAL PRODUCE GATESHEAD,399244,Commissioning & Asset Management,Children's & Education Services,103,Supplies and Services,504,Equipment,5023,Revenue,CATERING.FOOD & BEVERAGES
21-JAN-2022,7012844,1.28,TOTAL PRODUCE GATESHEAD,399244,Commissioning & Asset Management,Children's & Education Services,103,Supplies and Services,504,Equipment,5023,Revenue,CATERING.FOOD & BEVERAGES
21-JAN-2022,7012844,1.28,TOTAL PRODUCE GATESHEAD,399244,Commissioning & Asset Management,Children's & Education Services,103,Supplies and Services,504,Equipment,5023,Revenue,CATERING.FOOD & BEVERAGES
21-JAN-2022,7012844,1.28,TOTAL PRODUCE GATESHEAD,399244,Commissioning & Asset Management,Children's & Education Services,103,Supplies and Services,504,Equipment,5023,Revenue,CATERING.FOOD & BEVERAGES
21-JAN-2022,7012844,1.28,TOTAL PRODUCE GATESHEAD,399244,Commissioning & Asset Management,Children's & Education Services,103,Supplies and Services,504,Equipment,5023,Revenue,CATERING.FOOD & BEVERAGES
21-JAN-2022,7012844,1.28,TOTAL PRODUCE GATESHEAD,399244,Commissioning & Asset Management,Children's & Education Services,103,Supplies and Services,504,Equipment,5023,Revenue,CATERING.FOOD & BEVERAGES
21-JAN-2022,7012844,1.28,TOTAL PRODUCE GATESHEAD,399244,Commissioning & Asset Management,Children's & Education Services,103,Supplies and Services,504,Equipment,5023,Revenue,CATERING.FOOD & BEVERAGES
21-JAN-2022,7012844,1.28,TOTAL PRODUCE GATESHEAD,399244,Commissioning & Asset Management,Children's & Education Services,103,Supplies and Services,504,Equipment,5023,Revenue,CATERING.FOOD & BEVERAGES
21-JAN-2022,7012844,1.28,TOTAL PRODUCE GATESHEAD,399244,Commissioning & Asset Management,Children's & Education Services,103,Supplies and Services,504,Equipment,5023,Revenue,CATERING.FOOD & BEVERAGES
21-JAN-2022,7012844,1.28,TOTAL PRODUCE GATESHEAD,399244,Commissioning & Asset Management,Children's & Education Services,103,Supplies and Services,504,Equipment,5023,Revenue,CATERING.FOOD & BEVERAGES
21-JAN-2022,7012844,1.28,TOTAL PRODUCE GATESHEAD,399244,Commissioning & Asset Management,Children's & Education Services,103,Supplies and Services,504,Equipment,5023,Revenue,CATERING.FOOD & BEVERAGES
21-JAN-2022,7012844,1.28,TOTAL PRODUCE GATESHEAD,399244,Commissioning & Asset Management,Children's & Education Services,103,Supplies and Services,504,Equipment,5023,Revenue,CATERING.FOOD & BEVERAGES
21-JAN-2022,7012844,1.28,TOTAL PRODUCE GATESHEAD,399244,Commissioning & Asset Management,Children's & Education Services,103,Supplies and Services,504,Equipment,5023,Revenue,CATERING.FOOD & BEVERAGES
21-JAN-2022,7012844,1.28,TOTAL PRODUCE GATESHEAD,399244,Commissioning & Asset Management,Children's & Education Services,103,Supplies and Services,504,Equipment,5023,Revenue,CATERING.FOOD & BEVERAGES
21-JAN-2022,7012844,1.28,TOTAL PRODUCE GATESHEAD,399244,Commissioning & Asset Management,Children's & Education Services,103,Supplies and Services,504,Equipment,5023,Revenue,CATERING.FOOD & BEVERAGES
21-JAN-2022,7012844,1.28,TOTAL PRODUCE GATESHEAD,399244,Commissioning & Asset Management,Children's & Education Services,103,Supplies and Services,504,Equipment,5023,Revenue,CATERING.FOOD & BEVERAGES
21-JAN-2022,7012844,1.28,TOTAL PRODUCE GATESHEAD,399244,Commissioning & Asset Management,Children's & Education Services,103,Supplies and Services,504,Equipment,5023,Revenue,CATERING.FOOD & BEVERAGES
21-JAN-2022,7012844,1.28,TOTAL PRODUCE GATESHEAD,399244,Commissioning & Asset Management,Children's & Education Services,103,Supplies and Services,504,Equipment,5023,Revenue,CATERING.FOOD & BEVERAGES
21-JAN-2022,7012844,1.28,TOTAL PRODUCE GATESHEAD,399244,Commissioning & Asset Management,Children's & Education Services,103,Supplies and Services,504,Equipment,5023,Revenue,CATERING.FOOD & BEVERAGES
21-JAN-2022,7012844,1.28,TOTAL PRODUCE GATESHEAD,399244,Commissioning & Asset Management,Children's & Education Services,103,Supplies and Services,504,Equipment,5023,Revenue,CATERING.FOOD & BEVERAGES
21-JAN-2022,7012844,1.28,TOTAL PRODUCE GATESHEAD,399244,Commissioning & Asset Management,Children's & Education Services,103,Supplies and Services,504,Equipment,5023,Revenue,CATERING.FOOD & BEVERAGES
21-JAN-2022,7012844,1.28,TOTAL PRODUCE GATESHEAD,399244,Commissioning & Asset Management,Children's & Education Services,103,Supplies and Services,504,Equipment,5023,Revenue,CATERING.FOOD & BEVERAGES
21-JAN-2022,7012844,1.28,TOTAL PRODUCE GATESHEAD,399244,Commissioning & Asset Management,Children's & Education Services,103,Supplies and Services,504,Equipment,5023,Revenue,CATERING.FOOD & BEVERAGES
21-JAN-2022,7012844,1.28,TOTAL PRODUCE GATESHEAD,399244,Commissioning & Asset Management,Children's & Education Services,103,Supplies and Services,504,Equipment,5023,Revenue,CATERING.FOOD & BEVERAGES
21-JAN-2022,7012844,1.28,TOTAL PRODUCE GATESHEAD,399244,Commissioning & Asset Management,Children's & Education Services,103,Supplies and Services,504,Equipment,5023,Revenue,CATERING.FOOD & BEVERAGES
21-JAN-2022,7012844,1.28,TOTAL PRODUCE GATESHEAD,399244,Commissioning & Asset Management,Children's & Education Services,103,Supplies and Services,504,Equipment,5023,Revenue,CATERING.FOOD & BEVERAGES
21-JAN-2022,7012844,1.28,TOTAL PRODUCE GATESHEAD,399244,Commissioning & Asset Management,Children's & Education Services,103,Supplies and Services,504,Equipment,5023,Revenue,CATERING.FOOD & BEVERAGES
21-JAN-2022,7012844,1.28,TOTAL PRODUCE GATESHEAD,399244,Commissioning & Asset Management,Children's & Education Services,103,Supplies and Services,504,Equipment,5023,Revenue,CATERING.FOOD & BEVERAGES
21-JAN-2022,7012844,1.28,TOTAL PRODUCE GATESHEAD,399244,Commissioning & Asset Management,Children's & Education Services,103,Supplies and Services,504,Equipment,5023,Revenue,CATERING.FOOD & BEVERAGES
21-JAN-2022,7012844,1.28,TOTAL PRODUCE GATESHEAD,399244,Commissioning & Asset Management,Children's & Education Services,103,Supplies and Services,504,Equipment,5023,Revenue,CATERING.FOOD & BEVERAGES
21-JAN-2022,7012844,1.28,TOTAL PRODUCE GATESHEAD,399244,Commissioning & Asset Management,Children's & Education Services,103,Supplies and Services,504,Equipment,5023,Revenue,CATERING.FOOD & BEVERAGES
21-JAN-2022,7012844,1.28,TOTAL PRODUCE GATESHEAD,399244,Commissioning & Asset Management,Children's & Education Services,103,Supplies and Services,504,Equipment,5023,Revenue,CATERING.FOOD & BEVERAGES
21-JAN-2022,7012844,1.28,TOTAL PRODUCE GATESHEAD,399244,Commissioning & Asset Management,Children's & Education Services,103,Supplies and Services,504,Equipment,5023,Revenue,CATERING.FOOD & BEVERAGES
21-JAN-2022,7012844,1.28,TOTAL PRODUCE GATESHEAD,399244,Commissioning & Asset Management,Children's & Education Services,103,Supplies and Services,504,Equipment,5023,Revenue,CATERING.FOOD & BEVERAGES
21-JAN-2022,7012844,1.28,TOTAL PRODUCE GATESHEAD,399244,Commissioning & Asset Management,Children's & Education Services,103,Supplies and Services,504,Equipment,5023,Revenue,CATERING.FOOD & BEVERAGES
21-JAN-2022,7012844,1.28,TOTAL PRODUCE GATESHEAD,399244,Commissioning & Asset Management,Children's & Education Services,103,Supplies and Services,504,Equipment,5023,Revenue,CATERING.FOOD & BEVERAGES
21-JAN-2022,7012844,1.28,TOTAL PRODUCE GATESHEAD,399244,Commissioning & Asset Management,Children's & Education Services,103,Supplies and Services,504,Equipment,5023,Revenue,CATERING.FOOD & BEVERAGES
21-JAN-2022,7012844,1.28,TOTAL PRODUCE GATESHEAD,399244,Commissioning & Asset Management,Children's & Education Services,103,Supplies and Services,504,Equipment,5023,Revenue,CATERING.FOOD & BEVERAGES
21-JAN-2022,7012844,1.28,TOTAL PRODUCE GATESHEAD,399244,Commissioning & Asset Management,Children's & Education Services,103,Supplies and Services,504,Equipment,5023,Revenue,CATERING.FOOD & BEVERAGES
21-JAN-2022,7012844,1.28,TOTAL PRODUCE GATESHEAD,399244,Commissioning & Asset Management,Children's & Education Services,103,Supplies and Services,504,Equipment,5023,Revenue,CATERING.FOOD & BEVERAGES
21-JAN-2022,7012844,1.28,TOTAL PRODUCE GATESHEAD,399244,Commissioning & Asset Management,Children's & Education Services,103,Supplies and Services,504,Equipment,5023,Revenue,CATERING.FOOD & BEVERAGES
21-JAN-2022,7012844,1.28,TOTAL PRODUCE GATESHEAD,399244,Commissioning & Asset Management,Children's & Education Services,103,Supplies and Services,504,Equipment,5023,Revenue,CATERING.FOOD & BEVERAGES
21-JAN-2022,7012844,1.28,TOTAL PRODUCE GATESHEAD,399244,Commissioning & Asset Management,Children's & Education Services,103,Supplies and Services,504,Equipment,5023,Revenue,CATERING.FOOD & BEVERAGES
21-JAN-2022,7012844,1.28,TOTAL PRODUCE GATESHEAD,399244,Commissioning & Asset Management,Children's & Education Services,103,Supplies and Services,504,Equipment,5023,Revenue,CATERING.FOOD & BEVERAGES
21-JAN-2022,7012844,1.28,TOTAL PRODUCE GATESHEAD,399244,Commissioning & Asset Management,Children's & Education Services,103,Supplies and Services,504,Equipment,5023,Revenue,CATERING.FOOD & BEVERAGES
21-JAN-2022,7012844,1.28,TOTAL PRODUCE GATESHEAD,399244,Commissioning & Asset Management,Children's & Education Services,103,Supplies and Services,504,Equipment,5023,Revenue,CATERING.FOOD & BEVERAGES
21-JAN-2022,7012844,1.28,TOTAL PRODUCE GATESHEAD,399244,Commissioning & Asset Management,Children's & Education Services,103,Supplies and Services,504,Equipment,5023,Revenue,CATERING.FOOD & BEVERAGES
21-JAN-2022,7012844,1.28,TOTAL PRODUCE GATESHEAD,399244,Commissioning & Asset Management,Children's & Education Services,103,Supplies and Services,504,Equipment,5023,Revenue,CATERING.FOOD & BEVERAGES
21-JAN-2022,7012844,1.28,TOTAL PRODUCE GATESHEAD,399244,Commissioning & Asset Management,Children's & Education Services,103,Supplies and Services,504,Equipment,5023,Revenue,CATERING.FOOD & BEVERAGES
21-JAN-2022,7012844,1.28,TOTAL PRODUCE GATESHEAD,399244,Commissioning & Asset Management,Children's & Education Services,103,Supplies and Services,504,Equipment,5023,Revenue,CATERING.FOOD & BEVERAGES
21-JAN-2022,7012844,1.28,TOTAL PRODUCE GATESHEAD,399244,Commissioning & Asset Management,Children's & Education Services,103,Supplies and Services,504,Equipment,5023,Revenue,CATERING.FOOD & BEVERAGES
21-JAN-2022,7012844,1.28,TOTAL PRODUCE GATESHEAD,399244,Commissioning & Asset Management,Children's & Education Services,103,Supplies and Services,504,Equipment,5023,Revenue,CATERING.FOOD & BEVERAGES
21-JAN-2022,7012844,1.28,TOTAL PRODUCE GATESHEAD,399244,Commissioning & Asset Management,Children's & Education Services,103,Supplies and Services,504,Equipment,5023,Revenue,CATERING.FOOD & BEVERAGES
21-JAN-2022,7012844,1.28,TOTAL PRODUCE GATESHEAD,399244,Commissioning & Asset Management,Children's & Education Services,103,Supplies and Services,504,Equipment,5023,Revenue,CATERING.FOOD & BEVERAGES
21-JAN-2022,7012844,1.28,TOTAL PRODUCE GATESHEAD,399244,Commissioning & Asset Management,Children's & Education Services,103,Supplies and Services,504,Equipment,5023,Revenue,CATERING.FOOD & BEVERAGES
21-JAN-2022,7012844,1.28,TOTAL PRODUCE GATESHEAD,399244,Commissioning & Asset Management,Children's & Education Services,103,Supplies and Services,504,Equipment,5023,Revenue,CATERING.FOOD & BEVERAGES
21-JAN-2022,7012844,1.28,TOTAL PRODUCE GATESHEAD,399244,Commissioning & Asset Management,Children's & Education Services,103,Supplies and Services,504,Equipment,5023,Revenue,CATERING.FOOD & BEVERAGES
21-JAN-2022,7012844,1.28,TOTAL PRODUCE GATESHEAD,399244,Commissioning & Asset Management,Children's & Education Services,103,Supplies and Services,504,Equipment,5023,Revenue,CATERING.FOOD & BEVERAGES
21-JAN-2022,7012844,1.28,TOTAL PRODUCE GATESHEAD,399244,Commissioning & Asset Management,Children's & Education Services,103,Supplies and Services,504,Equipment,5023,Revenue,CATERING.FOOD & BEVERAGES
21-JAN-2022,7012844,1.28,TOTAL PRODUCE GATESHEAD,399244,Commissioning & Asset Management,Children's & Education Services,103,Supplies and Services,504,Equipment,5023,Revenue,CATERING.FOOD & BEVERAGES
21-JAN-2022,7012844,1.28,TOTAL PRODUCE GATESHEAD,399244,Commissioning & Asset Management,Children's & Education Services,103,Supplies and Services,504,Equipment,5023,Revenue,CATERING.FOOD & BEVERAGES
21-JAN-2022,7012844,1.32,TOTAL PRODUCE GATESHEAD,399244,Commissioning & Asset Management,Children's & Education Services,103,Supplies and Services,504,Equipment,5023,Revenue,CATERING.FOOD & BEVERAGES
21-JAN-2022,7012844,1.32,TOTAL PRODUCE GATESHEAD,399244,Commissioning & Asset Management,Children's & Education Services,103,Supplies and Services,504,Equipment,5023,Revenue,CATERING.FOOD & BEVERAGES
21-JAN-2022,7012844,1.32,TOTAL PRODUCE GATESHEAD,399244,Commissioning & Asset Management,Children's & Education Services,103,Supplies and Services,504,Equipment,5023,Revenue,CATERING.FOOD & BEVERAGES
21-JAN-2022,7012844,1.32,TOTAL PRODUCE GATESHEAD,399244,Commissioning & Asset Management,Children's & Education Services,103,Supplies and Services,504,Equipment,5023,Revenue,CATERING.FOOD & BEVERAGES
21-JAN-2022,7012844,1.32,TOTAL PRODUCE GATESHEAD,399244,Commissioning & Asset Management,Children's & Education Services,103,Supplies and Services,504,Equipment,5023,Revenue,CATERING.FOOD & BEVERAGES
21-JAN-2022,7012844,1.32,TOTAL PRODUCE GATESHEAD,399244,Commissioning & Asset Management,Children's & Education Services,103,Supplies and Services,504,Equipment,5023,Revenue,CATERING.FOOD & BEVERAGES
21-JAN-2022,7012844,1.34,TOTAL PRODUCE GATESHEAD,399244,Commissioning & Asset Management,Children's & Education Services,103,Supplies and Services,504,Equipment,5023,Revenue,CATERING.FOOD & BEVERAGES
21-JAN-2022,7012844,1.34,TOTAL PRODUCE GATESHEAD,399244,Commissioning & Asset Management,Children's & Education Services,103,Supplies and Services,504,Equipment,5023,Revenue,CATERING.FOOD & BEVERAGES
21-JAN-2022,7012844,1.35,TOTAL PRODUCE GATESHEAD,399244,"Environment, Housing & Leisure",Adult Social Care,101,Supplies and Services,504,Equipment,5023,Revenue,CATERING.FOOD & BEVERAGES
21-JAN-2022,7012844,1.35,TOTAL PRODUCE GATESHEAD,399244,"Environment, Housing & Leisure",Adult Social Care,101,Supplies and Services,504,Equipment,5023,Revenue,CATERING.FOOD & BEVERAGES
21-JAN-2022,7012844,1.35,TOTAL PRODUCE GATESHEAD,399244,"Environment, Housing & Leisure",Adult Social Care,101,Supplies and Services,504,Equipment,5023,Revenue,CATERING.FOOD & BEVERAGES
21-JAN-2022,7012844,1.35,TOTAL PRODUCE GATESHEAD,399244,Commissioning & Asset Management,Children's & Education Services,103,Supplies and Services,504,Equipment,5023,Revenue,CATERING.FOOD & BEVERAGES
21-JAN-2022,7012844,1.35,TOTAL PRODUCE GATESHEAD,399244,Commissioning & Asset Management,Children's & Education Services,103,Supplies and Services,504,Equipment,5023,Revenue,CATERING.FOOD & BEVERAGES
21-JAN-2022,7012844,1.35,TOTAL PRODUCE GATESHEAD,399244,Commissioning & Asset Management,Children's & Education Services,103,Supplies and Services,504,Equipment,5023,Revenue,CATERING.FOOD & BEVERAGES
21-JAN-2022,7012844,1.35,TOTAL PRODUCE GATESHEAD,399244,Commissioning & Asset Management,Children's & Education Services,103,Supplies and Services,504,Equipment,5023,Revenue,CATERING.FOOD & BEVERAGES
21-JAN-2022,7012844,1.35,TOTAL PRODUCE GATESHEAD,399244,Commissioning & Asset Management,Children's & Education Services,103,Supplies and Services,504,Equipment,5023,Revenue,CATERING.FOOD & BEVERAGES
21-JAN-2022,7012844,1.35,TOTAL PRODUCE GATESHEAD,399244,Commissioning & Asset Management,Children's & Education Services,103,Supplies and Services,504,Equipment,5023,Revenue,CATERING.FOOD & BEVERAGES
21-JAN-2022,7012844,1.35,TOTAL PRODUCE GATESHEAD,399244,Commissioning & Asset Management,Children's & Education Services,103,Supplies and Services,504,Equipment,5023,Revenue,CATERING.FOOD & BEVERAGES
21-JAN-2022,7012844,1.35,TOTAL PRODUCE GATESHEAD,399244,Commissioning & Asset Management,Children's & Education Services,103,Supplies and Services,504,Equipment,5023,Revenue,CATERING.FOOD & BEVERAGES
21-JAN-2022,7012844,1.36,TOTAL PRODUCE GATESHEAD,399244,Commissioning & Asset Management,Children's & Education Services,103,Supplies and Services,504,Equipment,5023,Revenue,CATERING.FOOD & BEVERAGES
21-JAN-2022,7012844,1.36,TOTAL PRODUCE GATESHEAD,399244,Commissioning & Asset Management,Children's & Education Services,103,Supplies and Services,504,Equipment,5023,Revenue,CATERING.FOOD & BEVERAGES
21-JAN-2022,7012844,1.36,TOTAL PRODUCE GATESHEAD,399244,Commissioning & Asset Management,Children's & Education Services,103,Supplies and Services,504,Equipment,5023,Revenue,CATERING.FOOD & BEVERAGES
21-JAN-2022,7012844,1.36,TOTAL PRODUCE GATESHEAD,399244,Commissioning & Asset Management,Children's & Education Services,103,Supplies and Services,504,Equipment,5023,Revenue,CATERING.FOOD & BEVERAGES
21-JAN-2022,7012844,1.36,TOTAL PRODUCE GATESHEAD,399244,Commissioning & Asset Management,Children's & Education Services,103,Supplies and Services,504,Equipment,5023,Revenue,CATERING.FOOD & BEVERAGES
21-JAN-2022,7012844,1.36,TOTAL PRODUCE GATESHEAD,399244,Commissioning & Asset Management,Children's & Education Services,103,Supplies and Services,504,Equipment,5023,Revenue,CATERING.FOOD & BEVERAGES
21-JAN-2022,7012844,1.36,TOTAL PRODUCE GATESHEAD,399244,Commissioning & Asset Management,Children's & Education Services,103,Supplies and Services,504,Equipment,5023,Revenue,CATERING.FOOD & BEVERAGES
21-JAN-2022,7012844,1.36,TOTAL PRODUCE GATESHEAD,399244,Commissioning & Asset Management,Children's & Education Services,103,Supplies and Services,504,Equipment,5023,Revenue,CATERING.FOOD & BEVERAGES
21-JAN-2022,7012844,1.36,TOTAL PRODUCE GATESHEAD,399244,Commissioning & Asset Management,Children's & Education Services,103,Supplies and Services,504,Equipment,5023,Revenue,CATERING.FOOD & BEVERAGES
21-JAN-2022,7012844,1.36,TOTAL PRODUCE GATESHEAD,399244,Commissioning & Asset Management,Children's & Education Services,103,Supplies and Services,504,Equipment,5023,Revenue,CATERING.FOOD & BEVERAGES
21-JAN-2022,7012844,1.36,TOTAL PRODUCE GATESHEAD,399244,Commissioning & Asset Management,Children's & Education Services,103,Supplies and Services,504,Equipment,5023,Revenue,CATERING.FOOD & BEVERAGES
21-JAN-2022,7012844,1.36,TOTAL PRODUCE GATESHEAD,399244,Commissioning & Asset Management,Children's & Education Services,103,Supplies and Services,504,Equipment,5023,Revenue,CATERING.FOOD & BEVERAGES
21-JAN-2022,7012844,1.36,TOTAL PRODUCE GATESHEAD,399244,Commissioning & Asset Management,Children's & Education Services,103,Supplies and Services,504,Equipment,5023,Revenue,CATERING.FOOD & BEVERAGES
21-JAN-2022,7012844,1.36,TOTAL PRODUCE GATESHEAD,399244,Commissioning & Asset Management,Children's & Education Services,103,Supplies and Services,504,Equipment,5023,Revenue,CATERING.FOOD & BEVERAGES
21-JAN-2022,7012844,1.36,TOTAL PRODUCE GATESHEAD,399244,Commissioning & Asset Management,Children's & Education Services,103,Supplies and Services,504,Equipment,5023,Revenue,CATERING.FOOD & BEVERAGES
21-JAN-2022,7012844,1.36,TOTAL PRODUCE GATESHEAD,399244,Commissioning & Asset Management,Children's & Education Services,103,Supplies and Services,504,Equipment,5023,Revenue,CATERING.FOOD & BEVERAGES
21-JAN-2022,7012844,1.36,TOTAL PRODUCE GATESHEAD,399244,Commissioning & Asset Management,Children's & Education Services,103,Supplies and Services,504,Equipment,5023,Revenue,CATERING.FOOD & BEVERAGES
21-JAN-2022,7012844,1.36,TOTAL PRODUCE GATESHEAD,399244,Commissioning & Asset Management,Children's & Education Services,103,Supplies and Services,504,Equipment,5023,Revenue,CATERING.FOOD & BEVERAGES
21-JAN-2022,7012844,1.36,TOTAL PRODUCE GATESHEAD,399244,Commissioning & Asset Management,Children's & Education Services,103,Supplies and Services,504,Equipment,5023,Revenue,CATERING.FOOD & BEVERAGES
21-JAN-2022,7012844,1.36,TOTAL PRODUCE GATESHEAD,399244,Commissioning & Asset Management,Children's & Education Services,103,Supplies and Services,504,Equipment,5023,Revenue,CATERING.FOOD & BEVERAGES
21-JAN-2022,7012844,1.36,TOTAL PRODUCE GATESHEAD,399244,Commissioning & Asset Management,Children's & Education Services,103,Supplies and Services,504,Equipment,5023,Revenue,CATERING.FOOD & BEVERAGES
21-JAN-2022,7012844,1.36,TOTAL PRODUCE GATESHEAD,399244,Commissioning & Asset Management,Children's & Education Services,103,Supplies and Services,504,Equipment,5023,Revenue,CATERING.FOOD & BEVERAGES
21-JAN-2022,7012844,1.36,TOTAL PRODUCE GATESHEAD,399244,Commissioning & Asset Management,Children's & Education Services,103,Supplies and Services,504,Equipment,5023,Revenue,CATERING.FOOD & BEVERAGES
21-JAN-2022,7012844,1.36,TOTAL PRODUCE GATESHEAD,399244,Commissioning & Asset Management,Children's & Education Services,103,Supplies and Services,504,Equipment,5023,Revenue,CATERING.FOOD & BEVERAGES
21-JAN-2022,7012844,1.36,TOTAL PRODUCE GATESHEAD,399244,Commissioning & Asset Management,Children's & Education Services,103,Supplies and Services,504,Equipment,5023,Revenue,CATERING.FOOD & BEVERAGES
21-JAN-2022,7012844,1.36,TOTAL PRODUCE GATESHEAD,399244,Commissioning & Asset Management,Children's & Education Services,103,Supplies and Services,504,Equipment,5023,Revenue,CATERING.FOOD & BEVERAGES
21-JAN-2022,7012844,1.36,TOTAL PRODUCE GATESHEAD,399244,Commissioning & Asset Management,Children's & Education Services,103,Supplies and Services,504,Equipment,5023,Revenue,CATERING.FOOD & BEVERAGES
21-JAN-2022,7012844,1.36,TOTAL PRODUCE GATESHEAD,399244,Commissioning & Asset Management,Children's & Education Services,103,Supplies and Services,504,Equipment,5023,Revenue,CATERING.FOOD & BEVERAGES
21-JAN-2022,7012844,1.36,TOTAL PRODUCE GATESHEAD,399244,Commissioning & Asset Management,Children's & Education Services,103,Supplies and Services,504,Equipment,5023,Revenue,CATERING.FOOD & BEVERAGES
21-JAN-2022,7012844,1.36,TOTAL PRODUCE GATESHEAD,399244,Commissioning & Asset Management,Children's & Education Services,103,Supplies and Services,504,Equipment,5023,Revenue,CATERING.FOOD & BEVERAGES
21-JAN-2022,7012844,1.36,TOTAL PRODUCE GATESHEAD,399244,Commissioning & Asset Management,Children's & Education Services,103,Supplies and Services,504,Equipment,5023,Revenue,CATERING.FOOD & BEVERAGES
21-JAN-2022,7012844,1.36,TOTAL PRODUCE GATESHEAD,399244,Commissioning & Asset Management,Children's & Education Services,103,Supplies and Services,504,Equipment,5023,Revenue,CATERING.FOOD & BEVERAGES
21-JAN-2022,7012844,1.36,TOTAL PRODUCE GATESHEAD,399244,Commissioning & Asset Management,Children's & Education Services,103,Supplies and Services,504,Equipment,5023,Revenue,CATERING.FOOD & BEVERAGES
21-JAN-2022,7012844,1.36,TOTAL PRODUCE GATESHEAD,399244,Commissioning & Asset Management,Children's & Education Services,103,Supplies and Services,504,Equipment,5023,Revenue,CATERING.FOOD & BEVERAGES
21-JAN-2022,7012844,1.36,TOTAL PRODUCE GATESHEAD,399244,Commissioning & Asset Management,Children's & Education Services,103,Supplies and Services,504,Equipment,5023,Revenue,CATERING.FOOD & BEVERAGES
21-JAN-2022,7012844,1.36,TOTAL PRODUCE GATESHEAD,399244,Commissioning & Asset Management,Children's & Education Services,103,Supplies and Services,504,Equipment,5023,Revenue,CATERING.FOOD & BEVERAGES
21-JAN-2022,7012844,1.36,TOTAL PRODUCE GATESHEAD,399244,Commissioning & Asset Management,Children's & Education Services,103,Supplies and Services,504,Equipment,5023,Revenue,CATERING.FOOD & BEVERAGES
21-JAN-2022,7012844,1.36,TOTAL PRODUCE GATESHEAD,399244,Commissioning & Asset Management,Children's & Education Services,103,Supplies and Services,504,Equipment,5023,Revenue,CATERING.FOOD & BEVERAGES
21-JAN-2022,7012844,1.36,TOTAL PRODUCE GATESHEAD,399244,Commissioning & Asset Management,Children's & Education Services,103,Supplies and Services,504,Equipment,5023,Revenue,CATERING.FOOD & BEVERAGES
21-JAN-2022,7012844,1.36,TOTAL PRODUCE GATESHEAD,399244,Commissioning & Asset Management,Children's & Education Services,103,Supplies and Services,504,Equipment,5023,Revenue,CATERING.FOOD & BEVERAGES
21-JAN-2022,7012844,1.36,TOTAL PRODUCE GATESHEAD,399244,Commissioning & Asset Management,Children's & Education Services,103,Supplies and Services,504,Equipment,5023,Revenue,CATERING.FOOD & BEVERAGES
21-JAN-2022,7012844,1.36,TOTAL PRODUCE GATESHEAD,399244,Commissioning & Asset Management,Children's & Education Services,103,Supplies and Services,504,Equipment,5023,Revenue,CATERING.FOOD & BEVERAGES
21-JAN-2022,7012844,1.36,TOTAL PRODUCE GATESHEAD,399244,Commissioning & Asset Management,Children's & Education Services,103,Supplies and Services,504,Equipment,5023,Revenue,CATERING.FOOD & BEVERAGES
21-JAN-2022,7012844,1.36,TOTAL PRODUCE GATESHEAD,399244,Commissioning & Asset Management,Children's & Education Services,103,Supplies and Services,504,Equipment,5023,Revenue,CATERING.FOOD & BEVERAGES
21-JAN-2022,7012844,1.36,TOTAL PRODUCE GATESHEAD,399244,Commissioning & Asset Management,Children's & Education Services,103,Supplies and Services,504,Equipment,5023,Revenue,CATERING.FOOD & BEVERAGES
21-JAN-2022,7012844,1.36,TOTAL PRODUCE GATESHEAD,399244,Commissioning & Asset Management,Children's & Education Services,103,Supplies and Services,504,Equipment,5023,Revenue,CATERING.FOOD & BEVERAGES
21-JAN-2022,7012844,1.36,TOTAL PRODUCE GATESHEAD,399244,Commissioning & Asset Management,Children's & Education Services,103,Supplies and Services,504,Equipment,5023,Revenue,CATERING.FOOD & BEVERAGES
21-JAN-2022,7012844,1.36,TOTAL PRODUCE GATESHEAD,399244,Commissioning & Asset Management,Children's & Education Services,103,Supplies and Services,504,Equipment,5023,Revenue,CATERING.FOOD & BEVERAGES
21-JAN-2022,7012844,1.36,TOTAL PRODUCE GATESHEAD,399244,Commissioning & Asset Management,Children's & Education Services,103,Supplies and Services,504,Equipment,5023,Revenue,CATERING.FOOD & BEVERAGES
21-JAN-2022,7012844,1.36,TOTAL PRODUCE GATESHEAD,399244,Commissioning & Asset Management,Children's & Education Services,103,Supplies and Services,504,Equipment,5023,Revenue,CATERING.FOOD & BEVERAGES
21-JAN-2022,7012844,1.36,TOTAL PRODUCE GATESHEAD,399244,Commissioning & Asset Management,Children's & Education Services,103,Supplies and Services,504,Equipment,5023,Revenue,CATERING.FOOD & BEVERAGES
21-JAN-2022,7012844,1.36,TOTAL PRODUCE GATESHEAD,399244,Commissioning & Asset Management,Children's & Education Services,103,Supplies and Services,504,Equipment,5023,Revenue,CATERING.FOOD & BEVERAGES
21-JAN-2022,7012844,1.36,TOTAL PRODUCE GATESHEAD,399244,Commissioning & Asset Management,Children's & Education Services,103,Supplies and Services,504,Equipment,5023,Revenue,CATERING.FOOD & BEVERAGES
21-JAN-2022,7012844,1.36,TOTAL PRODUCE GATESHEAD,399244,Commissioning & Asset Management,Children's & Education Services,103,Supplies and Services,504,Equipment,5023,Revenue,CATERING.FOOD & BEVERAGES
21-JAN-2022,7012844,1.36,TOTAL PRODUCE GATESHEAD,399244,Commissioning & Asset Management,Children's & Education Services,103,Supplies and Services,504,Equipment,5023,Revenue,CATERING.FOOD & BEVERAGES
21-JAN-2022,7012844,1.36,TOTAL PRODUCE GATESHEAD,399244,Commissioning & Asset Management,Children's & Education Services,103,Supplies and Services,504,Equipment,5023,Revenue,CATERING.FOOD & BEVERAGES
21-JAN-2022,7012844,1.36,TOTAL PRODUCE GATESHEAD,399244,Commissioning & Asset Management,Children's & Education Services,103,Supplies and Services,504,Equipment,5023,Revenue,CATERING.FOOD & BEVERAGES
21-JAN-2022,7012844,1.36,TOTAL PRODUCE GATESHEAD,399244,Commissioning & Asset Management,Children's & Education Services,103,Supplies and Services,504,Equipment,5023,Revenue,CATERING.FOOD & BEVERAGES
21-JAN-2022,7012844,1.36,TOTAL PRODUCE GATESHEAD,399244,Commissioning & Asset Management,Children's & Education Services,103,Supplies and Services,504,Equipment,5023,Revenue,CATERING.FOOD & BEVERAGES
21-JAN-2022,7012844,1.36,TOTAL PRODUCE GATESHEAD,399244,Commissioning & Asset Management,Children's & Education Services,103,Supplies and Services,504,Equipment,5023,Revenue,CATERING.FOOD & BEVERAGES
21-JAN-2022,7012844,1.36,TOTAL PRODUCE GATESHEAD,399244,Commissioning & Asset Management,Children's & Education Services,103,Supplies and Services,504,Equipment,5023,Revenue,CATERING.FOOD & BEVERAGES
21-JAN-2022,7012844,1.36,TOTAL PRODUCE GATESHEAD,399244,Commissioning & Asset Management,Children's & Education Services,103,Supplies and Services,504,Equipment,5023,Revenue,CATERING.FOOD & BEVERAGES
21-JAN-2022,7012844,1.36,TOTAL PRODUCE GATESHEAD,399244,Commissioning & Asset Management,Children's & Education Services,103,Supplies and Services,504,Equipment,5023,Revenue,CATERING.FOOD & BEVERAGES
21-JAN-2022,7012844,1.36,TOTAL PRODUCE GATESHEAD,399244,Commissioning & Asset Management,Children's & Education Services,103,Supplies and Services,504,Equipment,5023,Revenue,CATERING.FOOD & BEVERAGES
21-JAN-2022,7012844,1.36,TOTAL PRODUCE GATESHEAD,399244,Commissioning & Asset Management,Children's & Education Services,103,Supplies and Services,504,Equipment,5023,Revenue,CATERING.FOOD & BEVERAGES
21-JAN-2022,7012844,1.36,TOTAL PRODUCE GATESHEAD,399244,Commissioning & Asset Management,Children's & Education Services,103,Supplies and Services,504,Equipment,5023,Revenue,CATERING.FOOD & BEVERAGES
21-JAN-2022,7012844,1.36,TOTAL PRODUCE GATESHEAD,399244,Commissioning & Asset Management,Children's & Education Services,103,Supplies and Services,504,Equipment,5023,Revenue,CATERING.FOOD & BEVERAGES
21-JAN-2022,7012844,1.36,TOTAL PRODUCE GATESHEAD,399244,Commissioning & Asset Management,Children's & Education Services,103,Supplies and Services,504,Equipment,5023,Revenue,CATERING.FOOD & BEVERAGES
21-JAN-2022,7012844,1.36,TOTAL PRODUCE GATESHEAD,399244,Commissioning & Asset Management,Children's & Education Services,103,Supplies and Services,504,Equipment,5023,Revenue,CATERING.FOOD & BEVERAGES
21-JAN-2022,7012844,1.36,TOTAL PRODUCE GATESHEAD,399244,Commissioning & Asset Management,Children's & Education Services,103,Supplies and Services,504,Equipment,5023,Revenue,CATERING.FOOD & BEVERAGES
21-JAN-2022,7012844,1.36,TOTAL PRODUCE GATESHEAD,399244,Commissioning & Asset Management,Children's & Education Services,103,Supplies and Services,504,Equipment,5023,Revenue,CATERING.FOOD & BEVERAGES
21-JAN-2022,7012844,1.36,TOTAL PRODUCE GATESHEAD,399244,Commissioning & Asset Management,Children's & Education Services,103,Supplies and Services,504,Equipment,5023,Revenue,CATERING.FOOD & BEVERAGES
21-JAN-2022,7012844,1.36,TOTAL PRODUCE GATESHEAD,399244,Commissioning & Asset Management,Children's & Education Services,103,Supplies and Services,504,Equipment,5023,Revenue,CATERING.FOOD & BEVERAGES
21-JAN-2022,7012844,1.36,TOTAL PRODUCE GATESHEAD,399244,Commissioning & Asset Management,Children's & Education Services,103,Supplies and Services,504,Equipment,5023,Revenue,CATERING.FOOD & BEVERAGES
21-JAN-2022,7012844,1.36,TOTAL PRODUCE GATESHEAD,399244,Commissioning & Asset Management,Children's & Education Services,103,Supplies and Services,504,Equipment,5023,Revenue,CATERING.FOOD & BEVERAGES
21-JAN-2022,7012844,1.36,TOTAL PRODUCE GATESHEAD,399244,Commissioning & Asset Management,Children's & Education Services,103,Supplies and Services,504,Equipment,5023,Revenue,CATERING.FOOD & BEVERAGES
21-JAN-2022,7012844,1.36,TOTAL PRODUCE GATESHEAD,399244,Commissioning & Asset Management,Children's & Education Services,103,Supplies and Services,504,Equipment,5023,Revenue,CATERING.FOOD & BEVERAGES
21-JAN-2022,7012844,1.36,TOTAL PRODUCE GATESHEAD,399244,Commissioning & Asset Management,Children's & Education Services,103,Supplies and Services,504,Equipment,5023,Revenue,CATERING.FOOD & BEVERAGES
21-JAN-2022,7012844,1.36,TOTAL PRODUCE GATESHEAD,399244,Commissioning & Asset Management,Children's & Education Services,103,Supplies and Services,504,Equipment,5023,Revenue,CATERING.FOOD & BEVERAGES
21-JAN-2022,7012844,1.36,TOTAL PRODUCE GATESHEAD,399244,Commissioning & Asset Management,Children's & Education Services,103,Supplies and Services,504,Equipment,5023,Revenue,CATERING.FOOD & BEVERAGES
21-JAN-2022,7012844,1.36,TOTAL PRODUCE GATESHEAD,399244,Commissioning & Asset Management,Children's & Education Services,103,Supplies and Services,504,Equipment,5023,Revenue,CATERING.FOOD & BEVERAGES
21-JAN-2022,7012844,1.36,TOTAL PRODUCE GATESHEAD,399244,Commissioning & Asset Management,Children's & Education Services,103,Supplies and Services,504,Equipment,5023,Revenue,CATERING.FOOD & BEVERAGES
21-JAN-2022,7012844,1.36,TOTAL PRODUCE GATESHEAD,399244,Commissioning & Asset Management,Children's & Education Services,103,Supplies and Services,504,Equipment,5023,Revenue,CATERING.FOOD & BEVERAGES
21-JAN-2022,7012844,1.36,TOTAL PRODUCE GATESHEAD,399244,Commissioning & Asset Management,Children's & Education Services,103,Supplies and Services,504,Equipment,5023,Revenue,CATERING.FOOD & BEVERAGES
21-JAN-2022,7012844,1.36,TOTAL PRODUCE GATESHEAD,399244,Commissioning & Asset Management,Children's & Education Services,103,Supplies and Services,504,Equipment,5023,Revenue,CATERING.FOOD & BEVERAGES
21-JAN-2022,7012844,1.36,TOTAL PRODUCE GATESHEAD,399244,Commissioning & Asset Management,Children's & Education Services,103,Supplies and Services,504,Equipment,5023,Revenue,CATERING.FOOD & BEVERAGES
21-JAN-2022,7012844,1.36,TOTAL PRODUCE GATESHEAD,399244,Commissioning & Asset Management,Children's & Education Services,103,Supplies and Services,504,Equipment,5023,Revenue,CATERING.FOOD & BEVERAGES
21-JAN-2022,7012844,1.36,TOTAL PRODUCE GATESHEAD,399244,Commissioning & Asset Management,Children's & Education Services,103,Supplies and Services,504,Equipment,5023,Revenue,CATERING.FOOD & BEVERAGES
21-JAN-2022,7012844,1.36,TOTAL PRODUCE GATESHEAD,399244,Commissioning & Asset Management,Children's & Education Services,103,Supplies and Services,504,Equipment,5023,Revenue,CATERING.FOOD & BEVERAGES
21-JAN-2022,7012844,1.36,TOTAL PRODUCE GATESHEAD,399244,Commissioning & Asset Management,Children's & Education Services,103,Supplies and Services,504,Equipment,5023,Revenue,CATERING.FOOD & BEVERAGES
21-JAN-2022,7012844,1.36,TOTAL PRODUCE GATESHEAD,399244,Commissioning & Asset Management,Children's & Education Services,103,Supplies and Services,504,Equipment,5023,Revenue,CATERING.FOOD & BEVERAGES
21-JAN-2022,7012844,1.36,TOTAL PRODUCE GATESHEAD,399244,Commissioning & Asset Management,Children's & Education Services,103,Supplies and Services,504,Equipment,5023,Revenue,CATERING.FOOD & BEVERAGES
21-JAN-2022,7012844,1.36,TOTAL PRODUCE GATESHEAD,399244,Commissioning & Asset Management,Children's & Education Services,103,Supplies and Services,504,Equipment,5023,Revenue,CATERING.FOOD & BEVERAGES
21-JAN-2022,7012844,1.36,TOTAL PRODUCE GATESHEAD,399244,Commissioning & Asset Management,Children's & Education Services,103,Supplies and Services,504,Equipment,5023,Revenue,CATERING.FOOD & BEVERAGES
21-JAN-2022,7012844,1.36,TOTAL PRODUCE GATESHEAD,399244,Commissioning & Asset Management,Children's & Education Services,103,Supplies and Services,504,Equipment,5023,Revenue,CATERING.FOOD & BEVERAGES
21-JAN-2022,7012844,1.36,TOTAL PRODUCE GATESHEAD,399244,Commissioning & Asset Management,Children's & Education Services,103,Supplies and Services,504,Equipment,5023,Revenue,CATERING.FOOD & BEVERAGES
21-JAN-2022,7012844,1.36,TOTAL PRODUCE GATESHEAD,399244,Commissioning & Asset Management,Children's & Education Services,103,Supplies and Services,504,Equipment,5023,Revenue,CATERING.FOOD & BEVERAGES
21-JAN-2022,7012844,1.36,TOTAL PRODUCE GATESHEAD,399244,Commissioning & Asset Management,Children's & Education Services,103,Supplies and Services,504,Equipment,5023,Revenue,CATERING.FOOD & BEVERAGES
21-JAN-2022,7012844,1.36,TOTAL PRODUCE GATESHEAD,399244,Commissioning & Asset Management,Children's & Education Services,103,Supplies and Services,504,Equipment,5023,Revenue,CATERING.FOOD & BEVERAGES
21-JAN-2022,7012844,1.36,TOTAL PRODUCE GATESHEAD,399244,Commissioning & Asset Management,Children's & Education Services,103,Supplies and Services,504,Equipment,5023,Revenue,CATERING.FOOD & BEVERAGES
21-JAN-2022,7012844,1.36,TOTAL PRODUCE GATESHEAD,399244,Commissioning & Asset Management,Children's & Education Services,103,Supplies and Services,504,Equipment,5023,Revenue,CATERING.FOOD & BEVERAGES
21-JAN-2022,7012844,1.36,TOTAL PRODUCE GATESHEAD,399244,Commissioning & Asset Management,Children's & Education Services,103,Supplies and Services,504,Equipment,5023,Revenue,CATERING.FOOD & BEVERAGES
21-JAN-2022,7012844,1.36,TOTAL PRODUCE GATESHEAD,399244,Commissioning & Asset Management,Children's & Education Services,103,Supplies and Services,504,Equipment,5023,Revenue,CATERING.FOOD & BEVERAGES
21-JAN-2022,7012844,1.36,TOTAL PRODUCE GATESHEAD,399244,Commissioning & Asset Management,Children's & Education Services,103,Supplies and Services,504,Equipment,5023,Revenue,CATERING.FOOD & BEVERAGES
21-JAN-2022,7012844,1.36,TOTAL PRODUCE GATESHEAD,399244,Commissioning & Asset Management,Children's & Education Services,103,Supplies and Services,504,Equipment,5023,Revenue,CATERING.FOOD & BEVERAGES
21-JAN-2022,7012844,1.36,TOTAL PRODUCE GATESHEAD,399244,Commissioning & Asset Management,Children's & Education Services,103,Supplies and Services,504,Equipment,5023,Revenue,CATERING.FOOD & BEVERAGES
21-JAN-2022,7012844,1.36,TOTAL PRODUCE GATESHEAD,399244,Commissioning & Asset Management,Children's & Education Services,103,Supplies and Services,504,Equipment,5023,Revenue,CATERING.FOOD & BEVERAGES
21-JAN-2022,7012844,1.36,TOTAL PRODUCE GATESHEAD,399244,Commissioning & Asset Management,Children's & Education Services,103,Supplies and Services,504,Equipment,5023,Revenue,CATERING.FOOD & BEVERAGES
21-JAN-2022,7012844,1.36,TOTAL PRODUCE GATESHEAD,399244,Commissioning & Asset Management,Children's & Education Services,103,Supplies and Services,504,Equipment,5023,Revenue,CATERING.FOOD & BEVERAGES
21-JAN-2022,7012844,1.36,TOTAL PRODUCE GATESHEAD,399244,Commissioning & Asset Management,Children's & Education Services,103,Supplies and Services,504,Equipment,5023,Revenue,CATERING.FOOD & BEVERAGES
21-JAN-2022,7012844,1.36,TOTAL PRODUCE GATESHEAD,399244,Commissioning & Asset Management,Children's & Education Services,103,Supplies and Services,504,Equipment,5023,Revenue,CATERING.FOOD & BEVERAGES
21-JAN-2022,7012844,1.36,TOTAL PRODUCE GATESHEAD,399244,Commissioning & Asset Management,Children's & Education Services,103,Supplies and Services,504,Equipment,5023,Revenue,CATERING.FOOD & BEVERAGES
21-JAN-2022,7012844,1.36,TOTAL PRODUCE GATESHEAD,399244,Commissioning & Asset Management,Children's & Education Services,103,Supplies and Services,504,Equipment,5023,Revenue,CATERING.FOOD & BEVERAGES
21-JAN-2022,7012844,1.36,TOTAL PRODUCE GATESHEAD,399244,Commissioning & Asset Management,Children's & Education Services,103,Supplies and Services,504,Equipment,5023,Revenue,CATERING.FOOD & BEVERAGES
21-JAN-2022,7012844,1.36,TOTAL PRODUCE GATESHEAD,399244,Commissioning & Asset Management,Children's & Education Services,103,Supplies and Services,504,Equipment,5023,Revenue,CATERING.FOOD & BEVERAGES
21-JAN-2022,7012844,1.36,TOTAL PRODUCE GATESHEAD,399244,Commissioning & Asset Management,Children's & Education Services,103,Supplies and Services,504,Equipment,5023,Revenue,CATERING.FOOD & BEVERAGES
21-JAN-2022,7012844,1.36,TOTAL PRODUCE GATESHEAD,399244,Commissioning & Asset Management,Children's & Education Services,103,Supplies and Services,504,Equipment,5023,Revenue,CATERING.FOOD & BEVERAGES
21-JAN-2022,7012844,1.36,TOTAL PRODUCE GATESHEAD,399244,Commissioning & Asset Management,Children's & Education Services,103,Supplies and Services,504,Equipment,5023,Revenue,CATERING.FOOD & BEVERAGES
21-JAN-2022,7012844,1.36,TOTAL PRODUCE GATESHEAD,399244,Commissioning & Asset Management,Children's & Education Services,103,Supplies and Services,504,Equipment,5023,Revenue,CATERING.FOOD & BEVERAGES
21-JAN-2022,7012844,1.36,TOTAL PRODUCE GATESHEAD,399244,Commissioning & Asset Management,Children's & Education Services,103,Supplies and Services,504,Equipment,5023,Revenue,CATERING.FOOD & BEVERAGES
21-JAN-2022,7012844,1.36,TOTAL PRODUCE GATESHEAD,399244,Commissioning & Asset Management,Children's & Education Services,103,Supplies and Services,504,Equipment,5023,Revenue,CATERING.FOOD & BEVERAGES
21-JAN-2022,7012844,1.36,TOTAL PRODUCE GATESHEAD,399244,Commissioning & Asset Management,Children's & Education Services,103,Supplies and Services,504,Equipment,5023,Revenue,CATERING.FOOD & BEVERAGES
21-JAN-2022,7012844,1.36,TOTAL PRODUCE GATESHEAD,399244,Commissioning & Asset Management,Children's & Education Services,103,Supplies and Services,504,Equipment,5023,Revenue,CATERING.FOOD & BEVERAGES
21-JAN-2022,7012844,1.36,TOTAL PRODUCE GATESHEAD,399244,Commissioning & Asset Management,Children's & Education Services,103,Supplies and Services,504,Equipment,5023,Revenue,CATERING.FOOD & BEVERAGES
21-JAN-2022,7012844,1.36,TOTAL PRODUCE GATESHEAD,399244,Commissioning & Asset Management,Children's & Education Services,103,Supplies and Services,504,Equipment,5023,Revenue,CATERING.FOOD & BEVERAGES
21-JAN-2022,7012844,1.36,TOTAL PRODUCE GATESHEAD,399244,Commissioning & Asset Management,Children's & Education Services,103,Supplies and Services,504,Equipment,5023,Revenue,CATERING.FOOD & BEVERAGES
21-JAN-2022,7012844,1.36,TOTAL PRODUCE GATESHEAD,399244,Commissioning & Asset Management,Children's & Education Services,103,Supplies and Services,504,Equipment,5023,Revenue,CATERING.FOOD & BEVERAGES
21-JAN-2022,7012844,1.36,TOTAL PRODUCE GATESHEAD,399244,Commissioning & Asset Management,Children's & Education Services,103,Supplies and Services,504,Equipment,5023,Revenue,CATERING.FOOD & BEVERAGES
21-JAN-2022,7012844,1.36,TOTAL PRODUCE GATESHEAD,399244,Commissioning & Asset Management,Children's & Education Services,103,Supplies and Services,504,Equipment,5023,Revenue,CATERING.FOOD & BEVERAGES
21-JAN-2022,7012844,1.36,TOTAL PRODUCE GATESHEAD,399244,Commissioning & Asset Management,Children's & Education Services,103,Supplies and Services,504,Equipment,5023,Revenue,CATERING.FOOD & BEVERAGES
21-JAN-2022,7012844,1.36,TOTAL PRODUCE GATESHEAD,399244,Commissioning & Asset Management,Children's & Education Services,103,Supplies and Services,504,Equipment,5023,Revenue,CATERING.FOOD & BEVERAGES
21-JAN-2022,7012844,1.36,TOTAL PRODUCE GATESHEAD,399244,Commissioning & Asset Management,Children's & Education Services,103,Supplies and Services,504,Equipment,5023,Revenue,CATERING.FOOD & BEVERAGES
21-JAN-2022,7012844,1.36,TOTAL PRODUCE GATESHEAD,399244,Commissioning & Asset Management,Children's & Education Services,103,Supplies and Services,504,Equipment,5023,Revenue,CATERING.FOOD & BEVERAGES
21-JAN-2022,7012844,1.36,TOTAL PRODUCE GATESHEAD,399244,Commissioning & Asset Management,Children's & Education Services,103,Supplies and Services,504,Equipment,5023,Revenue,CATERING.FOOD & BEVERAGES
21-JAN-2022,7012844,1.36,TOTAL PRODUCE GATESHEAD,399244,Commissioning & Asset Management,Children's & Education Services,103,Supplies and Services,504,Equipment,5023,Revenue,CATERING.FOOD & BEVERAGES
21-JAN-2022,7012844,1.36,TOTAL PRODUCE GATESHEAD,399244,Commissioning & Asset Management,Children's & Education Services,103,Supplies and Services,504,Equipment,5023,Revenue,CATERING.FOOD & BEVERAGES
21-JAN-2022,7012844,1.36,TOTAL PRODUCE GATESHEAD,399244,Commissioning & Asset Management,Children's & Education Services,103,Supplies and Services,504,Equipment,5023,Revenue,CATERING.FOOD & BEVERAGES
21-JAN-2022,7012844,1.36,TOTAL PRODUCE GATESHEAD,399244,Commissioning & Asset Management,Children's & Education Services,103,Supplies and Services,504,Equipment,5023,Revenue,CATERING.FOOD & BEVERAGES
21-JAN-2022,7012844,1.36,TOTAL PRODUCE GATESHEAD,399244,Commissioning & Asset Management,Children's & Education Services,103,Supplies and Services,504,Equipment,5023,Revenue,CATERING.FOOD & BEVERAGES
21-JAN-2022,7012844,1.36,TOTAL PRODUCE GATESHEAD,399244,Commissioning & Asset Management,Children's & Education Services,103,Supplies and Services,504,Equipment,5023,Revenue,CATERING.FOOD & BEVERAGES
21-JAN-2022,7012844,1.36,TOTAL PRODUCE GATESHEAD,399244,Commissioning & Asset Management,Children's & Education Services,103,Supplies and Services,504,Equipment,5023,Revenue,CATERING.FOOD & BEVERAGES
21-JAN-2022,7012844,1.36,TOTAL PRODUCE GATESHEAD,399244,Commissioning & Asset Management,Children's & Education Services,103,Supplies and Services,504,Equipment,5023,Revenue,CATERING.FOOD & BEVERAGES
21-JAN-2022,7012844,1.36,TOTAL PRODUCE GATESHEAD,399244,Commissioning & Asset Management,Children's & Education Services,103,Supplies and Services,504,Equipment,5023,Revenue,CATERING.FOOD & BEVERAGES
21-JAN-2022,7012844,1.36,TOTAL PRODUCE GATESHEAD,399244,Commissioning & Asset Management,Children's & Education Services,103,Supplies and Services,504,Equipment,5023,Revenue,CATERING.FOOD & BEVERAGES
21-JAN-2022,7012844,1.36,TOTAL PRODUCE GATESHEAD,399244,Commissioning & Asset Management,Children's & Education Services,103,Supplies and Services,504,Equipment,5023,Revenue,CATERING.FOOD & BEVERAGES
21-JAN-2022,7012844,1.36,TOTAL PRODUCE GATESHEAD,399244,Commissioning & Asset Management,Children's & Education Services,103,Supplies and Services,504,Equipment,5023,Revenue,CATERING.FOOD & BEVERAGES
21-JAN-2022,7012844,1.36,TOTAL PRODUCE GATESHEAD,399244,Commissioning & Asset Management,Children's & Education Services,103,Supplies and Services,504,Equipment,5023,Revenue,CATERING.FOOD & BEVERAGES
21-JAN-2022,7012844,1.36,TOTAL PRODUCE GATESHEAD,399244,Commissioning & Asset Management,Children's & Education Services,103,Supplies and Services,504,Equipment,5023,Revenue,CATERING.FOOD & BEVERAGES
21-JAN-2022,7012844,1.36,TOTAL PRODUCE GATESHEAD,399244,Commissioning & Asset Management,Children's & Education Services,103,Supplies and Services,504,Equipment,5023,Revenue,CATERING.FOOD & BEVERAGES
21-JAN-2022,7012844,1.36,TOTAL PRODUCE GATESHEAD,399244,Commissioning & Asset Management,Children's & Education Services,103,Supplies and Services,504,Equipment,5023,Revenue,CATERING.FOOD & BEVERAGES
21-JAN-2022,7012844,1.36,TOTAL PRODUCE GATESHEAD,399244,Commissioning & Asset Management,Children's & Education Services,103,Supplies and Services,504,Equipment,5023,Revenue,CATERING.FOOD & BEVERAGES
21-JAN-2022,7012844,1.36,TOTAL PRODUCE GATESHEAD,399244,Commissioning & Asset Management,Children's & Education Services,103,Supplies and Services,504,Equipment,5023,Revenue,CATERING.FOOD & BEVERAGES
21-JAN-2022,7012844,1.36,TOTAL PRODUCE GATESHEAD,399244,Commissioning & Asset Management,Children's & Education Services,103,Supplies and Services,504,Equipment,5023,Revenue,CATERING.FOOD & BEVERAGES
21-JAN-2022,7012844,1.36,TOTAL PRODUCE GATESHEAD,399244,Commissioning & Asset Management,Children's & Education Services,103,Supplies and Services,504,Equipment,5023,Revenue,CATERING.FOOD & BEVERAGES
21-JAN-2022,7012844,1.36,TOTAL PRODUCE GATESHEAD,399244,Commissioning & Asset Management,Children's & Education Services,103,Supplies and Services,504,Equipment,5023,Revenue,CATERING.FOOD & BEVERAGES
21-JAN-2022,7012844,1.36,TOTAL PRODUCE GATESHEAD,399244,Commissioning & Asset Management,Children's & Education Services,103,Supplies and Services,504,Equipment,5023,Revenue,CATERING.FOOD & BEVERAGES
21-JAN-2022,7012844,1.36,TOTAL PRODUCE GATESHEAD,399244,Commissioning & Asset Management,Children's & Education Services,103,Supplies and Services,504,Equipment,5023,Revenue,CATERING.FOOD & BEVERAGES
21-JAN-2022,7012844,1.36,TOTAL PRODUCE GATESHEAD,399244,Commissioning & Asset Management,Children's & Education Services,103,Supplies and Services,504,Equipment,5023,Revenue,CATERING.FOOD & BEVERAGES
21-JAN-2022,7012844,1.36,TOTAL PRODUCE GATESHEAD,399244,Commissioning & Asset Management,Children's & Education Services,103,Supplies and Services,504,Equipment,5023,Revenue,CATERING.FOOD & BEVERAGES
21-JAN-2022,7012844,1.36,TOTAL PRODUCE GATESHEAD,399244,Commissioning & Asset Management,Children's & Education Services,103,Supplies and Services,504,Equipment,5023,Revenue,CATERING.FOOD & BEVERAGES
21-JAN-2022,7012844,1.36,TOTAL PRODUCE GATESHEAD,399244,Commissioning & Asset Management,Children's & Education Services,103,Supplies and Services,504,Equipment,5023,Revenue,CATERING.FOOD & BEVERAGES
21-JAN-2022,7012844,1.36,TOTAL PRODUCE GATESHEAD,399244,Commissioning & Asset Management,Children's & Education Services,103,Supplies and Services,504,Equipment,5023,Revenue,CATERING.FOOD & BEVERAGES
21-JAN-2022,7012844,1.36,TOTAL PRODUCE GATESHEAD,399244,Commissioning & Asset Management,Children's & Education Services,103,Supplies and Services,504,Equipment,5023,Revenue,CATERING.FOOD & BEVERAGES
21-JAN-2022,7012844,1.36,TOTAL PRODUCE GATESHEAD,399244,Commissioning & Asset Management,Children's & Education Services,103,Supplies and Services,504,Equipment,5023,Revenue,CATERING.FOOD & BEVERAGES
21-JAN-2022,7012844,1.36,TOTAL PRODUCE GATESHEAD,399244,Commissioning & Asset Management,Children's & Education Services,103,Supplies and Services,504,Equipment,5023,Revenue,CATERING.FOOD & BEVERAGES
21-JAN-2022,7012844,1.36,TOTAL PRODUCE GATESHEAD,399244,Commissioning & Asset Management,Children's & Education Services,103,Supplies and Services,504,Equipment,5023,Revenue,CATERING.FOOD & BEVERAGES
21-JAN-2022,7012844,1.36,TOTAL PRODUCE GATESHEAD,399244,Commissioning & Asset Management,Children's & Education Services,103,Supplies and Services,504,Equipment,5023,Revenue,CATERING.FOOD & BEVERAGES
21-JAN-2022,7012844,1.36,TOTAL PRODUCE GATESHEAD,399244,Commissioning & Asset Management,Children's & Education Services,103,Supplies and Services,504,Equipment,5023,Revenue,CATERING.FOOD & BEVERAGES
21-JAN-2022,7012844,1.36,TOTAL PRODUCE GATESHEAD,399244,Commissioning & Asset Management,Children's & Education Services,103,Supplies and Services,504,Equipment,5023,Revenue,CATERING.FOOD & BEVERAGES
21-JAN-2022,7012844,1.36,TOTAL PRODUCE GATESHEAD,399244,Commissioning & Asset Management,Children's & Education Services,103,Supplies and Services,504,Equipment,5023,Revenue,CATERING.FOOD & BEVERAGES
21-JAN-2022,7012844,1.36,TOTAL PRODUCE GATESHEAD,399244,Commissioning & Asset Management,Children's & Education Services,103,Supplies and Services,504,Equipment,5023,Revenue,CATERING.FOOD & BEVERAGES
21-JAN-2022,7012844,1.36,TOTAL PRODUCE GATESHEAD,399244,Commissioning & Asset Management,Children's & Education Services,103,Supplies and Services,504,Equipment,5023,Revenue,CATERING.FOOD & BEVERAGES
21-JAN-2022,7012844,1.36,TOTAL PRODUCE GATESHEAD,399244,Commissioning & Asset Management,Children's & Education Services,103,Supplies and Services,504,Equipment,5023,Revenue,CATERING.FOOD & BEVERAGES
21-JAN-2022,7012844,1.36,TOTAL PRODUCE GATESHEAD,399244,Commissioning & Asset Management,Children's & Education Services,103,Supplies and Services,504,Equipment,5023,Revenue,CATERING.FOOD & BEVERAGES
21-JAN-2022,7012844,1.36,TOTAL PRODUCE GATESHEAD,399244,Commissioning & Asset Management,Children's & Education Services,103,Supplies and Services,504,Equipment,5023,Revenue,CATERING.FOOD & BEVERAGES
21-JAN-2022,7012844,1.36,TOTAL PRODUCE GATESHEAD,399244,Commissioning & Asset Management,Children's & Education Services,103,Supplies and Services,504,Equipment,5023,Revenue,CATERING.FOOD & BEVERAGES
21-JAN-2022,7012844,1.36,TOTAL PRODUCE GATESHEAD,399244,Commissioning & Asset Management,Children's & Education Services,103,Supplies and Services,504,Equipment,5023,Revenue,CATERING.FOOD & BEVERAGES
21-JAN-2022,7012844,1.36,TOTAL PRODUCE GATESHEAD,399244,Commissioning & Asset Management,Children's & Education Services,103,Supplies and Services,504,Equipment,5023,Revenue,CATERING.FOOD & BEVERAGES
21-JAN-2022,7012844,1.36,TOTAL PRODUCE GATESHEAD,399244,Commissioning & Asset Management,Children's & Education Services,103,Supplies and Services,504,Equipment,5023,Revenue,CATERING.FOOD & BEVERAGES
21-JAN-2022,7012844,1.36,TOTAL PRODUCE GATESHEAD,399244,Commissioning & Asset Management,Children's & Education Services,103,Supplies and Services,504,Equipment,5023,Revenue,CATERING.FOOD & BEVERAGES
21-JAN-2022,7012844,1.36,TOTAL PRODUCE GATESHEAD,399244,Commissioning & Asset Management,Children's & Education Services,103,Supplies and Services,504,Equipment,5023,Revenue,CATERING.FOOD & BEVERAGES
21-JAN-2022,7012844,1.36,TOTAL PRODUCE GATESHEAD,399244,Commissioning & Asset Management,Children's & Education Services,103,Supplies and Services,504,Equipment,5023,Revenue,CATERING.FOOD & BEVERAGES
21-JAN-2022,7012844,1.36,TOTAL PRODUCE GATESHEAD,399244,Commissioning & Asset Management,Children's & Education Services,103,Supplies and Services,504,Equipment,5023,Revenue,CATERING.FOOD & BEVERAGES
21-JAN-2022,7012844,1.36,TOTAL PRODUCE GATESHEAD,399244,Commissioning & Asset Management,Children's & Education Services,103,Supplies and Services,504,Equipment,5023,Revenue,CATERING.FOOD & BEVERAGES
21-JAN-2022,7012844,1.36,TOTAL PRODUCE GATESHEAD,399244,Commissioning & Asset Management,Children's & Education Services,103,Supplies and Services,504,Equipment,5023,Revenue,CATERING.FOOD & BEVERAGES
21-JAN-2022,7012844,1.36,TOTAL PRODUCE GATESHEAD,399244,Commissioning & Asset Management,Children's & Education Services,103,Supplies and Services,504,Equipment,5023,Revenue,CATERING.FOOD & BEVERAGES
21-JAN-2022,7012844,1.36,TOTAL PRODUCE GATESHEAD,399244,Commissioning & Asset Management,Children's & Education Services,103,Supplies and Services,504,Equipment,5023,Revenue,CATERING.FOOD & BEVERAGES
21-JAN-2022,7012844,1.36,TOTAL PRODUCE GATESHEAD,399244,Commissioning & Asset Management,Children's & Education Services,103,Supplies and Services,504,Equipment,5023,Revenue,CATERING.FOOD & BEVERAGES
21-JAN-2022,7012844,1.36,TOTAL PRODUCE GATESHEAD,399244,Commissioning & Asset Management,Children's & Education Services,103,Supplies and Services,504,Equipment,5023,Revenue,CATERING.FOOD & BEVERAGES
21-JAN-2022,7012844,1.36,TOTAL PRODUCE GATESHEAD,399244,Commissioning & Asset Management,Children's & Education Services,103,Supplies and Services,504,Equipment,5023,Revenue,CATERING.FOOD & BEVERAGES
21-JAN-2022,7012844,1.36,TOTAL PRODUCE GATESHEAD,399244,Commissioning & Asset Management,Children's & Education Services,103,Supplies and Services,504,Equipment,5023,Revenue,CATERING.FOOD & BEVERAGES
21-JAN-2022,7012844,1.36,TOTAL PRODUCE GATESHEAD,399244,Commissioning & Asset Management,Children's & Education Services,103,Supplies and Services,504,Equipment,5023,Revenue,CATERING.FOOD & BEVERAGES
21-JAN-2022,7012844,1.36,TOTAL PRODUCE GATESHEAD,399244,Commissioning & Asset Management,Children's & Education Services,103,Supplies and Services,504,Equipment,5023,Revenue,CATERING.FOOD & BEVERAGES
21-JAN-2022,7012844,1.36,TOTAL PRODUCE GATESHEAD,399244,Commissioning & Asset Management,Children's & Education Services,103,Supplies and Services,504,Equipment,5023,Revenue,CATERING.FOOD & BEVERAGES
21-JAN-2022,7012844,1.36,TOTAL PRODUCE GATESHEAD,399244,Commissioning & Asset Management,Children's & Education Services,103,Supplies and Services,504,Equipment,5023,Revenue,CATERING.FOOD & BEVERAGES
21-JAN-2022,7012844,1.36,TOTAL PRODUCE GATESHEAD,399244,Commissioning & Asset Management,Children's & Education Services,103,Supplies and Services,504,Equipment,5023,Revenue,CATERING.FOOD & BEVERAGES
21-JAN-2022,7012844,1.36,TOTAL PRODUCE GATESHEAD,399244,Commissioning & Asset Management,Children's & Education Services,103,Supplies and Services,504,Equipment,5023,Revenue,CATERING.FOOD & BEVERAGES
21-JAN-2022,7012844,1.38,TOTAL PRODUCE GATESHEAD,399244,Commissioning & Asset Management,Children's & Education Services,103,Supplies and Services,504,Equipment,5023,Revenue,CATERING.FOOD & BEVERAGES
21-JAN-2022,7012844,1.38,TOTAL PRODUCE GATESHEAD,399244,Commissioning & Asset Management,Children's & Education Services,103,Supplies and Services,504,Equipment,5023,Revenue,CATERING.FOOD & BEVERAGES
21-JAN-2022,7012844,1.38,TOTAL PRODUCE GATESHEAD,399244,Commissioning & Asset Management,Children's & Education Services,103,Supplies and Services,504,Equipment,5023,Revenue,CATERING.FOOD & BEVERAGES
21-JAN-2022,7012844,1.38,TOTAL PRODUCE GATESHEAD,399244,Commissioning & Asset Management,Children's & Education Services,103,Supplies and Services,504,Equipment,5023,Revenue,CATERING.FOOD & BEVERAGES
21-JAN-2022,7012844,1.38,TOTAL PRODUCE GATESHEAD,399244,Commissioning & Asset Management,Children's & Education Services,103,Supplies and Services,504,Equipment,5023,Revenue,CATERING.FOOD & BEVERAGES
21-JAN-2022,7012844,1.38,TOTAL PRODUCE GATESHEAD,399244,Commissioning & Asset Management,Children's & Education Services,103,Supplies and Services,504,Equipment,5023,Revenue,CATERING.FOOD & BEVERAGES
21-JAN-2022,7012844,1.38,TOTAL PRODUCE GATESHEAD,399244,Commissioning & Asset Management,Children's & Education Services,103,Supplies and Services,504,Equipment,5023,Revenue,CATERING.FOOD & BEVERAGES
21-JAN-2022,7012844,1.38,TOTAL PRODUCE GATESHEAD,399244,Commissioning & Asset Management,Children's & Education Services,103,Supplies and Services,504,Equipment,5023,Revenue,CATERING.FOOD & BEVERAGES
21-JAN-2022,7012844,1.43,TOTAL PRODUCE GATESHEAD,399244,"Environment, Housing & Leisure",Adult Social Care,101,Supplies and Services,504,Equipment,5023,Revenue,CATERING.FOOD & BEVERAGES
21-JAN-2022,7012844,1.43,TOTAL PRODUCE GATESHEAD,399244,Commissioning & Asset Management,Children's & Education Services,103,Supplies and Services,504,Equipment,5023,Revenue,CATERING.FOOD & BEVERAGES
21-JAN-2022,7012844,1.43,TOTAL PRODUCE GATESHEAD,399244,Commissioning & Asset Management,Children's & Education Services,103,Supplies and Services,504,Equipment,5023,Revenue,CATERING.FOOD & BEVERAGES
21-JAN-2022,7012844,1.43,TOTAL PRODUCE GATESHEAD,399244,Commissioning & Asset Management,Children's & Education Services,103,Supplies and Services,504,Equipment,5023,Revenue,CATERING.FOOD & BEVERAGES
21-JAN-2022,7012844,1.43,TOTAL PRODUCE GATESHEAD,399244,Commissioning & Asset Management,Children's & Education Services,103,Supplies and Services,504,Equipment,5023,Revenue,CATERING.FOOD & BEVERAGES
21-JAN-2022,7012844,1.43,TOTAL PRODUCE GATESHEAD,399244,Commissioning & Asset Management,Children's & Education Services,103,Supplies and Services,504,Equipment,5023,Revenue,CATERING.FOOD & BEVERAGES
21-JAN-2022,7012844,1.43,TOTAL PRODUCE GATESHEAD,399244,Commissioning & Asset Management,Children's & Education Services,103,Supplies and Services,504,Equipment,5023,Revenue,CATERING.FOOD & BEVERAGES
21-JAN-2022,7012844,1.46,TOTAL PRODUCE GATESHEAD,399244,"Environment, Housing & Leisure",Adult Social Care,101,Supplies and Services,504,Equipment,5023,Revenue,CATERING.FOOD & BEVERAGES
